Body_Code,Body_Name,Service,Posting Date,GL Code,GL Code Desc,Doc Number,Doc Net Amount,Supplier Name
http://statistics.data.gov.uk/id/local-authority/38,Oxfordshire County Council,Health Acquired Brain Injury C Homes U65,10/01/2024,5687,,3111587389,"-136,806.72",Elysium Healthcare
http://statistics.data.gov.uk/id/local-authority/38,Oxfordshire County Council,HIF2 Team,23/01/2024,2040,Agency Staff,2201191004,"-35,323.67",ATKINSR�ALIS PPS LIMITED
http://statistics.data.gov.uk/id/local-authority/38,Oxfordshire County Council,COMM DRAWDOWN FUNDNG,17/01/2024,8102,Payments to main contractor,2201189072,"-34,484.15",Milestone Infrastructure Limited
http://statistics.data.gov.uk/id/local-authority/38,Oxfordshire County Council,HIF2 Team,05/01/2024,2040,Agency Staff,2201184944,"-29,482.87",ATKINSR�ALIS PPS LIMITED
http://statistics.data.gov.uk/id/local-authority/38,Oxfordshire County Council,Support at Home U65 Learning Disability,10/01/2024,5688,,3111585130,"-28,906.12",K2 Care Southwest Limited
http://statistics.data.gov.uk/id/local-authority/38,Oxfordshire County Council,COMM DRAWDOWN FUNDNG,18/01/2024,8004,Design Consultant,2201189462,"-26,600.13",Milestone Infrastructure Limited
http://statistics.data.gov.uk/id/local-authority/38,Oxfordshire County Council,Support at Home 65+ Memory & Cognition,30/01/2024,5699,,3111597589,"-23,475.68",Calvary Care Ltd
http://statistics.data.gov.uk/id/local-authority/38,Oxfordshire County Council,Support at Home U65 Learning Disability,10/01/2024,5688,,3111585128,"-22,043.67",K2 Care Southwest Limited
http://statistics.data.gov.uk/id/local-authority/38,Oxfordshire County Council,Youth Opportunities Fund,11/01/2024,4940,Other Services,3111589504,"-22,000.00",Cholsey Youth Club
http://statistics.data.gov.uk/id/local-authority/38,Oxfordshire County Council,CHC Fast Track - Care Homes - Over 65,10/01/2024,5687,,3111586645,"-21,642.86",METHODIST HOMES
http://statistics.data.gov.uk/id/local-authority/38,Oxfordshire County Council,ICT Operations & Maintenance,25/01/2024,4495,IT Software,2201191527,"-21,000.00",MetaCompliance Ltd
http://statistics.data.gov.uk/id/local-authority/38,Oxfordshire County Council,COMM DRAWDOWN FUNDNG,18/01/2024,8102,Payments to main contractor,2201189463,"-19,585.37",Milestone Infrastructure Limited
http://statistics.data.gov.uk/id/local-authority/38,Oxfordshire County Council,COMM DRAWDOWN FUNDNG,16/01/2024,8004,Design Consultant,2201188619,"-18,510.97",SCOTTISH & SOUTHERN ENERGY POWER
http://statistics.data.gov.uk/id/local-authority/38,Oxfordshire County Council,Support at Home 65+ Memory & Cognition,02/01/2024,5699,,3111581095,"-18,276.00",All Care GB Ltd
http://statistics.data.gov.uk/id/local-authority/38,Oxfordshire County Council,Reactive Maintenance,17/01/2024,3787,Premises Repairs,2201188740,"-16,821.00",Curtis Building Services Ltd
http://statistics.data.gov.uk/id/local-authority/38,Oxfordshire County Council,CHC Fast Track - Care Homes - Over 65,10/01/2024,5687,,3111587695,"-15,527.06",Green Gates NH (BUPA)
http://statistics.data.gov.uk/id/local-authority/38,Oxfordshire County Council,MAINSTREAM-SECONDARY,18/01/2024,4322,"Season Tickets - Bus, Rail & Ferry",3111593444,"-14,842.00",Oxford Bus Company Ltd
http://statistics.data.gov.uk/id/local-authority/38,Oxfordshire County Council,Support at Home 65+ Physical Support,02/01/2024,5699,,3111580999,"-14,632.36",Abi-Support Ltd
http://statistics.data.gov.uk/id/local-authority/38,Oxfordshire County Council,High Cost INMSS Placements,12/01/2024,5537,Payments to Other Establishments,3111590035,"-14,456.10",Meadowbridge school
http://statistics.data.gov.uk/id/local-authority/38,Oxfordshire County Council,COMM DRAWDOWN FUNDNG,16/01/2024,8103,Payments to sub contractor,3111593066,"-13,956.00",SCOTTISH & SOUTHERN ENERGY POWER
http://statistics.data.gov.uk/id/local-authority/38,Oxfordshire County Council,COMM DRAWDOWN FUNDNG,17/01/2024,8103,Payments to sub contractor,2201188925,"-13,906.00",SCOTTISH & SOUTHERN ENERGY POWER
http://statistics.data.gov.uk/id/local-authority/38,Oxfordshire County Council,Procurement Rebates & Income,09/01/2024,7203,Other Miscellaneous Income,3111583677,"-13,751.43",Acorn Care & Education Ltd
http://statistics.data.gov.uk/id/local-authority/38,Oxfordshire County Council,Mainstream Res,17/01/2024,5560,B*Boundary Fencing,3111593254,"-12,619.17",Acorn Care & Education Ltd
http://statistics.data.gov.uk/id/local-authority/38,Oxfordshire County Council,COMM DRAWDOWN FUNDNG,02/01/2024,8004,Design Consultant,2201184301,"-11,363.50",ATKINSREALIS UK LIMITED
http://statistics.data.gov.uk/id/local-authority/38,Oxfordshire County Council,ICT Operations & Maintenance,19/01/2024,5072,Telephone - Equipment,2201190113,"-11,338.28",Vodafone
http://statistics.data.gov.uk/id/local-authority/38,Oxfordshire County Council,Funded Nursing Care  - Over 65,10/01/2024,5692,,3111588812,"-11,047.50",The Cotswold Home
http://statistics.data.gov.uk/id/local-authority/38,Oxfordshire County Council,Funded Nursing Care  - Over 65,10/01/2024,5692,,3111588645,"-10,603.80",St. Lukes Oxford - Free Nursing
http://statistics.data.gov.uk/id/local-authority/38,Oxfordshire County Council,Care Homes - Under 65 Physical Sypport,10/01/2024,5687,,3111589022,"-10,564.56",Valorum Care Limited
http://statistics.data.gov.uk/id/local-authority/38,Oxfordshire County Council,Support at Home U65 Learning Disability,10/01/2024,5688,,3111587059,"-8,235.54",The Brandon Trust
http://statistics.data.gov.uk/id/local-authority/38,Oxfordshire County Council,Care Homes - Over 65 Memory & Cognition,16/01/2024,5685,B*Cycle tracks,3111590321,"-7,930.73",Oldercare (Haslemere) Ltd
http://statistics.data.gov.uk/id/local-authority/38,Oxfordshire County Council,Support at Home 65+ Learning Disability,02/01/2024,5699,,3111581130,"-7,850.66",All Care GB Ltd
http://statistics.data.gov.uk/id/local-authority/38,Oxfordshire County Council,COMM DRAWDOWN FUNDNG,05/01/2024,8102,Payments to main contractor,2201184983,"-7,716.00",Oxford City Council
http://statistics.data.gov.uk/id/local-authority/38,Oxfordshire County Council,Support at Home 65+ Memory & Cognition,10/01/2024,5686,,3111588623,"-7,707.86",St Johns Residential Home
http://statistics.data.gov.uk/id/local-authority/38,Oxfordshire County Council,Support at Home 65+ Physical Support,10/01/2024,5686,,3111588271,"-7,678.57",Mon Choisy
http://statistics.data.gov.uk/id/local-authority/38,Oxfordshire County Council,MAINSTREAM-SECONDARY,18/01/2024,4322,"Season Tickets - Bus, Rail & Ferry",3111593443,"-7,383.50",Oxford Bus Company Ltd
http://statistics.data.gov.uk/id/local-authority/38,Oxfordshire County Council,Care Homes - Over 65 Physical Sypport,10/01/2024,5686,,3111587405,"-7,285.72",Enstone House
http://statistics.data.gov.uk/id/local-authority/38,Oxfordshire County Council,Support at Home U65 Learning Disability,30/01/2024,5682,,3111596478,"-7,040.39",The Brandon Trust
http://statistics.data.gov.uk/id/local-authority/38,Oxfordshire County Council,CHC Fast Track - Care Homes - Over 65,10/01/2024,5687,,3111585844,"-6,600.00",Abbey Crest Nursing Home
http://statistics.data.gov.uk/id/local-authority/38,Oxfordshire County Council,Care Homes - Over 65 Memory & Cognition,10/01/2024,5685,B*Cycle tracks,3111587479,"-6,570.69",Fewcott Healthcare Ltd
http://statistics.data.gov.uk/id/local-authority/38,Oxfordshire County Council,Continuing Care - Care Homes - 65+,10/01/2024,5687,,3111588752,"-6,565.56",The Close Nursing Home
http://statistics.data.gov.uk/id/local-authority/38,Oxfordshire County Council,Care Homes - Over 65 Memory & Cognition,10/01/2024,5686,,3111585558,"-6,489.26",Orders of St John
http://statistics.data.gov.uk/id/local-authority/38,Oxfordshire County Council,Continuing Care - Care Homes - 65+,10/01/2024,5687,,3111585864,"-6,399.00",Abbey Crest Nursing Home
http://statistics.data.gov.uk/id/local-authority/38,Oxfordshire County Council,COMM DRAWDOWN FUNDNG,17/01/2024,8102,Payments to main contractor,2201189079,"-6,153.73",Milestone Infrastructure Limited
http://statistics.data.gov.uk/id/local-authority/38,Oxfordshire County Council,Care Homes - Over 65 Physical Sypport,10/01/2024,5686,,3111585783,"-5,810.94",OSJ Contract - Stirlings
http://statistics.data.gov.uk/id/local-authority/38,Oxfordshire County Council,Support at Home 65+ Physical Support,10/01/2024,5685,B*Cycle tracks,3111587880,"-5,710.11",Heathfield House Nursing Home
http://statistics.data.gov.uk/id/local-authority/38,Oxfordshire County Council,CHC Fast Track - Care Homes - Over 65,10/01/2024,5687,,3111588803,"-5,685.00",The Cotswold Home
http://statistics.data.gov.uk/id/local-authority/38,Oxfordshire County Council,Care Homes - Over 65 Memory & Cognition,10/01/2024,5686,,3111588938,"-5,303.31",METHODIST HOMES
http://statistics.data.gov.uk/id/local-authority/38,Oxfordshire County Council,COMM DRAWDOWN FUNDNG,23/01/2024,8510,Other expenses,2201190996,"-5,290.00",MEPC Milton Park No.1 Ltd & MEPC Mi
http://statistics.data.gov.uk/id/local-authority/38,Oxfordshire County Council,COMM DRAWDOWN FUNDNG,23/01/2024,8510,Other expenses,2201190999,"-5,290.00",MEPC Milton Park No.1 Ltd & MEPC Mi
http://statistics.data.gov.uk/id/local-authority/38,Oxfordshire County Council,Support at Home U65 Learning Disability,10/01/2024,5688,,3111585409,"-5,258.13",UNITED RESPONSE
http://statistics.data.gov.uk/id/local-authority/38,Oxfordshire County Council,CHC Fast Track - Care Homes - Over 65,10/01/2024,5687,,3111587301,"-5,250.00",CUMNOR HILL HOUSE
http://statistics.data.gov.uk/id/local-authority/38,Oxfordshire County Council,Continuing Care - Care Homes - 65+,10/01/2024,5687,,3111585888,"-5,219.57",Abbey Crest Nursing Home
http://statistics.data.gov.uk/id/local-authority/38,Oxfordshire County Council,High Cost INMSS Placements,19/01/2024,5537,Payments to Other Establishments,3111593783,"-5,179.47",Swalcliffe Park school
http://statistics.data.gov.uk/id/local-authority/38,Oxfordshire County Council,ILEAD LOCAL FLOOD AUTHORITY,22/01/2024,2040,Agency Staff,2201190263,"-4,816.00",WATERMAN ASPEN LTD
http://statistics.data.gov.uk/id/local-authority/38,Oxfordshire County Council,Care Homes - Over 65 Physical Sypport,10/01/2024,5687,,3111588811,"-4,452.14",The Cotswold Home
http://statistics.data.gov.uk/id/local-authority/38,Oxfordshire County Council,CHC Fast Track - Care Homes - Over 65,10/01/2024,5687,,3111586871,"-4,421.76",WT UK Opco 4 Ltd C/O Care UK
http://statistics.data.gov.uk/id/local-authority/38,Oxfordshire County Council,CHC Fast Track - Care Homes - Under 65,10/01/2024,5687,,3111589208,"-4,285.71",MARIA MALLABAND CARE GROUP
http://statistics.data.gov.uk/id/local-authority/38,Oxfordshire County Council,Care Homes - Over 65 Memory & Cognition,10/01/2024,5687,,3111586581,"-4,258.57",METHODIST HOMES
http://statistics.data.gov.uk/id/local-authority/38,Oxfordshire County Council,CHC Fast Track - Care Homes - Over 65,10/01/2024,5687,,3111588814,"-4,128.57",The Cotswold Home
http://statistics.data.gov.uk/id/local-authority/38,Oxfordshire County Council,Care Homes - Over 65 Physical Sypport,10/01/2024,5686,,3111585763,"-4,080.02",Orders of St John
http://statistics.data.gov.uk/id/local-authority/38,Oxfordshire County Council,Support at Home 65+ Learning Disability,10/01/2024,5688,,3111585078,"-4,024.63",H F TRUST LTD
http://statistics.data.gov.uk/id/local-authority/38,Oxfordshire County Council,CHC Fast Track - Care Homes - Over 65,10/01/2024,5687,,3111588377,"-4,000.00",Penhurst Gardens
http://statistics.data.gov.uk/id/local-authority/38,Oxfordshire County Council,Support at Home 65+ Physical Support,10/01/2024,5686,,3111588023,"-3,900.00",Kirlena House
http://statistics.data.gov.uk/id/local-authority/38,Oxfordshire County Council,Continuing Care - Care Homes - 65+,10/01/2024,5687,,3111588447,"-3,888.26",RICHMOND VILLAGE WITNEY
http://statistics.data.gov.uk/id/local-authority/38,Oxfordshire County Council,Care Homes - Over 65 Physical Sypport,10/01/2024,5687,,3111588091,"-3,880.31",Lincroft Meadow
http://statistics.data.gov.uk/id/local-authority/38,Oxfordshire County Council,Funded Nursing Care  - Over 65,10/01/2024,5692,,3111586407,"-3,703.68",Bondcare (Henley) Ltd
http://statistics.data.gov.uk/id/local-authority/38,Oxfordshire County Council,Care Homes - Under 65 Memory & Cognition,10/01/2024,5686,,3111586227,"-3,698.97",Elysium Neurological Services (Badb
http://statistics.data.gov.uk/id/local-authority/38,Oxfordshire County Council,Bicester & Banbury Team,08/01/2024,2040,Agency Staff,2201185303,"-3,575.90",MATCHTECH GROUP PLC
http://statistics.data.gov.uk/id/local-authority/38,Oxfordshire County Council,Bicester & Banbury Team,11/01/2024,2040,Agency Staff,2201186693,"-3,575.90",MATCHTECH GROUP PLC
http://statistics.data.gov.uk/id/local-authority/38,Oxfordshire County Council,Continuing Care - Care Homes - 65+,10/01/2024,5687,,3111589117,"-3,560.57",SANCTUARY CARE LTD
http://statistics.data.gov.uk/id/local-authority/38,Oxfordshire County Council,CHC Fast Track - Care Homes - Over 65,10/01/2024,5687,,3111586532,"-3,497.14",METHODIST HOMES
http://statistics.data.gov.uk/id/local-authority/38,Oxfordshire County Council,Support at Home U65 Physical Support,10/01/2024,5690,,3111586465,"-3,478.37",Headway Oxford
http://statistics.data.gov.uk/id/local-authority/38,Oxfordshire County Council,Care Homes - Over 65 Memory & Cognition,10/01/2024,5687,,3111586707,"-3,393.54",Grace Care Service Ltd T/A Burford
http://statistics.data.gov.uk/id/local-authority/38,Oxfordshire County Council,Care Homes - Over 65 Physical Sypport,10/01/2024,5687,,3111587833,"-3,303.47",Cedar Court Care Home
http://statistics.data.gov.uk/id/local-authority/38,Oxfordshire County Council,Funded Nursing Care  - Over 65,10/01/2024,5692,,3111585050,"-3,295.64",Orders of St John
http://statistics.data.gov.uk/id/local-authority/38,Oxfordshire County Council,Care Homes - Over 65 Physical Sypport,10/01/2024,5687,,3111588908,"-3,278.57",Four Seasons (Headington) Ltd
http://statistics.data.gov.uk/id/local-authority/38,Oxfordshire County Council,CONCESSIONARY FARES,11/01/2024,5781,Payments to Transport Operators,3111589502,"-3,277.05",ABILITY (Northants) cic
http://statistics.data.gov.uk/id/local-authority/38,Oxfordshire County Council,Funded Nursing Care  - Over 65,10/01/2024,5692,,3111586372,"-3,264.26",Bondcare (Henley) Ltd
http://statistics.data.gov.uk/id/local-authority/38,Oxfordshire County Council,GYPSY & TRAVELLER SV,22/01/2024,3951,Non System - Electricity,3111594064,"-3,080.36",EDF Energy Customers Ltd
http://statistics.data.gov.uk/id/local-authority/38,Oxfordshire County Council,Support at Home 65+ Physical Support,30/01/2024,5699,,3111598786,"-3,076.64",Care Outlook Ltd
http://statistics.data.gov.uk/id/local-authority/38,Oxfordshire County Council,SERVICE MANAGER PLAC,18/01/2024,7190,Other Recovered Costs,3111593435,"-3,069.80",Redacted Personal Data
http://statistics.data.gov.uk/id/local-authority/38,Oxfordshire County Council,Care Homes - Over 65 Physical Sypport,10/01/2024,5686,,3111587266,"-3,016.29",Coxwell Hall & Mews Nursing Home
http://statistics.data.gov.uk/id/local-authority/38,Oxfordshire County Council,Care Homes - Over 65 Mental Health,10/01/2024,5685,B*Cycle tracks,3111586304,"-2,983.93",Barchester Healthcare Homes Ltd
http://statistics.data.gov.uk/id/local-authority/38,Oxfordshire County Council,LANDLORD & TENANT,09/01/2024,3980,Service Charges - Premises,2201185602,"-2,960.00",Cherwell DC
http://statistics.data.gov.uk/id/local-authority/38,Oxfordshire County Council,CHC Fast Track - Care Homes - Over 65,10/01/2024,5687,,3111589166,"-2,878.57",MARIA MALLABAND CARE GROUP
http://statistics.data.gov.uk/id/local-authority/38,Oxfordshire County Council,Funded Nursing Care  - Over 65,17/01/2024,5692,,3111593115,"-2,824.84",Lincroft Meadow
http://statistics.data.gov.uk/id/local-authority/38,Oxfordshire County Council,CHC Fast Track - Care Homes - Over 65,10/01/2024,5687,,3111588687,"-2,820.00",St Lukes Nursing Home (Oxford)
http://statistics.data.gov.uk/id/local-authority/38,Oxfordshire County Council,CHC Fast Track - Care Homes - Over 65,10/01/2024,5687,,3111588238,"-2,783.93",Mill House Nursing Home
http://statistics.data.gov.uk/id/local-authority/38,Oxfordshire County Council,ICT Operations & Maintenance,31/01/2024,5039,ICT Services,2201193297,"-2,689.80",8 * 8 UK Limited
http://statistics.data.gov.uk/id/local-authority/38,Oxfordshire County Council,Continuing Care - Care Homes - 65+,10/01/2024,5687,,3111589140,"-2,689.71",SANCTUARY CARE LTD
http://statistics.data.gov.uk/id/local-authority/38,Oxfordshire County Council,COMM DRAWDOWN FUNDNG,19/01/2024,8102,Payments to main contractor,2201189973,"-2,671.80",Milestone Infrastructure Limited
http://statistics.data.gov.uk/id/local-authority/38,Oxfordshire County Council,Care Homes - Over 65 Memory & Cognition,10/01/2024,5687,,3111588549,"-2,656.78",Barchester Healthcare Homes Ltd
http://statistics.data.gov.uk/id/local-authority/38,Oxfordshire County Council,MAINSTREAM-SECONDARY,17/01/2024,4330,Transport to School Activities,3111593221,"-2,640.00",24/7 LTD
http://statistics.data.gov.uk/id/local-authority/38,Oxfordshire County Council,NURSERY ED FUND,19/01/2024,5537,Payments to Other Establishments,3111593779,"-2,520.90",St Hugh of Lincoln Nursery School
http://statistics.data.gov.uk/id/local-authority/38,Oxfordshire County Council,Care Homes - Over 65 Physical Sypport,10/01/2024,5687,,3111586538,"-2,507.14",METHODIST HOMES
http://statistics.data.gov.uk/id/local-authority/38,Oxfordshire County Council,Support at Home 65+ Physical Support,02/01/2024,5699,,3111582365,"-2,384.17",We-Care-Recruitment Ltd
http://statistics.data.gov.uk/id/local-authority/38,Oxfordshire County Council,Continuing Care - Care Homes - 65+,10/01/2024,5687,,3111587754,"-2,357.14",Green Pastures Christian NH
http://statistics.data.gov.uk/id/local-authority/38,Oxfordshire County Council,Care Homes - Over 65 Memory & Cognition,10/01/2024,5686,,3111585580,"-2,349.11",Orders of St John
http://statistics.data.gov.uk/id/local-authority/38,Oxfordshire County Council,FOSTERING MAIN,23/01/2024,5548,B*Fostering - Special Rates & Plus Amou,3111594845,"-2,340.00",Redacted Personal Data
http://statistics.data.gov.uk/id/local-authority/38,Oxfordshire County Council,Care Homes - Over 65 Memory & Cognition,10/01/2024,5686,,3111588520,"-2,300.00",The Shrublands Centre
http://statistics.data.gov.uk/id/local-authority/38,Oxfordshire County Council,Support at Home 65+ Physical Support,30/01/2024,5699,,3111598810,"-2,225.07",Eleanor Nursing & Social Care Ltd
http://statistics.data.gov.uk/id/local-authority/38,Oxfordshire County Council,Homes for Ukraine - Guests,10/01/2024,5896,Adult Social Care - Other Transfer Pay,3111584684,"-2,200.00",Redacted Personal Data
http://statistics.data.gov.uk/id/local-authority/38,Oxfordshire County Council,,12/01/2024,1441,Uncleared Misc Income Receipts,3111590091,"-2,200.00",Redacted Personal Data
http://statistics.data.gov.uk/id/local-authority/38,Oxfordshire County Council,Independent Foster,10/01/2024,5559,,3111584731,"-2,181.24",Compass Fostering West Limited
http://statistics.data.gov.uk/id/local-authority/38,Oxfordshire County Council,Care Homes - Over 65 Physical Sypport,10/01/2024,5686,,3111586221,"-2,171.43",Ashdale Care Limited
http://statistics.data.gov.uk/id/local-authority/38,Oxfordshire County Council,Funded Nursing Care  - Over 65,10/01/2024,5692,,3111587216,"-2,165.71",CHURCHFIELDS CARE HOME
http://statistics.data.gov.uk/id/local-authority/38,Oxfordshire County Council,Funded Nursing Care  - Over 65,10/01/2024,5692,,3111588142,"-2,165.71",Meadow View Nursing Home
http://statistics.data.gov.uk/id/local-authority/38,Oxfordshire County Council,Care Homes - Over 65 Memory & Cognition,10/01/2024,5686,,3111587456,"-2,057.14",Fewcott Healthcare Ltd
http://statistics.data.gov.uk/id/local-authority/38,Oxfordshire County Council,Support at Home U65 Learning Disability,10/01/2024,5688,,3111584998,"-2,041.29",ADVANCE HOUSING & SUPPORT LTD
http://statistics.data.gov.uk/id/local-authority/38,Oxfordshire County Council,Care Homes - Over 65 Physical Sypport,10/01/2024,5686,,3111588984,"-1,976.14",MARIPOSA CARE GROUP LIMITED
http://statistics.data.gov.uk/id/local-authority/38,Oxfordshire County Council,Funded Nursing Care  - Over 65,10/01/2024,5692,,3111588323,"-1,946.00",Oxford Beaumont
http://statistics.data.gov.uk/id/local-authority/38,Oxfordshire County Council,Support at Home 65+ Memory & Cognition,30/01/2024,5699,,3111598501,"-1,922.90",Ringstead Healthcare Limited
http://statistics.data.gov.uk/id/local-authority/38,Oxfordshire County Council,Care Homes - Over 65 Physical Sypport,10/01/2024,5686,,3111586771,"-1,857.14",CARE UK COMMUNITY PARTNERSHIPS LIMI
http://statistics.data.gov.uk/id/local-authority/38,Oxfordshire County Council,Care Homes - Over 65 Physical Sypport,10/01/2024,5687,,3111587885,"-1,857.14",Heathfield House Nursing Home
http://statistics.data.gov.uk/id/local-authority/38,Oxfordshire County Council,Care Homes - Over 65 Physical Sypport,10/01/2024,5686,,3111585304,"-1,854.56",Orders of St John
http://statistics.data.gov.uk/id/local-authority/38,Oxfordshire County Council,Support at Home U65 Memory & Cognition,10/01/2024,5685,B*Cycle tracks,3111584925,"-1,853.30",Orders of St John
http://statistics.data.gov.uk/id/local-authority/38,Oxfordshire County Council,Care Homes - Over 65 Physical Sypport,10/01/2024,5685,B*Cycle tracks,3111588869,"-1,803.64",Four Seasons (Headington) Ltd
http://statistics.data.gov.uk/id/local-authority/38,Oxfordshire County Council,Funded Nursing Care  - Over 65,10/01/2024,5692,,3111588983,"-1,789.07",MARIPOSA CARE GROUP LIMITED
http://statistics.data.gov.uk/id/local-authority/38,Oxfordshire County Council,Support at Home 65+ Physical Support,02/01/2024,5689,,3111580067,"-1,787.71",Alina Homecare Ltd
http://statistics.data.gov.uk/id/local-authority/38,Oxfordshire County Council,Care Homes - Over 65 Physical Sypport,10/01/2024,5685,B*Cycle tracks,3111586398,"-1,786.55",Bondcare (Henley) Ltd
http://statistics.data.gov.uk/id/local-authority/38,Oxfordshire County Council,Care Homes - Over 65 Memory & Cognition,10/01/2024,5686,,3111588952,"-1,770.25",The Langston
http://statistics.data.gov.uk/id/local-authority/38,Oxfordshire County Council,Continuing Care - Care Homes - Under 65,10/01/2024,5687,,3111589215,"-1,750.00",Wytham House
http://statistics.data.gov.uk/id/local-authority/38,Oxfordshire County Council,Care Homes - Over 65 Physical Sypport,10/01/2024,5686,,3111585552,"-1,730.92",Orders of St John
http://statistics.data.gov.uk/id/local-authority/38,Oxfordshire County Council,Support at Home 65+ Mental Health,10/01/2024,5686,,3111585924,"-1,730.92",Orders of St John
http://statistics.data.gov.uk/id/local-authority/38,Oxfordshire County Council,Funded Nursing Care  - Over 65,10/01/2024,5692,,3111587698,"-1,726.29",Green Gates NH (BUPA)
http://statistics.data.gov.uk/id/local-authority/38,Oxfordshire County Council,NURSERY ED FUND,16/01/2024,5537,Payments to Other Establishments,3111590505,"-1,710.24",Cygnet Nursery
http://statistics.data.gov.uk/id/local-authority/38,Oxfordshire County Council,Care Homes - Over 65 Memory & Cognition,10/01/2024,5686,,3111585834,"-1,710.00",Orders of St John
http://statistics.data.gov.uk/id/local-authority/38,Oxfordshire County Council,NURSERY ED FUND,16/01/2024,5537,Payments to Other Establishments,3111590632,"-1,679.70",Child First (Bicester)
http://statistics.data.gov.uk/id/local-authority/38,Oxfordshire County Council,Care Homes - Over 65 Memory & Cognition,10/01/2024,5687,,3111586213,"-1,671.03",Didcot Care Home Ltd
http://statistics.data.gov.uk/id/local-authority/38,Oxfordshire County Council,Support at Home U65 MH OBC Contract,31/01/2024,5699,,3111598895,"-1,648.20",Ringstead Healthcare Limited
http://statistics.data.gov.uk/id/local-authority/38,Oxfordshire County Council,Independent Foster,10/01/2024,5561,B* Bus Shelter Reps & Cleansing,3111584735,"-1,615.77",Compass Fostering West Limited
http://statistics.data.gov.uk/id/local-authority/38,Oxfordshire County Council,Support at Home U65 Learning Disability,10/01/2024,5688,,3111586838,"-1,565.46",Sanctuary Supported Living
http://statistics.data.gov.uk/id/local-authority/38,Oxfordshire County Council,Care Homes - Under 65 Leaning Disability,10/01/2024,5686,,3111586169,"-1,561.45",Accomplish
http://statistics.data.gov.uk/id/local-authority/38,Oxfordshire County Council,Support at Home 65+ Physical Support,15/01/2024,5899,Social Care - Direct Payments,3111590133,"-1,560.32",Redacted Personal Data
http://statistics.data.gov.uk/id/local-authority/38,Oxfordshire County Council,Care Homes - Over 65 Physical Sypport,10/01/2024,5686,,3111587844,"-1,557.14",HEALTHCARE HOMES (SPRING) LIMITED
http://statistics.data.gov.uk/id/local-authority/38,Oxfordshire County Council,Care Homes - Under 65 MH - OBC Contract,10/01/2024,5686,,3111587344,"-1,542.86",Edenplace Ltd
http://statistics.data.gov.uk/id/local-authority/38,Oxfordshire County Council,Funded Nursing Care  - Over 65,10/01/2024,5692,,3111586959,"-1,537.97",Chacombe Park Care Home
http://statistics.data.gov.uk/id/local-authority/38,Oxfordshire County Council,COMM DRAWDOWN FUNDNG,11/01/2024,8511,Legal Fees & expenses,3111589498,"-1,530.00",OCC One Time Vendor
http://statistics.data.gov.uk/id/local-authority/38,Oxfordshire County Council,Support at Home 65+ Memory & Cognition,02/01/2024,5699,,3111581473,"-1,510.46",Care Outlook Ltd
http://statistics.data.gov.uk/id/local-authority/38,Oxfordshire County Council,COMM DRAWDOWN FUNDNG,08/01/2024,8510,Other expenses,2201185279,"-1,507.00",Oxford Direct Services Ltd
http://statistics.data.gov.uk/id/local-authority/38,Oxfordshire County Council,Funded Nursing Care  - Over 65,10/01/2024,5692,,3111587871,"-1,506.58",Heathfield House Nursing Home
http://statistics.data.gov.uk/id/local-authority/38,Oxfordshire County Council,ADOPTION ALLOWANCES,30/01/2024,5664,B*Holiday Allowance,3111596562,"-1,500.34",Redacted Personal Data
http://statistics.data.gov.uk/id/local-authority/38,Oxfordshire County Council,Support at Home U65 Physical Support,30/01/2024,5699,,3111598519,"-1,483.39",Ringstead Healthcare Limited
http://statistics.data.gov.uk/id/local-authority/38,Oxfordshire County Council,CHC Fast Track - Care Homes - Over 65,10/01/2024,5687,,3111589138,"-1,347.14",SANCTUARY CARE LTD
http://statistics.data.gov.uk/id/local-authority/38,Oxfordshire County Council,Care Homes - Over 65 Physical Sypport,10/01/2024,5686,,3111586758,"-1,346.87",CARE UK COMMUNITY PARTNERSHIPS LIMI
http://statistics.data.gov.uk/id/local-authority/38,Oxfordshire County Council,Support at Home 65+ Other /Soc Isolation,10/01/2024,5685,B*Cycle tracks,3111585021,"-1,323.79",Orders of St John
http://statistics.data.gov.uk/id/local-authority/38,Oxfordshire County Council,UASC 16&17,02/01/2024,5549,B*Fostering Allowance - Regulation 38,3111579826,"-1,300.84",Redacted Personal Data
http://statistics.data.gov.uk/id/local-authority/38,Oxfordshire County Council,Care Homes - Over 65 Memory & Cognition,10/01/2024,5687,,3111584891,"-1,294.73",Vale House
http://statistics.data.gov.uk/id/local-authority/38,Oxfordshire County Council,Support at Home 65+ Physical Support,02/01/2024,5696,,3111579616,"-1,280.48",All Care GB Ltd
http://statistics.data.gov.uk/id/local-authority/38,Oxfordshire County Council,Care Homes - Over 65 Physical Sypport,10/01/2024,5686,,3111584969,"-1,236.37",Orders of St John
http://statistics.data.gov.uk/id/local-authority/38,Oxfordshire County Council,Support at Home 65+ Physical Support,10/01/2024,5686,,3111585402,"-1,236.37",Orders of St John
http://statistics.data.gov.uk/id/local-authority/38,Oxfordshire County Council,Support at Home 65+ Learning Disability,10/01/2024,5688,,3111589474,"-1,188.99",The Brandon Trust
http://statistics.data.gov.uk/id/local-authority/38,Oxfordshire County Council,CHC Fast Track - Care Homes - Over 65,10/01/2024,5687,,3111588691,"-1,175.00",St Lukes Nursing Home (Oxford)
http://statistics.data.gov.uk/id/local-authority/38,Oxfordshire County Council,Support at Home 65+ Physical Support,31/01/2024,5699,,3111598903,"-1,167.48",Ringstead Healthcare Limited
http://statistics.data.gov.uk/id/local-authority/38,Oxfordshire County Council,Support at Home 65+ Physical Support,31/01/2024,5699,,3111598901,"-1,153.74",Ringstead Healthcare Limited
http://statistics.data.gov.uk/id/local-authority/38,Oxfordshire County Council,Care Homes - Over 65 Physical Sypport,10/01/2024,5687,,3111584993,"-1,146.36",Orders of St John
http://statistics.data.gov.uk/id/local-authority/38,Oxfordshire County Council,Support at Home U65 Learning Disability,10/01/2024,5688,,3111585209,"-1,131.15",VOYAGE CARE LIMITED
http://statistics.data.gov.uk/id/local-authority/38,Oxfordshire County Council,NURSERY ED FUND,16/01/2024,5537,Payments to Other Establishments,3111590596,"-1,125.60",A B C Nursery
http://statistics.data.gov.uk/id/local-authority/38,Oxfordshire County Council,Support at Home U65 Physical Support,30/01/2024,5699,,3111598094,"-1,109.18",Day and Nightcare Assistance
http://statistics.data.gov.uk/id/local-authority/38,Oxfordshire County Council,Support at Home 65+ Physical Support,02/01/2024,5699,,3111582142,"-1,098.80",Ringstead Healthcare Limited
http://statistics.data.gov.uk/id/local-authority/38,Oxfordshire County Council,NURSERY ED FUND,16/01/2024,5537,Payments to Other Establishments,3111590630,"-1,068.90",The Old Station Nursery
http://statistics.data.gov.uk/id/local-authority/38,Oxfordshire County Council,Care Homes - Over 65 Memory & Cognition,10/01/2024,5687,,3111588426,"-1,065.35",Richmond Letcombe Regis
http://statistics.data.gov.uk/id/local-authority/38,Oxfordshire County Council,MAINSTREAM-SECONDARY,17/01/2024,4330,Transport to School Activities,3111593330,"-1,041.83",Pulham & Sons (Coaches) Ltd
http://statistics.data.gov.uk/id/local-authority/38,Oxfordshire County Council,GYPSY & TRAVELLER SV,30/01/2024,3951,Non System - Electricity,3111595936,"-1,034.85",EDF Energy Customers Ltd
http://statistics.data.gov.uk/id/local-authority/38,Oxfordshire County Council,MAINSTREAM-SECONDARY,17/01/2024,4330,Transport to School Activities,3111593220,"-1,033.56",24/7 LTD
http://statistics.data.gov.uk/id/local-authority/38,Oxfordshire County Council,MAINSTREAM-SECONDARY,17/01/2024,4330,Transport to School Activities,3111593222,"-1,033.34",24/7 LTD
http://statistics.data.gov.uk/id/local-authority/38,Oxfordshire County Council,Hospital Discharge and Reablement,02/01/2024,5699,,3111581026,"-1,017.60",Acquire Care Ltd
http://statistics.data.gov.uk/id/local-authority/38,Oxfordshire County Council,Funded Nursing Care  - Over 65,10/01/2024,5692,,3111585833,"-1,004.39",Abbey Crest Nursing Home
http://statistics.data.gov.uk/id/local-authority/38,Oxfordshire County Council,CHC Fast Track - Care Homes - Over 65,10/01/2024,5687,,3111588280,"-1,000.00",Newland House
http://statistics.data.gov.uk/id/local-authority/38,Oxfordshire County Council,SEN TRANSPORT,03/01/2024,4330,Transport to School Activities,3111582777,"-1,000.00",The Oxfordshire Taxi Company Ltd T/
http://statistics.data.gov.uk/id/local-authority/38,Oxfordshire County Council,Continuing Care - Care Homes - 65+,10/01/2024,5687,,3111589229,"-1,000.00",Wytham House
http://statistics.data.gov.uk/id/local-authority/38,Oxfordshire County Council,Care Homes - Over 65 Physical Sypport,10/01/2024,5687,,3111585058,-982.59,Orders of St John
http://statistics.data.gov.uk/id/local-authority/38,Oxfordshire County Council,Support at Home 65+ Physical Support,02/01/2024,5699,,3111581795,-970.20,Direct Link Care Ltd
http://statistics.data.gov.uk/id/local-authority/38,Oxfordshire County Council,Family Solutions Plus Non-staff - North,18/01/2024,5415,Residential Activities,3111593469,-954.60,Fonjock�s Social Work Practice Ltd
http://statistics.data.gov.uk/id/local-authority/38,Oxfordshire County Council,Direct payments,17/01/2024,5554,Childrens' Social Care - Direct Payments,3111593351,-867.20,Redacted Personal Data
http://statistics.data.gov.uk/id/local-authority/38,Oxfordshire County Council,Care Homes - Over 65 Memory & Cognition,10/01/2024,5686,,3111584927,-865.46,Orders of St John
http://statistics.data.gov.uk/id/local-authority/38,Oxfordshire County Council,Care Homes - Over 65 Physical Sypport,10/01/2024,5686,,3111584959,-865.46,Orders of St John
http://statistics.data.gov.uk/id/local-authority/38,Oxfordshire County Council,Support at Home 65+ Memory & Cognition,10/01/2024,5686,,3111585323,-865.46,Orders of St John
http://statistics.data.gov.uk/id/local-authority/38,Oxfordshire County Council,Care Homes - Over 65 Physical Sypport,10/01/2024,5686,,3111585364,-865.46,Orders of St John
http://statistics.data.gov.uk/id/local-authority/38,Oxfordshire County Council,Support at Home 65+ Physical Support,30/01/2024,5689,,3111597449,-865.24,Oasis Private Care Ltd
http://statistics.data.gov.uk/id/local-authority/38,Oxfordshire County Council,FOSTERING MAIN,30/01/2024,5569,,3111596073,-851.71,Redacted Personal Data
http://statistics.data.gov.uk/id/local-authority/38,Oxfordshire County Council,Support at Home 65+ Memory & Cognition,10/01/2024,5686,,3111587393,-850.00,Enstone House
http://statistics.data.gov.uk/id/local-authority/38,Oxfordshire County Council,Support at Home 65+ Physical Support,31/01/2024,5699,,3111598900,-837.84,Ringstead Healthcare Limited
http://statistics.data.gov.uk/id/local-authority/38,Oxfordshire County Council,2 YEAR OLD FUNDING,16/01/2024,5537,Payments to Other Establishments,3111590703,-806.54,The Warriner Multi Academy Trust
http://statistics.data.gov.uk/id/local-authority/38,Oxfordshire County Council,Support at Home 65+ Physical Support,26/01/2024,5693,,3111595437,-768.88,SylvianCare Ltd
http://statistics.data.gov.uk/id/local-authority/38,Oxfordshire County Council,MAINSTREAM-SECONDARY,17/01/2024,4330,Transport to School Activities,3111593223,-762.96,24/7 LTD
http://statistics.data.gov.uk/id/local-authority/38,Oxfordshire County Council,Support at Home U65 Learning Disability,18/01/2024,5227,Other Transport Arrangements,3111593454,-759.17,Excelsior Taxis Ltd
http://statistics.data.gov.uk/id/local-authority/38,Oxfordshire County Council,Care Homes - Over 65 Physical Sypport,10/01/2024,5685,B*Cycle tracks,3111588391,-749.11,Priory CC5 Limited
http://statistics.data.gov.uk/id/local-authority/38,Oxfordshire County Council,Support at Home U65 Physical Support,31/01/2024,5699,,3111598908,-741.69,Ringstead Healthcare Limited
http://statistics.data.gov.uk/id/local-authority/38,Oxfordshire County Council,FOSTERING MAIN,02/01/2024,5549,B*Fostering Allowance - Regulation 38,3111580310,-741.53,Redacted Personal Data
http://statistics.data.gov.uk/id/local-authority/38,Oxfordshire County Council,Funded Nursing Care  - Over 65,10/01/2024,5692,,3111586509,-721.90,Bridge House
http://statistics.data.gov.uk/id/local-authority/38,Oxfordshire County Council,Support at Home 65+ Physical Support,02/01/2024,5699,,3111581086,-721.09,Adult Transition Services Ltd (ATrS
http://statistics.data.gov.uk/id/local-authority/38,Oxfordshire County Council,Support at Home 65+ Physical Support,31/01/2024,5699,,3111598906,-721.09,Ringstead Healthcare Limited
http://statistics.data.gov.uk/id/local-authority/38,Oxfordshire County Council,Support at Home 65+ Physical Support,30/01/2024,5699,,3111598504,-714.22,Ringstead Healthcare Limited
http://statistics.data.gov.uk/id/local-authority/38,Oxfordshire County Council,Support at Home 65+ Physical Support,30/01/2024,5699,,3111598157,-700.48,Direct Link Care Ltd
http://statistics.data.gov.uk/id/local-authority/38,Oxfordshire County Council,Funded Nursing Care  - Over 65,10/01/2024,5692,,3111589188,-690.52,MARIA MALLABAND CARE GROUP
http://statistics.data.gov.uk/id/local-authority/38,Oxfordshire County Council,CHC Fast Track - Care Homes - Over 65,10/01/2024,5687,,3111588551,-685.71,Barchester Healthcare Homes Ltd
http://statistics.data.gov.uk/id/local-authority/38,Oxfordshire County Council,Support at Home 65+ Physical Support,30/01/2024,5698,,3111597033,-670.76,Day & Night Care Assistance
http://statistics.data.gov.uk/id/local-authority/38,Oxfordshire County Council,Care Homes - Over 65 Physical Sypport,10/01/2024,5687,,3111587883,-667.73,Heathfield House Nursing Home
http://statistics.data.gov.uk/id/local-authority/38,Oxfordshire County Council,Support at Home 65+ Physical Support,02/01/2024,5699,,3111581300,-655.85,BBC CARE SERVICE LIMITED
http://statistics.data.gov.uk/id/local-authority/38,Oxfordshire County Council,Care Homes - Over 65 Physical Sypport,10/01/2024,5687,,3111589137,-647.37,SANCTUARY CARE LTD
http://statistics.data.gov.uk/id/local-authority/38,Oxfordshire County Council,NURSERY ED FUND,16/01/2024,5537,Payments to Other Establishments,3111590711,-641.34,Louise Gardner
http://statistics.data.gov.uk/id/local-authority/38,Oxfordshire County Council,Support at Home 65+ Physical Support,02/01/2024,5699,,3111581266,-624.95,BBC CARE SERVICE LIMITED
http://statistics.data.gov.uk/id/local-authority/38,Oxfordshire County Council,Support at Home 65+ Physical Support,02/01/2024,5699,,3111582416,-618.02,YOD Ltd
http://statistics.data.gov.uk/id/local-authority/38,Oxfordshire County Council,2 YEAR OLD FUNDING,16/01/2024,5537,Payments to Other Establishments,3111590512,-617.25,Charlbury Pre-School
http://statistics.data.gov.uk/id/local-authority/38,Oxfordshire County Council,LANDLORD & TENANT,12/01/2024,8102,Payments to main contractor,2201186831,-600.00,BARNES AND WELLS TREE CARE LTD
http://statistics.data.gov.uk/id/local-authority/38,Oxfordshire County Council,Funded Nursing Care  - Over 65,10/01/2024,5692,,3111587367,-596.36,Oakland Wantage Care Home Limited
http://statistics.data.gov.uk/id/local-authority/38,Oxfordshire County Council,Funded Nursing Care  - Over 65,10/01/2024,5692,,3111588439,-596.36,Richmond Letcombe Regis
http://statistics.data.gov.uk/id/local-authority/38,Oxfordshire County Council,Support at Home 65+ Mental Health,31/01/2024,5699,,3111598899,-570.00,Ringstead Healthcare Limited
http://statistics.data.gov.uk/id/local-authority/38,Oxfordshire County Council,LEGAL BUDGET,17/01/2024,5251,Legal Costs,3111593323,-560.00,Caring for Communities and People
http://statistics.data.gov.uk/id/local-authority/38,Oxfordshire County Council,FOSTERING MAIN,11/01/2024,5532,B*Fostering - Loan Equipment,3111589499,-544.29,Redacted Personal Data
http://statistics.data.gov.uk/id/local-authority/38,Oxfordshire County Council,Support at Home 65+ Physical Support,26/01/2024,5693,,3111595436,-538.22,SylvianCare Ltd
http://statistics.data.gov.uk/id/local-authority/38,Oxfordshire County Council,Funded Nursing Care  - Over 65,10/01/2024,5692,,3111588851,-533.58,The Grange Care Centre
http://statistics.data.gov.uk/id/local-authority/38,Oxfordshire County Council,FOSTERING MAIN,11/01/2024,5549,B*Fostering Allowance - Regulation 38,3111589500,-524.47,Redacted Personal Data
http://statistics.data.gov.uk/id/local-authority/38,Oxfordshire County Council,UASC 16&17,16/01/2024,5663,B*Birthday Allowance,9300062505,-520.40,OCC SS Oxford City Div 1 Cash
http://statistics.data.gov.uk/id/local-authority/38,Oxfordshire County Council,LANDLORD & TENANT,08/01/2024,8102,Payments to main contractor,2201185123,-517.21,Agility Eco Services Ltd
http://statistics.data.gov.uk/id/local-authority/38,Oxfordshire County Council,Support at Home 65+ Physical Support,02/01/2024,5699,,3111581873,-508.20,Golden Atara Ltd
http://statistics.data.gov.uk/id/local-authority/38,Oxfordshire County Council,ADOPTION ALLOWANCES,16/01/2024,5664,B*Holiday Allowance,3111591087,-507.43,Redacted Personal Data
http://statistics.data.gov.uk/id/local-authority/38,Oxfordshire County Council,UASC 16&17,29/01/2024,5785,Client Lodgings and Accommodation,3111595847,-507.39,Response Organisation
http://statistics.data.gov.uk/id/local-authority/38,Oxfordshire County Council,Funded Nursing Care  - Over 65,10/01/2024,5692,,3111585976,-502.19,ACER HEALTHCARE LTD
http://statistics.data.gov.uk/id/local-authority/38,Oxfordshire County Council,Funded Nursing Care  - Over 65,10/01/2024,5692,,3111586189,-502.19,Didcot Care Home Ltd
http://statistics.data.gov.uk/id/local-authority/38,Oxfordshire County Council,Funded Nursing Care  - Over 65,10/01/2024,5692,,3111588178,-502.19,Merryfield Nursing Home
http://statistics.data.gov.uk/id/local-authority/38,Oxfordshire County Council,Funded Nursing Care  - Over 65,10/01/2024,5692,,3111588315,-502.19,Oxford Beaumont
http://statistics.data.gov.uk/id/local-authority/38,Oxfordshire County Council,Funded Nursing Care  - Over 65,10/01/2024,5692,,3111589124,-502.19,SANCTUARY CARE LTD
http://statistics.data.gov.uk/id/local-authority/38,Oxfordshire County Council,ICT Operations & Maintenance,19/01/2024,5072,Telephone - Equipment,2201190116,-502.13,Vodafone
http://statistics.data.gov.uk/id/local-authority/38,Oxfordshire County Council,Fire Protection,10/01/2024,5251,Legal Costs,2201186039,500.00,12CP Barristers
http://statistics.data.gov.uk/id/local-authority/38,Oxfordshire County Council,LEGAL SERVICES,25/01/2024,5251,Legal Costs,2201191694,500.00,A Collinson
http://statistics.data.gov.uk/id/local-authority/38,Oxfordshire County Council,Councillors Priorities Fund,16/01/2024,4940,Other Services,3111593062,500.00,Brightwell-cum-Sotwell Environment
http://statistics.data.gov.uk/id/local-authority/38,Oxfordshire County Council,Oxfordshire Adoption Support Fund,24/01/2024,4861,Hired and Contracted Services,2201191064,500.00,Dr Ciorsdan Anderson
http://statistics.data.gov.uk/id/local-authority/38,Oxfordshire County Council,POST18 UASC DCSF FND,23/01/2024,5573,,3111594664,500.00,Redacted Personal Data
http://statistics.data.gov.uk/id/local-authority/38,Oxfordshire County Council,LEGAL BUDGET,23/01/2024,5251,Legal Costs,2201190867,500.00,"Griffiths Robertson, Solicitors"
http://statistics.data.gov.uk/id/local-authority/38,Oxfordshire County Council,RBWM Adoption Support Fund,18/01/2024,4861,Hired and Contracted Services,2201189145,500.00,Heads & Hearts Ltd
http://statistics.data.gov.uk/id/local-authority/38,Oxfordshire County Council,Reading Adoption Support Fund,04/01/2024,4861,Hired and Contracted Services,2201184711,500.00,Holistic Health Ltd
http://statistics.data.gov.uk/id/local-authority/38,Oxfordshire County Council,Panel Costs,23/01/2024,4940,Other Services,2201190883,500.00,Janet Fishwick
http://statistics.data.gov.uk/id/local-authority/38,Oxfordshire County Council,Voice of Customer,19/01/2024,4940,Other Services,2201190126,500.00,Lee Hecht Harrison Penna Limited
http://statistics.data.gov.uk/id/local-authority/38,Oxfordshire County Council,LAC PUPIL PREMIUM,16/01/2024,5537,Payments to Other Establishments,3111590974,500.00,Millbrook Primary School
http://statistics.data.gov.uk/id/local-authority/38,Oxfordshire County Council,SEN Early Intervention Team,05/01/2024,5380,"Author, Speaker and Lecturer Fees",3111583104,500.00,OCC One Time Vendor
http://statistics.data.gov.uk/id/local-authority/38,Oxfordshire County Council,Business Rates and Insurance Payout,05/01/2024,5055,Insurance Costs,3111583241,500.00,OCC One Time Vendor
http://statistics.data.gov.uk/id/local-authority/38,Oxfordshire County Council,Business Rates and Insurance Payout,11/01/2024,5055,Insurance Costs,3111589519,500.00,OCC One Time Vendor
http://statistics.data.gov.uk/id/local-authority/38,Oxfordshire County Council,Business Rates and Insurance Payout,11/01/2024,5055,Insurance Costs,3111589520,500.00,OCC One Time Vendor
http://statistics.data.gov.uk/id/local-authority/38,Oxfordshire County Council,Business Rates and Insurance Payout,22/01/2024,5055,Insurance Costs,3111594002,500.00,OCC One Time Vendor
http://statistics.data.gov.uk/id/local-authority/38,Oxfordshire County Council,Business Rates and Insurance Payout,31/01/2024,5055,Insurance Costs,3111598971,500.00,OCC One Time Vendor
http://statistics.data.gov.uk/id/local-authority/38,Oxfordshire County Council,Support at Home U65 Learning Disability,10/01/2024,5227,Other Transport Arrangements,3111584572,500.00,Oxfordlinks
http://statistics.data.gov.uk/id/local-authority/38,Oxfordshire County Council,Councillors Priorities Fund,25/01/2024,4940,Other Services,3111595116,500.00,Oxfordshire Fund for Music
http://statistics.data.gov.uk/id/local-authority/38,Oxfordshire County Council,Councillors Priorities Fund,11/01/2024,4940,Other Services,3111589761,500.00,Oxfordshire Play Association
http://statistics.data.gov.uk/id/local-authority/38,Oxfordshire County Council,Councillors Priorities Fund,11/01/2024,4940,Other Services,3111589764,500.00,Oxfordshire Play Association
http://statistics.data.gov.uk/id/local-authority/38,Oxfordshire County Council,Councillors Priorities Fund,25/01/2024,4940,Other Services,3111595112,500.00,Oxfordshire Play Association
http://statistics.data.gov.uk/id/local-authority/38,Oxfordshire County Council,SEN TRANSPORT,12/01/2024,4330,Transport to School Activities,3111589935,500.00,Oxon Transport Services Ltd
http://statistics.data.gov.uk/id/local-authority/38,Oxfordshire County Council,CHC Fast Track - Care Homes - Over 65,10/01/2024,5687,,3111588378,500.00,Penhurst Gardens
http://statistics.data.gov.uk/id/local-authority/38,Oxfordshire County Council,SEN Alternative Provision,12/01/2024,4861,Hired and Contracted Services,3111590050,500.00,THE DARE2DREAM FOUNDATION
http://statistics.data.gov.uk/id/local-authority/38,Oxfordshire County Council,SEN Alternative Provision,12/01/2024,4861,Hired and Contracted Services,3111590056,500.00,THE DARE2DREAM FOUNDATION
http://statistics.data.gov.uk/id/local-authority/38,Oxfordshire County Council,SEN Alternative Provision,12/01/2024,4861,Hired and Contracted Services,3111590072,500.00,THE DARE2DREAM FOUNDATION
http://statistics.data.gov.uk/id/local-authority/38,Oxfordshire County Council,SEN Alternative Provision,12/01/2024,4861,Hired and Contracted Services,3111590073,500.00,THE DARE2DREAM FOUNDATION
http://statistics.data.gov.uk/id/local-authority/38,Oxfordshire County Council,FOSTERING MAIN,16/01/2024,5227,Other Transport Arrangements,3111591624,500.58,Redacted Personal Data
http://statistics.data.gov.uk/id/local-authority/38,Oxfordshire County Council,NE OCCG EQ,23/01/2024,4450,Disability Aids and Equipment,2201191046,500.80,Aurora Meldreth Manor
http://statistics.data.gov.uk/id/local-authority/38,Oxfordshire County Council,Support at Home 65+ Memory & Cognition,10/01/2024,5690,,3111585479,501.00,Orders of St John
http://statistics.data.gov.uk/id/local-authority/38,Oxfordshire County Council,FOSTERING MAIN,09/01/2024,5227,Other Transport Arrangements,3111584493,501.11,Redacted Personal Data
http://statistics.data.gov.uk/id/local-authority/38,Oxfordshire County Council,Support at Home U65 Learning Disability,30/01/2024,5689,,3111596912,501.29,Care Outlook Ltd
http://statistics.data.gov.uk/id/local-authority/38,Oxfordshire County Council,Support at Home U65 Physical Support,02/01/2024,5689,,3111580791,501.29,Home Helpers Care Ltd
http://statistics.data.gov.uk/id/local-authority/38,Oxfordshire County Council,Support at Home 65+ Physical Support,05/01/2024,5693,,3111583199,501.33,Care with Care Ltd
http://statistics.data.gov.uk/id/local-authority/38,Oxfordshire County Council,LIBRARY COLLECTIONS,04/01/2024,4539,"Books, DVDs and CDs",2201184830,501.42,Bolinda UK Ltd
http://statistics.data.gov.uk/id/local-authority/38,Oxfordshire County Council,Support at Home 65+ Physical Support,17/01/2024,5693,,3111593176,501.51,HEALTHCARE ACCESS LTD
http://statistics.data.gov.uk/id/local-authority/38,Oxfordshire County Council,LANDLORD & TENANT,31/01/2024,4001,Uniform Business Rates,3500102900,502.00,West Oxfordshire District Council
http://statistics.data.gov.uk/id/local-authority/38,Oxfordshire County Council,LANDLORD & TENANT,31/01/2024,4001,Uniform Business Rates,3500102904,502.00,West Oxfordshire District Council
http://statistics.data.gov.uk/id/local-authority/38,Oxfordshire County Council,Support at Home U65 Physical Support,09/01/2024,5227,Other Transport Arrangements,3111583795,502.02,LINK SHIRES LTD
http://statistics.data.gov.uk/id/local-authority/38,Oxfordshire County Council,COMM DRAWDOWN FUNDNG,29/01/2024,8102,Payments to main contractor,2201192628,503.00,VolkerHighways
http://statistics.data.gov.uk/id/local-authority/38,Oxfordshire County Council,UASC 16&17,03/01/2024,5665,B*Fostering Project Care Fee,9300062395,503.20,OCC SS Oxford City Div 1 Cash
http://statistics.data.gov.uk/id/local-authority/38,Oxfordshire County Council,Support at Home U65 Learning Disability,30/01/2024,5682,,3111596530,503.21,The Brandon Trust
http://statistics.data.gov.uk/id/local-authority/38,Oxfordshire County Council,Support at Home 65+ Physical Support,30/01/2024,5689,,3111597626,503.58,Oxfordshire Crossroads
http://statistics.data.gov.uk/id/local-authority/38,Oxfordshire County Council,PREMISES,15/01/2024,4070,Cleaning services,2201187860,503.60,D F Williams Cleaning Services Ltd
http://statistics.data.gov.uk/id/local-authority/38,Oxfordshire County Council,Quality TPPG,08/01/2024,5537,Payments to Other Establishments,3111583619,504.00,Fritwell CofE Primary School
http://statistics.data.gov.uk/id/local-authority/38,Oxfordshire County Council,Support at Home U65 Physical Support,16/01/2024,5899,Social Care - Direct Payments,3111591729,504.00,Redacted Personal Data
http://statistics.data.gov.uk/id/local-authority/38,Oxfordshire County Council,Staff Travel Benefits,29/01/2024,4341,B*Staff Self Drive Vehicle Hire,2201192551,504.17,Cyclescheme Ltd
http://statistics.data.gov.uk/id/local-authority/38,Oxfordshire County Council,Support at Home U65 Sensory Support,16/01/2024,5899,Social Care - Direct Payments,3111592128,504.40,Redacted Personal Data
http://statistics.data.gov.uk/id/local-authority/38,Oxfordshire County Council,FOSTERING MAIN,09/01/2024,5227,Other Transport Arrangements,3111584495,504.65,Redacted Personal Data
http://statistics.data.gov.uk/id/local-authority/38,Oxfordshire County Council,LEAVING CARE CITY 2,16/01/2024,4685,Clothing and Uniforms,9300062528,504.80,OCC SS Witney Area Off Cash
http://statistics.data.gov.uk/id/local-authority/38,Oxfordshire County Council,Support at Home 65+ Mental Health,02/01/2024,5696,,3111579738,504.85,Radis Community Care
http://statistics.data.gov.uk/id/local-authority/38,Oxfordshire County Council,Support at Home 65+ Physical Support,02/01/2024,5696,,3111579741,504.85,Radis Community Care
http://statistics.data.gov.uk/id/local-authority/38,Oxfordshire County Council,Support at Home 65+ Mental Health,30/01/2024,5696,,3111597781,504.85,Radis Community Care
http://statistics.data.gov.uk/id/local-authority/38,Oxfordshire County Council,Support at Home U65 MH OBC Contract,30/01/2024,5699,,3111598383,504.99,Oxford Private Care
http://statistics.data.gov.uk/id/local-authority/38,Oxfordshire County Council,FLEET COSTS,03/01/2024,4270,HTM / Other Vehicle - Hire Charges,2201184582,505.00,West Wallasey Fleet Hire Services
http://statistics.data.gov.uk/id/local-authority/38,Oxfordshire County Council,FLEET COSTS,03/01/2024,4270,HTM / Other Vehicle - Hire Charges,2201184584,505.00,West Wallasey Fleet Hire Services
http://statistics.data.gov.uk/id/local-authority/38,Oxfordshire County Council,FLEET COSTS,03/01/2024,4270,HTM / Other Vehicle - Hire Charges,2201184585,505.00,West Wallasey Fleet Hire Services
http://statistics.data.gov.uk/id/local-authority/38,Oxfordshire County Council,FLEET COSTS,03/01/2024,4270,HTM / Other Vehicle - Hire Charges,2201184587,505.00,West Wallasey Fleet Hire Services
http://statistics.data.gov.uk/id/local-authority/38,Oxfordshire County Council,FLEET COSTS,03/01/2024,4270,HTM / Other Vehicle - Hire Charges,2201184588,505.00,West Wallasey Fleet Hire Services
http://statistics.data.gov.uk/id/local-authority/38,Oxfordshire County Council,FLEET COSTS,03/01/2024,4270,HTM / Other Vehicle - Hire Charges,2201184594,505.00,West Wallasey Fleet Hire Services
http://statistics.data.gov.uk/id/local-authority/38,Oxfordshire County Council,FLEET COSTS,03/01/2024,4270,HTM / Other Vehicle - Hire Charges,2201184604,505.00,West Wallasey Fleet Hire Services
http://statistics.data.gov.uk/id/local-authority/38,Oxfordshire County Council,FLEET COSTS,03/01/2024,4270,HTM / Other Vehicle - Hire Charges,2201184607,505.00,West Wallasey Fleet Hire Services
http://statistics.data.gov.uk/id/local-authority/38,Oxfordshire County Council,FLEET COSTS,03/01/2024,4270,HTM / Other Vehicle - Hire Charges,2201184609,505.00,West Wallasey Fleet Hire Services
http://statistics.data.gov.uk/id/local-authority/38,Oxfordshire County Council,Support at Home U65 Learning Disability,16/01/2024,5899,Social Care - Direct Payments,3111592687,505.36,Purple Conversation Com In Co (DP)
http://statistics.data.gov.uk/id/local-authority/38,Oxfordshire County Council,Property Cleaning,16/01/2024,4070,Cleaning services,2201188202,505.71,Parker Contract Cleaning
http://statistics.data.gov.uk/id/local-authority/38,Oxfordshire County Council,Support at Home 65+ Physical Support,02/01/2024,5699,,3111581538,505.87,Caremark (West Oxfordshire & Cherwe
http://statistics.data.gov.uk/id/local-authority/38,Oxfordshire County Council,Support at Home 65+ Physical Support,02/01/2024,5689,,3111580909,506.78,Oxfordshire Crossroads
http://statistics.data.gov.uk/id/local-authority/38,Oxfordshire County Council,Safeguarding commissioning,03/01/2024,3942,Hire of Accommodation and Facilities,2201184517,507.25,Agiito Limited
http://statistics.data.gov.uk/id/local-authority/38,Oxfordshire County Council,Independent Foster,10/01/2024,5561,B* Bus Shelter Reps & Cleansing,3111584801,507.62,Fostering UK Ltd
http://statistics.data.gov.uk/id/local-authority/38,Oxfordshire County Council,Independent Foster,10/01/2024,5561,B* Bus Shelter Reps & Cleansing,3111584803,507.62,Fostering UK Ltd
http://statistics.data.gov.uk/id/local-authority/38,Oxfordshire County Council,Support at Home 65+ Memory & Cognition,30/01/2024,5699,,3111597736,508.20,Care Outlook Ltd
http://statistics.data.gov.uk/id/local-authority/38,Oxfordshire County Council,Support at Home 65+ Physical Support,30/01/2024,5699,,3111598653,508.20,Trinity Carers Services Ltd
http://statistics.data.gov.uk/id/local-authority/38,Oxfordshire County Council,Support at Home 65+ Physical Support,02/01/2024,5699,,3111581527,508.65,Caremark (West Oxfordshire & Cherwe
http://statistics.data.gov.uk/id/local-authority/38,Oxfordshire County Council,Support at Home U65 Physical Support,10/01/2024,5690,,3111586548,508.84,The Camden Society
http://statistics.data.gov.uk/id/local-authority/38,Oxfordshire County Council,Support at Home U65 Learning Disability,10/01/2024,5690,,3111586559,508.84,The Camden Society
http://statistics.data.gov.uk/id/local-authority/38,Oxfordshire County Council,Support at Home U65 Learning Disability,10/01/2024,5690,,3111586598,508.84,The Camden Society
http://statistics.data.gov.uk/id/local-authority/38,Oxfordshire County Council,Support at Home U65 Physical Support,16/01/2024,5899,Social Care - Direct Payments,3111592897,509.12,Purple Conversation Com In Co (DP)
http://statistics.data.gov.uk/id/local-authority/38,Oxfordshire County Council,FLEET OPERATIONS,29/01/2024,5070,Telephone - Rentals,3111595804,509.42,BT Payment Services Ltd
http://statistics.data.gov.uk/id/local-authority/38,Oxfordshire County Council,ON ST PARK OXFD P&D,22/01/2024,4861,Hired and Contracted Services,2201190364,510.00,Flowbird Smart City
http://statistics.data.gov.uk/id/local-authority/38,Oxfordshire County Council,NHS HEALTHCHECK PROG,30/01/2024,4933,,3111596002,510.00,Hollow Way Medical Centre
http://statistics.data.gov.uk/id/local-authority/38,Oxfordshire County Council,Children in Care Non-staffing - North,08/01/2024,5227,Other Transport Arrangements,3111583387,510.00,Oxon Transport Services Ltd
http://statistics.data.gov.uk/id/local-authority/38,Oxfordshire County Council,HSF Welfare Support Grant & FSM support,15/01/2024,4939,,3111590255,510.00,St. John's Catholic Primary School
http://statistics.data.gov.uk/id/local-authority/38,Oxfordshire County Council,Children in Care Non-staffing - Centrl 2,15/01/2024,5227,Other Transport Arrangements,9300062481,510.60,OCC SS Oxford City Div 1 Cash
http://statistics.data.gov.uk/id/local-authority/38,Oxfordshire County Council,Support at Home U65 Physical Support,16/01/2024,5899,Social Care - Direct Payments,3111592309,511.28,Redacted Personal Data
http://statistics.data.gov.uk/id/local-authority/38,Oxfordshire County Council,LIBRARY COLLECTIONS,29/01/2024,4539,"Books, DVDs and CDs",3111595785,511.83,ASKEWS & HOLTS LIBRARY SERVICES LTD
http://statistics.data.gov.uk/id/local-authority/38,Oxfordshire County Council,Support at Home U65 Learning Disability,16/01/2024,5899,Social Care - Direct Payments,3111592522,511.96,Purple Conversation Com In Co (DP)
http://statistics.data.gov.uk/id/local-authority/38,Oxfordshire County Council,Support at Home 65+ Other /Soc Isolation,17/01/2024,5693,,3111593165,512.00,Redacted Personal Data
http://statistics.data.gov.uk/id/local-authority/38,Oxfordshire County Council,Support at Home 65+ Physical Support,16/01/2024,5899,Social Care - Direct Payments,3111592933,513.20,Purple Conversation Com In Co (DP)
http://statistics.data.gov.uk/id/local-authority/38,Oxfordshire County Council,Support at Home 65+ Physical Support,08/01/2024,5696,,3111583473,513.33,Orders of St John Care Trust
http://statistics.data.gov.uk/id/local-authority/38,Oxfordshire County Council,Support at Home 65+ Memory & Cognition,02/01/2024,5699,,3111580990,514.15,Goldsmith Personnel Ltd
http://statistics.data.gov.uk/id/local-authority/38,Oxfordshire County Council,FLEET OPERATIONS,18/01/2024,4685,Clothing and Uniforms,2201189130,514.92,Oxford Safety Supplies
http://statistics.data.gov.uk/id/local-authority/38,Oxfordshire County Council,Support at Home 65+ Physical Support,02/01/2024,5699,,3111581398,515.06,Calvary Care Ltd
http://statistics.data.gov.uk/id/local-authority/38,Oxfordshire County Council,Support at Home 65+ Memory & Cognition,02/01/2024,5699,,3111581429,515.06,Care Outlook Ltd
http://statistics.data.gov.uk/id/local-authority/38,Oxfordshire County Council,Support at Home 65+ Physical Support,30/01/2024,5699,,3111597753,515.06,Care Outlook Ltd
http://statistics.data.gov.uk/id/local-authority/38,Oxfordshire County Council,Support at Home U65 Physical Support,30/01/2024,5699,,3111598217,515.06,GET CARE LIMITED
http://statistics.data.gov.uk/id/local-authority/38,Oxfordshire County Council,Support at Home 65+ Memory & Cognition,30/01/2024,5699,,3111598218,515.06,GET CARE LIMITED
http://statistics.data.gov.uk/id/local-authority/38,Oxfordshire County Council,VOIDS/VACANCY COSTS,10/01/2024,3945,Rent,3111585146,515.22,Oxford Citizens Housing Association
http://statistics.data.gov.uk/id/local-authority/38,Oxfordshire County Council,VOIDS/VACANCY COSTS,10/01/2024,3945,Rent,3111585148,515.22,Oxford Citizens Housing Association
http://statistics.data.gov.uk/id/local-authority/38,Oxfordshire County Council,Support at Home U65 MH OBC Contract,08/01/2024,5696,,3111583519,515.74,Orders of St John Care Trust
http://statistics.data.gov.uk/id/local-authority/38,Oxfordshire County Council,Support at Home U65 Physical Support,08/01/2024,5696,,3111583524,515.74,Orders of St John Care Trust
http://statistics.data.gov.uk/id/local-authority/38,Oxfordshire County Council,SPECIAL GUARDIANSHIP,16/01/2024,5661,B*Carriageway pre surf. dressing patchin,3111591083,515.80,Redacted Personal Data
http://statistics.data.gov.uk/id/local-authority/38,Oxfordshire County Council,SPECIAL GUARDIANSHIP,23/01/2024,5661,B*Carriageway pre surf. dressing patchin,3111594141,515.80,Redacted Personal Data
http://statistics.data.gov.uk/id/local-authority/38,Oxfordshire County Council,SPECIAL GUARDIANSHIP,30/01/2024,5661,B*Carriageway pre surf. dressing patchin,3111596417,515.80,Redacted Personal Data
http://statistics.data.gov.uk/id/local-authority/38,Oxfordshire County Council,Support at Home U65 Mental Health,08/01/2024,5696,,3111583511,516.65,Orders of St John Care Trust
http://statistics.data.gov.uk/id/local-authority/38,Oxfordshire County Council,Support at Home U65 Physical Support,02/01/2024,5227,Other Transport Arrangements,3111579511,516.75,Excelsior Taxis Ltd
http://statistics.data.gov.uk/id/local-authority/38,Oxfordshire County Council,LEGAL BUDGET,18/01/2024,5251,Legal Costs,2201189549,516.85,Derek Edward Perkins
http://statistics.data.gov.uk/id/local-authority/38,Oxfordshire County Council,Support at Home U65 Physical Support,02/01/2024,5698,,3111580882,516.86,Oxford Private Care
http://statistics.data.gov.uk/id/local-authority/38,Oxfordshire County Council,FOSTERING MAIN,16/01/2024,5227,Other Transport Arrangements,3111591296,517.00,Redacted Personal Data
http://statistics.data.gov.uk/id/local-authority/38,Oxfordshire County Council,FOSTERING MAIN,23/01/2024,5227,Other Transport Arrangements,3111594445,517.00,Redacted Personal Data
http://statistics.data.gov.uk/id/local-authority/38,Oxfordshire County Council,FOSTERING MAIN,30/01/2024,5227,Other Transport Arrangements,3111596112,517.00,Redacted Personal Data
http://statistics.data.gov.uk/id/local-authority/38,Oxfordshire County Council,Support at Home U65 Learning Disability,16/01/2024,5899,Social Care - Direct Payments,3111592886,517.48,Purple Conversation Com In Co (DP)
http://statistics.data.gov.uk/id/local-authority/38,Oxfordshire County Council,LIBRARY COLLECTIONS,29/01/2024,4539,"Books, DVDs and CDs",3111595899,517.67,ASKEWS & HOLTS LIBRARY SERVICES LTD
http://statistics.data.gov.uk/id/local-authority/38,Oxfordshire County Council,ON ST PARK OXFD SPA,15/01/2024,4861,Hired and Contracted Services,2201187839,517.75,Elite Group
http://statistics.data.gov.uk/id/local-authority/38,Oxfordshire County Council,Support at Home 65+ Physical Support,24/01/2024,5693,,3111594951,517.99,TOPKARE LIMITED
http://statistics.data.gov.uk/id/local-authority/38,Oxfordshire County Council,FOSTERING MAIN,16/01/2024,5227,Other Transport Arrangements,3111591213,518.07,Redacted Personal Data
http://statistics.data.gov.uk/id/local-authority/38,Oxfordshire County Council,Support at Home 65+ Physical Support,02/01/2024,5699,,3111582237,518.57,SureCare Oxfordshire
http://statistics.data.gov.uk/id/local-authority/38,Oxfordshire County Council,FOSTERING MAIN,16/01/2024,5227,Other Transport Arrangements,3111591485,519.15,Redacted Personal Data
http://statistics.data.gov.uk/id/local-authority/38,Oxfordshire County Council,Support at Home 65+ Physical Support,30/01/2024,5698,,3111597340,519.60,KCARE NURSING AGENCY
http://statistics.data.gov.uk/id/local-authority/38,Oxfordshire County Council,Family Solutions Plus Non-staff - Centra,29/01/2024,5365,Non-Staff Subsistence and Expenses,9300062668,519.80,OCC SS Vale of White Horse Cash
http://statistics.data.gov.uk/id/local-authority/38,Oxfordshire County Council,Support at Home 65+ Memory & Cognition,16/01/2024,5899,Social Care - Direct Payments,3111592973,519.96,Purple Conversation Com In Co (DP)
http://statistics.data.gov.uk/id/local-authority/38,Oxfordshire County Council,TREE MAINT OPS,08/01/2024,5526,Payments to Private Contractors,2201185246,520.00,Climbers Way Tree Care Ltd.
http://statistics.data.gov.uk/id/local-authority/38,Oxfordshire County Council,LAC PUPIL PREMIUM,16/01/2024,5537,Payments to Other Establishments,3111590960,520.00,COTSWOLD CHINE HOME SCHOOL
http://statistics.data.gov.uk/id/local-authority/38,Oxfordshire County Council,Support at Home U65 Learning Disability,24/01/2024,5697,,3111594888,520.00,Yellow Submarine Holidays
http://statistics.data.gov.uk/id/local-authority/38,Oxfordshire County Council,Support at Home 65+ Physical Support,02/01/2024,5689,,3111580928,520.06,Oxfordshire Crossroads
http://statistics.data.gov.uk/id/local-authority/38,Oxfordshire County Council,UASC 16&17,16/01/2024,5663,B*Birthday Allowance,9300062504,520.40,OCC SS Oxford City Div 1 Cash
http://statistics.data.gov.uk/id/local-authority/38,Oxfordshire County Council,UASC 16&17,16/01/2024,5663,B*Birthday Allowance,9300062506,520.40,OCC SS Oxford City Div 1 Cash
http://statistics.data.gov.uk/id/local-authority/38,Oxfordshire County Council,Support at Home U65 Learning Disability,16/01/2024,5899,Social Care - Direct Payments,3111593042,520.72,Redacted Personal Data
http://statistics.data.gov.uk/id/local-authority/38,Oxfordshire County Council,LANDLORD & TENANT,18/01/2024,3980,Service Charges - Premises,2201189356,520.73,The Oxford Academy
http://statistics.data.gov.uk/id/local-authority/38,Oxfordshire County Council,Support at Home U65 Learning Disability,10/01/2024,5690,,3111585668,520.80,Style Acre
http://statistics.data.gov.uk/id/local-authority/38,Oxfordshire County Council,Support at Home U65 Learning Disability,10/01/2024,5690,,3111585722,520.80,Style Acre
http://statistics.data.gov.uk/id/local-authority/38,Oxfordshire County Council,Support at Home U65 Learning Disability,10/01/2024,5690,,3111585528,520.80,Turnstyle
http://statistics.data.gov.uk/id/local-authority/38,Oxfordshire County Council,FOSTERING MAIN,30/01/2024,5549,B*Fostering Allowance - Regulation 38,3111596105,520.90,Redacted Personal Data
http://statistics.data.gov.uk/id/local-authority/38,Oxfordshire County Council,FOSTERING MAIN,16/01/2024,5548,B*Fostering - Special Rates & Plus Amou,3111591193,520.90,Redacted Personal Data
http://statistics.data.gov.uk/id/local-authority/38,Oxfordshire County Council,FOSTERING MAIN,09/01/2024,5549,B*Fostering Allowance - Regulation 38,3111584268,520.90,Redacted Personal Data
http://statistics.data.gov.uk/id/local-authority/38,Oxfordshire County Council,Support at Home 65+ Physical Support,30/01/2024,5699,,3111598398,521.01,Oxfordshire Crossroads
http://statistics.data.gov.uk/id/local-authority/38,Oxfordshire County Council,Support at Home 65+ Physical Support,30/01/2024,5696,,3111597788,521.31,Radis Community Care
http://statistics.data.gov.uk/id/local-authority/38,Oxfordshire County Council,Support at Home 65+ Mental Health,17/01/2024,5693,,3111593179,521.88,HEALTHCARE ACCESS LTD
http://statistics.data.gov.uk/id/local-authority/38,Oxfordshire County Council,Support at Home 65+ Physical Support,30/01/2024,5689,,3111596971,521.89,Caretree Ltd
http://statistics.data.gov.uk/id/local-authority/38,Oxfordshire County Council,Support at Home 65+ Memory & Cognition,30/01/2024,5699,,3111597356,521.93,BBC CARE SERVICE LIMITED
http://statistics.data.gov.uk/id/local-authority/38,Oxfordshire County Council,Support at Home U65 Mental Health,30/01/2024,5699,,3111597567,521.93,Calvary Care Ltd
http://statistics.data.gov.uk/id/local-authority/38,Oxfordshire County Council,Support at Home 65+ Physical Support,02/01/2024,5699,,3111581659,521.93,CaringPlus Healthcare Services Ltd
http://statistics.data.gov.uk/id/local-authority/38,Oxfordshire County Council,Support at Home 65+ Physical Support,30/01/2024,5699,,3111598023,521.93,CaringPlus Healthcare Services Ltd
http://statistics.data.gov.uk/id/local-authority/38,Oxfordshire County Council,Support at Home U65 Physical Support,30/01/2024,5699,,3111598135,521.93,Direct Link Care Ltd
http://statistics.data.gov.uk/id/local-authority/38,Oxfordshire County Council,Support at Home 65+ Physical Support,24/01/2024,5693,,3111595004,521.93,We-Care-Recruitment Ltd
http://statistics.data.gov.uk/id/local-authority/38,Oxfordshire County Council,SEN TRANSPORT,15/01/2024,4330,Transport to School Activities,3111590297,522.00,001 Alpha Cars Ltd
http://statistics.data.gov.uk/id/local-authority/38,Oxfordshire County Council,PROCUREMENT,04/01/2024,4495,IT Software,2201184796,522.00,C Track UK
http://statistics.data.gov.uk/id/local-authority/38,Oxfordshire County Council,AGENCY RESID - DISAB,02/01/2024,5549,B*Fostering Allowance - Regulation 38,3111580121,522.00,Redacted Personal Data
http://statistics.data.gov.uk/id/local-authority/38,Oxfordshire County Council,AGENCY RESID - DISAB,09/01/2024,5549,B*Fostering Allowance - Regulation 38,3111584124,522.00,Redacted Personal Data
http://statistics.data.gov.uk/id/local-authority/38,Oxfordshire County Council,AGENCY RESID - DISAB,16/01/2024,5549,B*Fostering Allowance - Regulation 38,3111591390,522.00,Redacted Personal Data
http://statistics.data.gov.uk/id/local-authority/38,Oxfordshire County Council,AGENCY RESID - DISAB,23/01/2024,5549,B*Fostering Allowance - Regulation 38,3111594503,522.00,Redacted Personal Data
http://statistics.data.gov.uk/id/local-authority/38,Oxfordshire County Council,AGENCY RESID - DISAB,30/01/2024,5549,B*Fostering Allowance - Regulation 38,3111596141,522.00,Redacted Personal Data
http://statistics.data.gov.uk/id/local-authority/38,Oxfordshire County Council,Support at Home 65+ Physical Support,30/01/2024,5689,,3111597385,522.71,My Carer Ltd
http://statistics.data.gov.uk/id/local-authority/38,Oxfordshire County Council,Support at Home U65 Physical Support,02/01/2024,5689,,3111580737,522.81,Golden Services Care Ltd
http://statistics.data.gov.uk/id/local-authority/38,Oxfordshire County Council,Support at Home 65+ Sensory Support,16/01/2024,5899,Social Care - Direct Payments,3111592918,523.08,Purple Conversation Com In Co (DP)
http://statistics.data.gov.uk/id/local-authority/38,Oxfordshire County Council,Direct payments,26/01/2024,5554,Childrens' Social Care - Direct Payments,3111595626,523.12,Purple Conversation Com In Co (DP)
http://statistics.data.gov.uk/id/local-authority/38,Oxfordshire County Council,Support at Home U65 Learning Disability,16/01/2024,5899,Social Care - Direct Payments,3111592752,523.56,Purple Conversation Com In Co (DP)
http://statistics.data.gov.uk/id/local-authority/38,Oxfordshire County Council,Support at Home U65 Physical Support,30/01/2024,5698,,3111597345,523.72,KCARE NURSING AGENCY
http://statistics.data.gov.uk/id/local-authority/38,Oxfordshire County Council,SPECIAL GUARDIANSHIP,16/01/2024,5661,B*Carriageway pre surf. dressing patchin,3111591084,523.90,Redacted Personal Data
http://statistics.data.gov.uk/id/local-authority/38,Oxfordshire County Council,SPECIAL GUARDIANSHIP,23/01/2024,5661,B*Carriageway pre surf. dressing patchin,3111594142,523.90,Redacted Personal Data
http://statistics.data.gov.uk/id/local-authority/38,Oxfordshire County Council,SPECIAL GUARDIANSHIP,30/01/2024,5661,B*Carriageway pre surf. dressing patchin,3111596419,523.90,Redacted Personal Data
http://statistics.data.gov.uk/id/local-authority/38,Oxfordshire County Council,FLEET COSTS,03/01/2024,4270,HTM / Other Vehicle - Hire Charges,2201184611,524.00,West Wallasey Fleet Hire Services
http://statistics.data.gov.uk/id/local-authority/38,Oxfordshire County Council,Quality TPPG,08/01/2024,5537,Payments to Other Establishments,3111583586,524.16,Abingdon Learning Trust
http://statistics.data.gov.uk/id/local-authority/38,Oxfordshire County Council,,01/01/2024,1531,Cash Allocation Control Account,3111589501,524.47,Redacted Personal Data
http://statistics.data.gov.uk/id/local-authority/38,Oxfordshire County Council,FOSTERING MAIN,09/01/2024,5227,Other Transport Arrangements,3111584116,524.71,Redacted Personal Data
http://statistics.data.gov.uk/id/local-authority/38,Oxfordshire County Council,SEN TRANSPORT,09/01/2024,4330,Transport to School Activities,3111583673,525.00,ACE CARS BANBURY LTD
http://statistics.data.gov.uk/id/local-authority/38,Oxfordshire County Council,Support at Home U65 Learning Disability,10/01/2024,5690,,3111586516,525.05,The Brandon Trust
http://statistics.data.gov.uk/id/local-authority/38,Oxfordshire County Council,Support at Home 65+ Physical Support,30/01/2024,5699,,3111597133,525.14,Acquire Care Ltd
http://statistics.data.gov.uk/id/local-authority/38,Oxfordshire County Council,Support at Home U65 Learning Disability,16/01/2024,5899,Social Care - Direct Payments,3111592099,525.40,Redacted Personal Data
http://statistics.data.gov.uk/id/local-authority/38,Oxfordshire County Council,TREE MAINT OPS,26/01/2024,5526,Payments to Private Contractors,2201192136,526.00,Groundlord Limited
http://statistics.data.gov.uk/id/local-authority/38,Oxfordshire County Council,FAM GRP CONFERENCES,19/01/2024,4940,Other Services,2201190018,526.10,Christina Jones
http://statistics.data.gov.uk/id/local-authority/38,Oxfordshire County Council,Support at Home 65+ Learning Disability,02/01/2024,5696,,3111579593,526.80,All Care GB Ltd
http://statistics.data.gov.uk/id/local-authority/38,Oxfordshire County Council,Support at Home 65+ Physical Support,02/01/2024,5696,,3111579641,526.80,All Care GB Ltd
http://statistics.data.gov.uk/id/local-authority/38,Oxfordshire County Council,Support at Home 65+ Physical Support,30/01/2024,5696,,3111597575,526.80,All Care GB Ltd
http://statistics.data.gov.uk/id/local-authority/38,Oxfordshire County Council,Community Support Service Bicester,25/01/2024,2040,Agency Staff,2201191642,527.25,Completely Care Ltd
http://statistics.data.gov.uk/id/local-authority/38,Oxfordshire County Council,Support at Home U65 Learning Disability,10/01/2024,5690,,3111585448,527.33,MacIntyre Care (Womaston)
http://statistics.data.gov.uk/id/local-authority/38,Oxfordshire County Council,Support at Home 65+ Physical Support,16/01/2024,5899,Social Care - Direct Payments,3111592749,527.56,Purple Conversation Com In Co (DP)
http://statistics.data.gov.uk/id/local-authority/38,Oxfordshire County Council,LAC PUPIL PREMIUM,16/01/2024,5537,Payments to Other Establishments,3111590989,528.00,Northern House Academy (Gallery Tru
http://statistics.data.gov.uk/id/local-authority/38,Oxfordshire County Council,Support at Home 65+ Physical Support,10/01/2024,5690,,3111586393,528.11,ADVANCE HOUSING & SUPPORT LTD
http://statistics.data.gov.uk/id/local-authority/38,Oxfordshire County Council,Support at Home 65+ Learning Disability,10/01/2024,5690,,3111586506,528.11,Style Acre
http://statistics.data.gov.uk/id/local-authority/38,Oxfordshire County Council,Support at Home 65+ Physical Support,02/01/2024,5689,,3111580114,528.76,Bridges Home Care Ltd
http://statistics.data.gov.uk/id/local-authority/38,Oxfordshire County Council,Support at Home 65+ Physical Support,02/01/2024,5699,,3111581542,528.80,CareUK Living Limited
http://statistics.data.gov.uk/id/local-authority/38,Oxfordshire County Council,Support at Home 65+ Physical Support,30/01/2024,5689,,3111597020,528.80,Day & Night Care Assistance
http://statistics.data.gov.uk/id/local-authority/38,Oxfordshire County Council,Support at Home U65 Memory & Cognition,16/01/2024,5899,Social Care - Direct Payments,3111592861,529.00,Purple Conversation Com In Co (DP)
http://statistics.data.gov.uk/id/local-authority/38,Oxfordshire County Council,,04/01/2024,1448,Blackfield Inc & Exp A/c,3111583041,529.20,OCC One Time Vendor
http://statistics.data.gov.uk/id/local-authority/38,Oxfordshire County Council,TRADED CLERK SERVICE,16/01/2024,3103,Other Training Courses and Qualification,2201188545,530.00,NATIONAL GOVERNORS ASSOCIATION
http://statistics.data.gov.uk/id/local-authority/38,Oxfordshire County Council,Support at Home U65 Learning Disability,09/01/2024,5227,Other Transport Arrangements,3111583788,530.46,LINK SHIRES LTD
http://statistics.data.gov.uk/id/local-authority/38,Oxfordshire County Council,Direct payments,26/01/2024,5554,Childrens' Social Care - Direct Payments,3111595658,530.75,Purple Conversation Com In Co (DP)
http://statistics.data.gov.uk/id/local-authority/38,Oxfordshire County Council,Direct payments,26/01/2024,5554,Childrens' Social Care - Direct Payments,3111595659,530.75,Purple Conversation Com In Co (DP)
http://statistics.data.gov.uk/id/local-authority/38,Oxfordshire County Council,Support at Home U65 Learning Disability,10/01/2024,5690,,3111585404,530.98,The Laurels (Witney)
http://statistics.data.gov.uk/id/local-authority/38,Oxfordshire County Council,CHC Fast Track - Care Homes - Over 65,10/01/2024,5687,,3111586952,531.14,Chacombe Park Care Home
http://statistics.data.gov.uk/id/local-authority/38,Oxfordshire County Council,Support at Home U65 Other /Soc Isolation,16/01/2024,5899,Social Care - Direct Payments,3111592956,531.28,Purple Conversation Com In Co (DP)
http://statistics.data.gov.uk/id/local-authority/38,Oxfordshire County Council,NURSERY ED FUND,16/01/2024,5537,Payments to Other Establishments,3111590476,531.40,Karen Hynds
http://statistics.data.gov.uk/id/local-authority/38,Oxfordshire County Council,Support at Home U65 Learning Disability,16/01/2024,5899,Social Care - Direct Payments,3111591404,531.48,Redacted Personal Data
http://statistics.data.gov.uk/id/local-authority/38,Oxfordshire County Council,Support at Home U65 Physical Support,16/01/2024,5899,Social Care - Direct Payments,3111592550,531.52,Purple Conversation Com In Co (DP)
http://statistics.data.gov.uk/id/local-authority/38,Oxfordshire County Council,Quality TPPG,08/01/2024,5537,Payments to Other Establishments,3111583623,531.84,St. James CofE Primary School
http://statistics.data.gov.uk/id/local-authority/38,Oxfordshire County Council,Support at Home U65 Mental Health,30/01/2024,5689,,3111597150,531.96,Genuine Carers Ltd
http://statistics.data.gov.uk/id/local-authority/38,Oxfordshire County Council,Support at Home U65 Learning Disability,10/01/2024,5690,,3111585731,532.31,Style Acre
http://statistics.data.gov.uk/id/local-authority/38,Oxfordshire County Council,Direct payments,26/01/2024,5554,Childrens' Social Care - Direct Payments,3111595530,532.57,Connection Support (Oxford)
http://statistics.data.gov.uk/id/local-authority/38,Oxfordshire County Council,Direct payments,26/01/2024,5554,Childrens' Social Care - Direct Payments,3111595655,532.69,Purple Conversation Com In Co (DP)
http://statistics.data.gov.uk/id/local-authority/38,Oxfordshire County Council,Quality TPPG,08/01/2024,5537,Payments to Other Establishments,3111583569,532.80,Chalgrove Community Primary School
http://statistics.data.gov.uk/id/local-authority/38,Oxfordshire County Council,Community Support Service Banbury,18/01/2024,2040,Agency Staff,2201189502,532.80,Completely Care Ltd
http://statistics.data.gov.uk/id/local-authority/38,Oxfordshire County Council,Community Support Service Bicester,18/01/2024,2040,Agency Staff,2201189535,532.80,Completely Care Ltd
http://statistics.data.gov.uk/id/local-authority/38,Oxfordshire County Council,Community Support Service Banbury,25/01/2024,2040,Agency Staff,2201191656,532.80,Completely Care Ltd
http://statistics.data.gov.uk/id/local-authority/38,Oxfordshire County Council,Support at Home 65+ Physical Support,02/01/2024,5693,,3111580378,532.88,CaringPlus Healthcare Services Ltd
http://statistics.data.gov.uk/id/local-authority/38,Oxfordshire County Council,LEGAL BUDGET,23/01/2024,5251,Legal Costs,2201190894,533.00,DNA WORLDWIDE GROUP
http://statistics.data.gov.uk/id/local-authority/38,Oxfordshire County Council,FOSTERING MAIN,30/01/2024,5548,B*Fostering - Special Rates & Plus Amou,3111596060,533.98,Redacted Personal Data
http://statistics.data.gov.uk/id/local-authority/38,Oxfordshire County Council,FOSTERING MAIN,02/01/2024,5548,B*Fostering - Special Rates & Plus Amou,3111579917,533.98,Redacted Personal Data
http://statistics.data.gov.uk/id/local-authority/38,Oxfordshire County Council,FOSTERING MAIN,02/01/2024,5548,B*Fostering - Special Rates & Plus Amou,3111580030,533.98,Redacted Personal Data
http://statistics.data.gov.uk/id/local-authority/38,Oxfordshire County Council,FOSTERING MAIN,16/01/2024,5548,B*Fostering - Special Rates & Plus Amou,3111591908,533.98,Redacted Personal Data
http://statistics.data.gov.uk/id/local-authority/38,Oxfordshire County Council,ON ST PARK OXFD SPA,23/01/2024,4861,Hired and Contracted Services,2201190749,534.00,CAPITA BUSINESS SERVICES LIMITED
http://statistics.data.gov.uk/id/local-authority/38,Oxfordshire County Council,Support at Home U65 Learning Disability,02/01/2024,5227,Other Transport Arrangements,3111579513,534.00,Excelsior Taxis Ltd
http://statistics.data.gov.uk/id/local-authority/38,Oxfordshire County Council,FOSTERING MAIN,09/01/2024,5227,Other Transport Arrangements,3111584266,534.01,Redacted Personal Data
http://statistics.data.gov.uk/id/local-authority/38,Oxfordshire County Council,Support at Home 65+ Physical Support,02/01/2024,5699,,3111582417,534.29,YOD Ltd
http://statistics.data.gov.uk/id/local-authority/38,Oxfordshire County Council,Reactive Maintenance,29/01/2024,3787,Premises Repairs,2201192813,535.00,Sureheat Spares Ltd
http://statistics.data.gov.uk/id/local-authority/38,Oxfordshire County Council,Support at Home 65+ Learning Disability,08/01/2024,5696,,3111583435,535.02,Orders of St John Care Trust
http://statistics.data.gov.uk/id/local-authority/38,Oxfordshire County Council,Support at Home U65 Learning Disability,02/01/2024,5682,,3111581206,535.61,The Brandon Trust
http://statistics.data.gov.uk/id/local-authority/38,Oxfordshire County Council,Support at Home U65 Learning Disability,02/01/2024,5689,,3111580774,535.63,Greigcare Home Service
http://statistics.data.gov.uk/id/local-authority/38,Oxfordshire County Council,Support at Home U65 Learning Disability,30/01/2024,5689,,3111597266,535.63,Greigcare Home Service
http://statistics.data.gov.uk/id/local-authority/38,Oxfordshire County Council,Support at Home 65+ Physical Support,02/01/2024,5699,,3111581355,535.67,Calvary Care Ltd
http://statistics.data.gov.uk/id/local-authority/38,Oxfordshire County Council,Support at Home 65+ Physical Support,02/01/2024,5699,,3111581457,535.67,Care Outlook Ltd
http://statistics.data.gov.uk/id/local-authority/38,Oxfordshire County Council,Support at Home 65+ Physical Support,02/01/2024,5699,,3111581734,535.67,Day and Nightcare Assistance
http://statistics.data.gov.uk/id/local-authority/38,Oxfordshire County Council,Support at Home 65+ Physical Support,30/01/2024,5699,,3111598095,535.67,Day and Nightcare Assistance
http://statistics.data.gov.uk/id/local-authority/38,Oxfordshire County Council,Support at Home U65 Physical Support,30/01/2024,5693,,3111597134,535.67,Direct Link Care Ltd
http://statistics.data.gov.uk/id/local-authority/38,Oxfordshire County Council,Support at Home 65+ Physical Support,30/01/2024,5699,,3111598279,535.67,Home Helpers Care Ltd
http://statistics.data.gov.uk/id/local-authority/38,Oxfordshire County Council,Support at Home U65 Learning Disability,10/01/2024,5697,,3111584671,535.67,Jeff Jen Care Plus Ltd
http://statistics.data.gov.uk/id/local-authority/38,Oxfordshire County Council,Support at Home 65+ Physical Support,30/01/2024,5699,,3111598363,535.67,Oxford Private Care
http://statistics.data.gov.uk/id/local-authority/38,Oxfordshire County Council,Support at Home 65+ Physical Support,02/01/2024,5699,,3111582162,535.67,Rynes Healthcare Ltd
http://statistics.data.gov.uk/id/local-authority/38,Oxfordshire County Council,Support at Home 65+ Physical Support,02/01/2024,5699,,3111582290,535.67,Trinity Carers Services Ltd
http://statistics.data.gov.uk/id/local-authority/38,Oxfordshire County Council,Support at Home 65+ Physical Support,02/01/2024,5699,,3111582414,535.67,YOD Ltd
http://statistics.data.gov.uk/id/local-authority/38,Oxfordshire County Council,LIBRARY COLLECTIONS,15/01/2024,4539,"Books, DVDs and CDs",3111590312,536.27,ASKEWS & HOLTS LIBRARY SERVICES LTD
http://statistics.data.gov.uk/id/local-authority/38,Oxfordshire County Council,FOSTERING MAIN,09/01/2024,5394,Other Expenses,3111583875,536.80,Redacted Personal Data
http://statistics.data.gov.uk/id/local-authority/38,Oxfordshire County Council,LIBRARY COLLECTIONS,09/01/2024,4539,"Books, DVDs and CDs",3111583741,536.95,ASKEWS & HOLTS LIBRARY SERVICES LTD
http://statistics.data.gov.uk/id/local-authority/38,Oxfordshire County Council,Support at Home U65 Learning Disability,30/01/2024,5682,,3111596532,536.97,The Brandon Trust
http://statistics.data.gov.uk/id/local-authority/38,Oxfordshire County Council,Support at Home 65+ Memory & Cognition,02/01/2024,5693,,3111580835,537.04,My Carer Ltd
http://statistics.data.gov.uk/id/local-authority/38,Oxfordshire County Council,Direct payments,26/01/2024,5554,Childrens' Social Care - Direct Payments,3111595591,537.51,Redacted Personal Data
http://statistics.data.gov.uk/id/local-authority/38,Oxfordshire County Council,Support at Home U65 MH OBC Contract,16/01/2024,5899,Social Care - Direct Payments,3111591340,537.56,Redacted Personal Data
http://statistics.data.gov.uk/id/local-authority/38,Oxfordshire County Council,ECH Central Costs,10/01/2024,5696,,3111585503,537.63,BPHA Limited
http://statistics.data.gov.uk/id/local-authority/38,Oxfordshire County Council,Support at Home U65 Physical Support,30/01/2024,5696,,3111597371,537.78,All Care GB Ltd
http://statistics.data.gov.uk/id/local-authority/38,Oxfordshire County Council,Support at Home 65+ Learning Disability,08/01/2024,5696,,3111583485,538.34,Orders of St John Care Trust
http://statistics.data.gov.uk/id/local-authority/38,Oxfordshire County Council,Support at Home U65 Physical Support,08/01/2024,5696,,3111583494,538.34,Orders of St John Care Trust
http://statistics.data.gov.uk/id/local-authority/38,Oxfordshire County Council,Support at Home 65+ Physical Support,08/01/2024,5696,,3111583506,538.34,Orders of St John Care Trust
http://statistics.data.gov.uk/id/local-authority/38,Oxfordshire County Council,Community Support Service Bicester,11/01/2024,2040,Agency Staff,2201186433,538.35,Completely Care Ltd
http://statistics.data.gov.uk/id/local-authority/38,Oxfordshire County Council,Support at Home U65 Mental Health,02/01/2024,5699,,3111582214,538.41,Same Ways Care Ltd
http://statistics.data.gov.uk/id/local-authority/38,Oxfordshire County Council,LIBRARY COLLECTIONS,30/01/2024,4539,"Books, DVDs and CDs",3111595946,538.50,ASKEWS & HOLTS LIBRARY SERVICES LTD
http://statistics.data.gov.uk/id/local-authority/38,Oxfordshire County Council,UASC 16&17,23/01/2024,5365,Non-Staff Subsistence and Expenses,9300062600,538.80,OCC SS Oxford City Div 1 Cash
http://statistics.data.gov.uk/id/local-authority/38,Oxfordshire County Council,Support at Home U65 Learning Disability,05/01/2024,5697,,3111583227,538.86,Stepping Stones
http://statistics.data.gov.uk/id/local-authority/38,Oxfordshire County Council,,10/01/2024,1531,Cash Allocation Control Account,3111593120,539.00,Sacred Heart Pre-School
http://statistics.data.gov.uk/id/local-authority/38,Oxfordshire County Council,Support at Home 65+ Memory & Cognition,02/01/2024,5699,,3111581421,539.07,Care Outlook Ltd
http://statistics.data.gov.uk/id/local-authority/38,Oxfordshire County Council,Support at Home U65 Learning Disability,16/01/2024,5227,Other Transport Arrangements,3111590390,539.88,The Oxfordshire Taxi Company Ltd T/
http://statistics.data.gov.uk/id/local-authority/38,Oxfordshire County Council,Support at Home U65 Learning Disability,10/01/2024,5697,,3111584628,540.00,Buckinghamshire Council
http://statistics.data.gov.uk/id/local-authority/38,Oxfordshire County Council,Reviewing Team,18/01/2024,4940,Other Services,2201189118,540.00,Cloverleaf Advocacy 2000 Ltd
http://statistics.data.gov.uk/id/local-authority/38,Oxfordshire County Council,Support at Home U65 Learning Disability,25/01/2024,5227,Other Transport Arrangements,3111595129,540.00,Go Green Taxis
http://statistics.data.gov.uk/id/local-authority/38,Oxfordshire County Council,Support at Home U65 Mental Health,26/01/2024,5697,,3111595439,540.00,JMC Care Solutions Limited
http://statistics.data.gov.uk/id/local-authority/38,Oxfordshire County Council,SEN TRANSPORT,12/01/2024,4330,Transport to School Activities,3111589906,540.00,Oxon Transport Services Ltd
http://statistics.data.gov.uk/id/local-authority/38,Oxfordshire County Council,SEN TRANSPORT,12/01/2024,4330,Transport to School Activities,3111589929,540.00,Oxon Transport Services Ltd
http://statistics.data.gov.uk/id/local-authority/38,Oxfordshire County Council,POST 16 SEN,17/01/2024,4330,Transport to School Activities,3111593085,540.00,Oxon Transport Services Ltd
http://statistics.data.gov.uk/id/local-authority/38,Oxfordshire County Council,HSF Welfare Support Grant & FSM support,15/01/2024,4939,,3111590282,540.00,The White Horse Federation
http://statistics.data.gov.uk/id/local-authority/38,Oxfordshire County Council,TREE MAINT OPS,26/01/2024,5526,Payments to Private Contractors,2201192089,540.00,Treetech Arboricultural Services Lt
http://statistics.data.gov.uk/id/local-authority/38,Oxfordshire County Council,TREE MAINT OPS,29/01/2024,5526,Payments to Private Contractors,2201192479,540.00,Treetech Arboricultural Services Lt
http://statistics.data.gov.uk/id/local-authority/38,Oxfordshire County Council,Support at Home U65 Learning Disability,10/01/2024,5690,,3111585621,540.29,Style Acre
http://statistics.data.gov.uk/id/local-authority/38,Oxfordshire County Council,LEAVING CARE NORTH,11/01/2024,4685,Clothing and Uniforms,3111589671,540.96,Redacted Personal Data
http://statistics.data.gov.uk/id/local-authority/38,Oxfordshire County Council,Support at Home U65 HFA,16/01/2024,5899,Social Care - Direct Payments,3111592291,541.52,Redacted Personal Data
http://statistics.data.gov.uk/id/local-authority/38,Oxfordshire County Council,FOSTERING MAIN,02/01/2024,5549,B*Fostering Allowance - Regulation 38,3111579871,542.00,Redacted Personal Data
http://statistics.data.gov.uk/id/local-authority/38,Oxfordshire County Council,FOSTERING MAIN,09/01/2024,5549,B*Fostering Allowance - Regulation 38,3111583891,542.00,Redacted Personal Data
http://statistics.data.gov.uk/id/local-authority/38,Oxfordshire County Council,FOSTERING MAIN,16/01/2024,5549,B*Fostering Allowance - Regulation 38,3111591155,542.00,Redacted Personal Data
http://statistics.data.gov.uk/id/local-authority/38,Oxfordshire County Council,FOSTERING MAIN,23/01/2024,5549,B*Fostering Allowance - Regulation 38,3111594258,542.00,Redacted Personal Data
http://statistics.data.gov.uk/id/local-authority/38,Oxfordshire County Council,FOSTERING MAIN,30/01/2024,5549,B*Fostering Allowance - Regulation 38,3111596041,542.00,Redacted Personal Data
http://statistics.data.gov.uk/id/local-authority/38,Oxfordshire County Council,FOSTERING MAIN,02/01/2024,5549,B*Fostering Allowance - Regulation 38,3111579844,542.00,Redacted Personal Data
http://statistics.data.gov.uk/id/local-authority/38,Oxfordshire County Council,FOSTERING MAIN,09/01/2024,5549,B*Fostering Allowance - Regulation 38,3111583867,542.00,Redacted Personal Data
http://statistics.data.gov.uk/id/local-authority/38,Oxfordshire County Council,FOSTERING MAIN,16/01/2024,5549,B*Fostering Allowance - Regulation 38,3111591136,542.00,Redacted Personal Data
http://statistics.data.gov.uk/id/local-authority/38,Oxfordshire County Council,FOSTERING MAIN,23/01/2024,5549,B*Fostering Allowance - Regulation 38,3111594230,542.00,Redacted Personal Data
http://statistics.data.gov.uk/id/local-authority/38,Oxfordshire County Council,FOSTERING MAIN,30/01/2024,5549,B*Fostering Allowance - Regulation 38,3111596029,542.00,Redacted Personal Data
http://statistics.data.gov.uk/id/local-authority/38,Oxfordshire County Council,FOSTERING MAIN,02/01/2024,5549,B*Fostering Allowance - Regulation 38,3111579876,542.00,Redacted Personal Data
http://statistics.data.gov.uk/id/local-authority/38,Oxfordshire County Council,FOSTERING MAIN,09/01/2024,5549,B*Fostering Allowance - Regulation 38,3111583893,542.00,Redacted Personal Data
http://statistics.data.gov.uk/id/local-authority/38,Oxfordshire County Council,FOSTERING MAIN,16/01/2024,5549,B*Fostering Allowance - Regulation 38,3111591157,542.00,Redacted Personal Data
http://statistics.data.gov.uk/id/local-authority/38,Oxfordshire County Council,FOSTERING MAIN,23/01/2024,5549,B*Fostering Allowance - Regulation 38,3111594260,542.00,Redacted Personal Data
http://statistics.data.gov.uk/id/local-authority/38,Oxfordshire County Council,FOSTERING MAIN,30/01/2024,5549,B*Fostering Allowance - Regulation 38,3111596042,542.00,Redacted Personal Data
http://statistics.data.gov.uk/id/local-authority/38,Oxfordshire County Council,FOSTERING MAIN,02/01/2024,5549,B*Fostering Allowance - Regulation 38,3111579882,542.00,Redacted Personal Data
http://statistics.data.gov.uk/id/local-authority/38,Oxfordshire County Council,FOSTERING MAIN,09/01/2024,5549,B*Fostering Allowance - Regulation 38,3111583899,542.00,Redacted Personal Data
http://statistics.data.gov.uk/id/local-authority/38,Oxfordshire County Council,FOSTERING MAIN,16/01/2024,5549,B*Fostering Allowance - Regulation 38,3111591163,542.00,Redacted Personal Data
http://statistics.data.gov.uk/id/local-authority/38,Oxfordshire County Council,FOSTERING MAIN,23/01/2024,5549,B*Fostering Allowance - Regulation 38,3111594267,542.00,Redacted Personal Data
http://statistics.data.gov.uk/id/local-authority/38,Oxfordshire County Council,FOSTERING MAIN,30/01/2024,5549,B*Fostering Allowance - Regulation 38,3111596046,542.00,Redacted Personal Data
http://statistics.data.gov.uk/id/local-authority/38,Oxfordshire County Council,FOSTERING MAIN,02/01/2024,5569,,3111579934,542.00,Redacted Personal Data
http://statistics.data.gov.uk/id/local-authority/38,Oxfordshire County Council,AGENCY RESID - DISAB,02/01/2024,5549,B*Fostering Allowance - Regulation 38,3111580160,542.00,Redacted Personal Data
http://statistics.data.gov.uk/id/local-authority/38,Oxfordshire County Council,AGENCY RESID - DISAB,09/01/2024,5549,B*Fostering Allowance - Regulation 38,3111584150,542.00,Redacted Personal Data
http://statistics.data.gov.uk/id/local-authority/38,Oxfordshire County Council,AGENCY RESID - DISAB,16/01/2024,5549,B*Fostering Allowance - Regulation 38,3111591429,542.00,Redacted Personal Data
http://statistics.data.gov.uk/id/local-authority/38,Oxfordshire County Council,AGENCY RESID - DISAB,23/01/2024,5549,B*Fostering Allowance - Regulation 38,3111594532,542.00,Redacted Personal Data
http://statistics.data.gov.uk/id/local-authority/38,Oxfordshire County Council,AGENCY RESID - DISAB,30/01/2024,5549,B*Fostering Allowance - Regulation 38,3111596155,542.00,Redacted Personal Data
http://statistics.data.gov.uk/id/local-authority/38,Oxfordshire County Council,FOSTERING MAIN,02/01/2024,5549,B*Fostering Allowance - Regulation 38,3111580151,542.00,Redacted Personal Data
http://statistics.data.gov.uk/id/local-authority/38,Oxfordshire County Council,FOSTERING MAIN,09/01/2024,5549,B*Fostering Allowance - Regulation 38,3111584144,542.00,Redacted Personal Data
http://statistics.data.gov.uk/id/local-authority/38,Oxfordshire County Council,FOSTERING MAIN,16/01/2024,5549,B*Fostering Allowance - Regulation 38,3111591421,542.00,Redacted Personal Data
http://statistics.data.gov.uk/id/local-authority/38,Oxfordshire County Council,FOSTERING MAIN,23/01/2024,5549,B*Fostering Allowance - Regulation 38,3111594524,542.00,Redacted Personal Data
http://statistics.data.gov.uk/id/local-authority/38,Oxfordshire County Council,FOSTERING MAIN,30/01/2024,5549,B*Fostering Allowance - Regulation 38,3111596151,542.00,Redacted Personal Data
http://statistics.data.gov.uk/id/local-authority/38,Oxfordshire County Council,FOSTERING MAIN,02/01/2024,5549,B*Fostering Allowance - Regulation 38,3111580280,542.00,Redacted Personal Data
http://statistics.data.gov.uk/id/local-authority/38,Oxfordshire County Council,FOSTERING MAIN,09/01/2024,5549,B*Fostering Allowance - Regulation 38,3111584237,542.00,Redacted Personal Data
http://statistics.data.gov.uk/id/local-authority/38,Oxfordshire County Council,FOSTERING MAIN,16/01/2024,5549,B*Fostering Allowance - Regulation 38,3111591554,542.00,Redacted Personal Data
http://statistics.data.gov.uk/id/local-authority/38,Oxfordshire County Council,FOSTERING MAIN,23/01/2024,5549,B*Fostering Allowance - Regulation 38,3111594640,542.00,Redacted Personal Data
http://statistics.data.gov.uk/id/local-authority/38,Oxfordshire County Council,FOSTERING MAIN,30/01/2024,5549,B*Fostering Allowance - Regulation 38,3111596194,542.00,Redacted Personal Data
http://statistics.data.gov.uk/id/local-authority/38,Oxfordshire County Council,FOSTERING MAIN,02/01/2024,5549,B*Fostering Allowance - Regulation 38,3111580679,542.00,Redacted Personal Data
http://statistics.data.gov.uk/id/local-authority/38,Oxfordshire County Council,FOSTERING MAIN,09/01/2024,5549,B*Fostering Allowance - Regulation 38,3111584505,542.00,Redacted Personal Data
http://statistics.data.gov.uk/id/local-authority/38,Oxfordshire County Council,FOSTERING MAIN,16/01/2024,5549,B*Fostering Allowance - Regulation 38,3111591962,542.00,Redacted Personal Data
http://statistics.data.gov.uk/id/local-authority/38,Oxfordshire County Council,FOSTERING MAIN,23/01/2024,5549,B*Fostering Allowance - Regulation 38,3111594820,542.00,Redacted Personal Data
http://statistics.data.gov.uk/id/local-authority/38,Oxfordshire County Council,FOSTERING MAIN,30/01/2024,5549,B*Fostering Allowance - Regulation 38,3111596357,542.00,Redacted Personal Data
http://statistics.data.gov.uk/id/local-authority/38,Oxfordshire County Council,FOSTERING MAIN,02/01/2024,5549,B*Fostering Allowance - Regulation 38,3111579946,542.00,Redacted Personal Data
http://statistics.data.gov.uk/id/local-authority/38,Oxfordshire County Council,FOSTERING MAIN,09/01/2024,5549,B*Fostering Allowance - Regulation 38,3111583973,542.00,Redacted Personal Data
http://statistics.data.gov.uk/id/local-authority/38,Oxfordshire County Council,FOSTERING MAIN,16/01/2024,5549,B*Fostering Allowance - Regulation 38,3111591226,542.00,Redacted Personal Data
http://statistics.data.gov.uk/id/local-authority/38,Oxfordshire County Council,FOSTERING MAIN,23/01/2024,5549,B*Fostering Allowance - Regulation 38,3111594342,542.00,Redacted Personal Data
http://statistics.data.gov.uk/id/local-authority/38,Oxfordshire County Council,FOSTERING MAIN,30/01/2024,5549,B*Fostering Allowance - Regulation 38,3111596080,542.00,Redacted Personal Data
http://statistics.data.gov.uk/id/local-authority/38,Oxfordshire County Council,FOSTERING MAIN,02/01/2024,5549,B*Fostering Allowance - Regulation 38,3111580548,542.00,Redacted Personal Data
http://statistics.data.gov.uk/id/local-authority/38,Oxfordshire County Council,FOSTERING MAIN,16/01/2024,5549,B*Fostering Allowance - Regulation 38,3111591823,542.00,Redacted Personal Data
http://statistics.data.gov.uk/id/local-authority/38,Oxfordshire County Council,FOSTERING MAIN,30/01/2024,5549,B*Fostering Allowance - Regulation 38,3111596299,542.00,Redacted Personal Data
http://statistics.data.gov.uk/id/local-authority/38,Oxfordshire County Council,FOSTERING MAIN,02/01/2024,5549,B*Fostering Allowance - Regulation 38,3111580721,542.00,Redacted Personal Data
http://statistics.data.gov.uk/id/local-authority/38,Oxfordshire County Council,FOSTERING MAIN,09/01/2024,5549,B*Fostering Allowance - Regulation 38,3111584536,542.00,Redacted Personal Data
http://statistics.data.gov.uk/id/local-authority/38,Oxfordshire County Council,FOSTERING MAIN,16/01/2024,5549,B*Fostering Allowance - Regulation 38,3111592011,542.00,Redacted Personal Data
http://statistics.data.gov.uk/id/local-authority/38,Oxfordshire County Council,FOSTERING MAIN,23/01/2024,5549,B*Fostering Allowance - Regulation 38,3111594843,542.00,Redacted Personal Data
http://statistics.data.gov.uk/id/local-authority/38,Oxfordshire County Council,FOSTERING MAIN,30/01/2024,5549,B*Fostering Allowance - Regulation 38,3111596392,542.00,Redacted Personal Data
http://statistics.data.gov.uk/id/local-authority/38,Oxfordshire County Council,Support at Home 65+ Physical Support,30/01/2024,5689,,3111597276,542.49,Greigcare Home Service
http://statistics.data.gov.uk/id/local-authority/38,Oxfordshire County Council,Family Solutions Plus Non-staff - Centra,15/01/2024,4940,Other Services,2201188071,542.50,UK LANGUAGE SOLUTIONS
http://statistics.data.gov.uk/id/local-authority/38,Oxfordshire County Council,Support at Home U65 Mental Health,02/01/2024,5699,,3111581370,542.53,Calvary Care Ltd
http://statistics.data.gov.uk/id/local-authority/38,Oxfordshire County Council,Family Solutions Plus Non-staff - Centra,04/01/2024,4407,Equipment,9300062402,542.54,OCC SS Oxford City Div 1 Cash
http://statistics.data.gov.uk/id/local-authority/38,Oxfordshire County Council,LEAVING CARE SOUTH,19/01/2024,5663,B*Birthday Allowance,9300062572,543.80,OCC SS Oxford City Div 1 Cash
http://statistics.data.gov.uk/id/local-authority/38,Oxfordshire County Council,Support at Home U65 MH OBC Contract,16/01/2024,5899,Social Care - Direct Payments,3111592821,544.32,Purple Conversation Com In Co (DP)
http://statistics.data.gov.uk/id/local-authority/38,Oxfordshire County Council,LANDLORD & TENANT,18/01/2024,3980,Service Charges - Premises,2201189346,544.37,The Oxford Academy
http://statistics.data.gov.uk/id/local-authority/38,Oxfordshire County Council,Reactive Maintenance,16/01/2024,3787,Premises Repairs,2201188496,545.00,BI-FOLD ROLFE LTD
http://statistics.data.gov.uk/id/local-authority/38,Oxfordshire County Council,FOSTERING MAIN,30/01/2024,5227,Other Transport Arrangements,3111596071,545.16,Redacted Personal Data
http://statistics.data.gov.uk/id/local-authority/38,Oxfordshire County Council,SEN TRANSPORT,17/01/2024,4330,Transport to School Activities,3111593142,546.00,24/7 LTD
http://statistics.data.gov.uk/id/local-authority/38,Oxfordshire County Council,Community Support Service Wallingford,09/01/2024,5227,Other Transport Arrangements,3111583651,546.00,D�Arrive Ltd
http://statistics.data.gov.uk/id/local-authority/38,Oxfordshire County Council,Reactive Maintenance,09/01/2024,4070,Cleaning services,2201185542,546.00,Parker Contract Cleaning
http://statistics.data.gov.uk/id/local-authority/38,Oxfordshire County Council,Support at Home U65 Learning Disability,30/01/2024,5682,,3111596424,546.52,The Brandon Trust
http://statistics.data.gov.uk/id/local-authority/38,Oxfordshire County Council,FAM GRP CONFERENCES,10/01/2024,4940,Other Services,2201185827,546.98,Redacted Personal Data
http://statistics.data.gov.uk/id/local-authority/38,Oxfordshire County Council,CONCESSIONARY FARES,04/01/2024,5781,Payments to Transport Operators,2201184910,547.14,Z & S Transport Ltd
http://statistics.data.gov.uk/id/local-authority/38,Oxfordshire County Council,Support at Home U65 HFA,10/01/2024,5690,,3111586408,547.37,Autism at Kingwood Limited
http://statistics.data.gov.uk/id/local-authority/38,Oxfordshire County Council,COUNTY PRINT FINSHRS,23/01/2024,5091,Postage and Delivery,2201190958,547.97,Royal Mail Group Plc
http://statistics.data.gov.uk/id/local-authority/38,Oxfordshire County Council,A@R ASYLUM,16/01/2024,5365,Non-Staff Subsistence and Expenses,9300062503,548.19,OCC SS Oxford City Div 1 Cash
http://statistics.data.gov.uk/id/local-authority/38,Oxfordshire County Council,Continuing Care - Care Homes - 65+,10/01/2024,5687,,3111585814,548.28,Abbey Crest Nursing Home
http://statistics.data.gov.uk/id/local-authority/38,Oxfordshire County Council,Support at Home 65+ Physical Support,02/01/2024,5699,,3111581041,548.49,Acquire Care Ltd
http://statistics.data.gov.uk/id/local-authority/38,Oxfordshire County Council,SHARED LIVES,10/01/2024,5394,Other Expenses,3111586158,548.71,Redacted Personal Data
http://statistics.data.gov.uk/id/local-authority/38,Oxfordshire County Council,Support at Home 65+ Mental Health,02/01/2024,5696,,3111579583,548.75,All Care GB Ltd
http://statistics.data.gov.uk/id/local-authority/38,Oxfordshire County Council,Support at Home 65+ Physical Support,02/01/2024,5696,,3111579617,548.75,All Care GB Ltd
http://statistics.data.gov.uk/id/local-authority/38,Oxfordshire County Council,Support at Home 65+ Mental Health,30/01/2024,5696,,3111597401,548.75,All Care GB Ltd
http://statistics.data.gov.uk/id/local-authority/38,Oxfordshire County Council,Support at Home 65+ Physical Support,30/01/2024,5696,,3111597748,548.75,Radis Community Care
http://statistics.data.gov.uk/id/local-authority/38,Oxfordshire County Council,FOSTERING MAIN,23/01/2024,5227,Other Transport Arrangements,3111594612,549.12,Redacted Personal Data
http://statistics.data.gov.uk/id/local-authority/38,Oxfordshire County Council,Support at Home 65+ Memory & Cognition,16/01/2024,5899,Social Care - Direct Payments,3111592384,549.36,Redacted Personal Data
http://statistics.data.gov.uk/id/local-authority/38,Oxfordshire County Council,Support at Home 65+ Physical Support,02/01/2024,5699,,3111581074,549.40,Adult Transition Services Ltd (ATrS
http://statistics.data.gov.uk/id/local-authority/38,Oxfordshire County Council,Support at Home 65+ Physical Support,02/01/2024,5699,,3111581076,549.40,Adult Transition Services Ltd (ATrS
http://statistics.data.gov.uk/id/local-authority/38,Oxfordshire County Council,Support at Home U65 MH OBC Contract,30/01/2024,5699,,3111597153,549.40,Adult Transition Services Ltd (ATrS
http://statistics.data.gov.uk/id/local-authority/38,Oxfordshire County Council,Support at Home 65+ Physical Support,30/01/2024,5699,,3111597980,549.40,CaringPlus Healthcare Services Ltd
http://statistics.data.gov.uk/id/local-authority/38,Oxfordshire County Council,Support at Home U65 Physical Support,02/01/2024,5693,,3111580618,549.40,Direct Link Care Ltd
http://statistics.data.gov.uk/id/local-authority/38,Oxfordshire County Council,Support at Home 65+ Physical Support,30/01/2024,5699,,3111598223,549.40,Golden Atara Ltd
http://statistics.data.gov.uk/id/local-authority/38,Oxfordshire County Council,Support at Home U65 Mental Health,10/01/2024,5697,,3111584670,549.40,Jeff Jen Care Plus Ltd
http://statistics.data.gov.uk/id/local-authority/38,Oxfordshire County Council,Support at Home U65 Memory & Cognition,16/01/2024,5899,Social Care - Direct Payments,3111591793,549.40,Redacted Personal Data
http://statistics.data.gov.uk/id/local-authority/38,Oxfordshire County Council,Support at Home U65 Physical Support,02/01/2024,5699,,3111582127,549.40,Ringstead Healthcare Limited
http://statistics.data.gov.uk/id/local-authority/38,Oxfordshire County Council,Support at Home U65 Other /Soc Isolation,02/01/2024,5699,,3111582226,549.40,SureCare Oxfordshire
http://statistics.data.gov.uk/id/local-authority/38,Oxfordshire County Council,Support at Home U65 Other /Soc Isolation,30/01/2024,5699,,3111598577,549.40,SureCare Oxfordshire
http://statistics.data.gov.uk/id/local-authority/38,Oxfordshire County Council,Support at Home U65 Learning Disability,26/01/2024,5693,,3111595431,549.40,UNITED RESPONSE
http://statistics.data.gov.uk/id/local-authority/38,Oxfordshire County Council,Family Solutions Plus Non-staff - Centra,16/01/2024,4940,Other Services,2201188358,549.50,UK LANGUAGE SOLUTIONS
http://statistics.data.gov.uk/id/local-authority/38,Oxfordshire County Council,Support at Home 65+ Physical Support,10/01/2024,5693,,3111584631,549.60,A CARING HAND LTD
http://statistics.data.gov.uk/id/local-authority/38,Oxfordshire County Council,Support at Home 65+ Physical Support,26/01/2024,5693,,3111595350,549.60,A CARING HAND LTD
http://statistics.data.gov.uk/id/local-authority/38,Oxfordshire County Council,NURSERY ED FUND,18/01/2024,5537,Payments to Other Establishments,3111593445,549.72,Angela Knowles
http://statistics.data.gov.uk/id/local-authority/38,Oxfordshire County Council,NURSERY ED FUND,16/01/2024,5537,Payments to Other Establishments,3111590679,549.72,Camilla Collins
http://statistics.data.gov.uk/id/local-authority/38,Oxfordshire County Council,NURSERY ED FUND,16/01/2024,5537,Payments to Other Establishments,3111590770,549.72,Clares Childcare Services
http://statistics.data.gov.uk/id/local-authority/38,Oxfordshire County Council,NURSERY ED FUND,16/01/2024,5537,Payments to Other Establishments,3111590844,549.72,Emma Marshall
http://statistics.data.gov.uk/id/local-authority/38,Oxfordshire County Council,NURSERY ED FUND,16/01/2024,5537,Payments to Other Establishments,3111590780,549.72,Esther Ibbotson
http://statistics.data.gov.uk/id/local-authority/38,Oxfordshire County Council,NURSERY ED FUND,16/01/2024,5537,Payments to Other Establishments,3111590774,549.72,Hazel Bridle
http://statistics.data.gov.uk/id/local-authority/38,Oxfordshire County Council,NURSERY ED FUND,16/01/2024,5537,Payments to Other Establishments,3111590751,549.72,Helen Rains
http://statistics.data.gov.uk/id/local-authority/38,Oxfordshire County Council,NURSERY ED FUND,16/01/2024,5537,Payments to Other Establishments,3111590885,549.72,Kate Thomas
http://statistics.data.gov.uk/id/local-authority/38,Oxfordshire County Council,NURSERY ED FUND,16/01/2024,5537,Payments to Other Establishments,3111590492,549.72,Katie Rebecca Hoare Childminder
http://statistics.data.gov.uk/id/local-authority/38,Oxfordshire County Council,NURSERY ED FUND,16/01/2024,5537,Payments to Other Establishments,3111590870,549.72,Kirstyn Saunders
http://statistics.data.gov.uk/id/local-authority/38,Oxfordshire County Council,NURSERY ED FUND,16/01/2024,5537,Payments to Other Establishments,3111590696,549.72,Louise Gardner
http://statistics.data.gov.uk/id/local-authority/38,Oxfordshire County Council,NURSERY ED FUND,16/01/2024,5537,Payments to Other Establishments,3111590732,549.72,Redacted Personal Data
http://statistics.data.gov.uk/id/local-authority/38,Oxfordshire County Council,NURSERY ED FUND,16/01/2024,5537,Payments to Other Establishments,3111590851,549.72,Natalie Webb
http://statistics.data.gov.uk/id/local-authority/38,Oxfordshire County Council,NURSERY ED FUND,16/01/2024,5537,Payments to Other Establishments,3111590902,549.72,Rachel Heskey
http://statistics.data.gov.uk/id/local-authority/38,Oxfordshire County Council,NURSERY ED FUND,16/01/2024,5537,Payments to Other Establishments,3111590475,549.72,Sharon Maddox
http://statistics.data.gov.uk/id/local-authority/38,Oxfordshire County Council,NURSERY ED FUND,16/01/2024,5537,Payments to Other Establishments,3111590755,549.72,Sophie Blizzard
http://statistics.data.gov.uk/id/local-authority/38,Oxfordshire County Council,NURSERY ED FUND,16/01/2024,5537,Payments to Other Establishments,3111590869,549.72,Redacted Personal Data
http://statistics.data.gov.uk/id/local-authority/38,Oxfordshire County Council,Direct payments,26/01/2024,5554,Childrens' Social Care - Direct Payments,3111595636,549.95,Purple Conversation Com In Co (DP)
http://statistics.data.gov.uk/id/local-authority/38,Oxfordshire County Council,Homes for Ukraine - Guests,02/01/2024,5896,Adult Social Care - Other Transfer Pay,3500102374,550.00,Redacted Personal Data
http://statistics.data.gov.uk/id/local-authority/38,Oxfordshire County Council,Homes for Ukraine - Guests,31/01/2024,5896,Adult Social Care - Other Transfer Pay,3500102934,550.00,Redacted Personal Data
http://statistics.data.gov.uk/id/local-authority/38,Oxfordshire County Council,Homes for Ukraine - Guests,22/01/2024,5896,Adult Social Care - Other Transfer Pay,3500102731,550.00,Redacted Personal Data
http://statistics.data.gov.uk/id/local-authority/38,Oxfordshire County Council,Homes for Ukraine - Guests,11/01/2024,5896,Adult Social Care - Other Transfer Pay,3500102609,550.00,Redacted Personal Data
http://statistics.data.gov.uk/id/local-authority/38,Oxfordshire County Council,Homes for Ukraine - Guests,24/01/2024,5896,Adult Social Care - Other Transfer Pay,3500102787,550.00,Redacted Personal Data
http://statistics.data.gov.uk/id/local-authority/38,Oxfordshire County Council,Homes for Ukraine - Guests,01/01/2024,5896,Adult Social Care - Other Transfer Pay,3500102345,550.00,Redacted Personal Data
http://statistics.data.gov.uk/id/local-authority/38,Oxfordshire County Council,Homes for Ukraine - Guests,10/01/2024,5896,Adult Social Care - Other Transfer Pay,3500102577,550.00,Redacted Personal Data
http://statistics.data.gov.uk/id/local-authority/38,Oxfordshire County Council,Homes for Ukraine - Guests,09/01/2024,5896,Adult Social Care - Other Transfer Pay,3500102486,550.00,Redacted Personal Data
http://statistics.data.gov.uk/id/local-authority/38,Oxfordshire County Council,Homes for Ukraine - Guests,03/01/2024,5896,Adult Social Care - Other Transfer Pay,3500102412,550.00,Redacted Personal Data
http://statistics.data.gov.uk/id/local-authority/38,Oxfordshire County Council,Homes for Ukraine - Guests,12/01/2024,5896,Adult Social Care - Other Transfer Pay,3500102616,550.00,Redacted Personal Data
http://statistics.data.gov.uk/id/local-authority/38,Oxfordshire County Council,Homes for Ukraine - Guests,17/01/2024,5896,Adult Social Care - Other Transfer Pay,3500102689,550.00,Redacted Personal Data
http://statistics.data.gov.uk/id/local-authority/38,Oxfordshire County Council,Homes for Ukraine - Guests,05/01/2024,5896,Adult Social Care - Other Transfer Pay,3500102440,550.00,Redacted Personal Data
http://statistics.data.gov.uk/id/local-authority/38,Oxfordshire County Council,Homes for Ukraine - Guests,26/01/2024,5896,Adult Social Care - Other Transfer Pay,3500102833,550.00,Redacted Personal Data
http://statistics.data.gov.uk/id/local-authority/38,Oxfordshire County Council,Homes for Ukraine - Guests,16/01/2024,5896,Adult Social Care - Other Transfer Pay,3500102645,550.00,Redacted Personal Data
http://statistics.data.gov.uk/id/local-authority/38,Oxfordshire County Council,Homes for Ukraine - Guests,04/01/2024,5896,Adult Social Care - Other Transfer Pay,3500102430,550.00,Redacted Personal Data
http://statistics.data.gov.uk/id/local-authority/38,Oxfordshire County Council,Homes for Ukraine - Guests,09/01/2024,5896,Adult Social Care - Other Transfer Pay,3500102478,550.00,Redacted Personal Data
http://statistics.data.gov.uk/id/local-authority/38,Oxfordshire County Council,Homes for Ukraine - Guests,11/01/2024,5896,Adult Social Care - Other Transfer Pay,3500102597,550.00,Redacted Personal Data
http://statistics.data.gov.uk/id/local-authority/38,Oxfordshire County Council,Homes for Ukraine - Guests,31/01/2024,5896,Adult Social Care - Other Transfer Pay,3500102920,550.00,Redacted Personal Data
http://statistics.data.gov.uk/id/local-authority/38,Oxfordshire County Council,Homes for Ukraine - Guests,04/01/2024,5896,Adult Social Care - Other Transfer Pay,3500102423,550.00,Redacted Personal Data
http://statistics.data.gov.uk/id/local-authority/38,Oxfordshire County Council,Homes for Ukraine - Guests,12/01/2024,5896,Adult Social Care - Other Transfer Pay,3500102627,550.00,Redacted Personal Data
http://statistics.data.gov.uk/id/local-authority/38,Oxfordshire County Council,Homes for Ukraine - Guests,09/01/2024,5896,Adult Social Care - Other Transfer Pay,3500102474,550.00,Redacted Personal Data
http://statistics.data.gov.uk/id/local-authority/38,Oxfordshire County Council,Homes for Ukraine - Guests,02/01/2024,5896,Adult Social Care - Other Transfer Pay,3500102376,550.00,Redacted Personal Data
http://statistics.data.gov.uk/id/local-authority/38,Oxfordshire County Council,Homes for Ukraine - Guests,31/01/2024,5896,Adult Social Care - Other Transfer Pay,3500102938,550.00,Redacted Personal Data
http://statistics.data.gov.uk/id/local-authority/38,Oxfordshire County Council,Homes for Ukraine - Guests,16/01/2024,5896,Adult Social Care - Other Transfer Pay,3500102658,550.00,Redacted Personal Data
http://statistics.data.gov.uk/id/local-authority/38,Oxfordshire County Council,Homes for Ukraine - Guests,10/01/2024,5896,Adult Social Care - Other Transfer Pay,3500102572,550.00,Redacted Personal Data
http://statistics.data.gov.uk/id/local-authority/38,Oxfordshire County Council,Homes for Ukraine - Guests,24/01/2024,5896,Adult Social Care - Other Transfer Pay,3500102768,550.00,Redacted Personal Data
http://statistics.data.gov.uk/id/local-authority/38,Oxfordshire County Council,Homes for Ukraine - Guests,24/01/2024,5896,Adult Social Care - Other Transfer Pay,3500102769,550.00,Redacted Personal Data
http://statistics.data.gov.uk/id/local-authority/38,Oxfordshire County Council,Homes for Ukraine - Guests,29/01/2024,5896,Adult Social Care - Other Transfer Pay,3500102866,550.00,Redacted Personal Data
http://statistics.data.gov.uk/id/local-authority/38,Oxfordshire County Council,Homes for Ukraine - Guests,01/01/2024,5896,Adult Social Care - Other Transfer Pay,3500102341,550.00,Redacted Personal Data
http://statistics.data.gov.uk/id/local-authority/38,Oxfordshire County Council,Homes for Ukraine - Guests,17/01/2024,5896,Adult Social Care - Other Transfer Pay,3500102681,550.00,Redacted Personal Data
http://statistics.data.gov.uk/id/local-authority/38,Oxfordshire County Council,Homes for Ukraine - Guests,08/01/2024,5896,Adult Social Care - Other Transfer Pay,3500102467,550.00,Redacted Personal Data
http://statistics.data.gov.uk/id/local-authority/38,Oxfordshire County Council,Homes for Ukraine - Guests,08/01/2024,5896,Adult Social Care - Other Transfer Pay,3500102462,550.00,Redacted Personal Data
http://statistics.data.gov.uk/id/local-authority/38,Oxfordshire County Council,Homes for Ukraine - Guests,26/01/2024,5896,Adult Social Care - Other Transfer Pay,3500102832,550.00,Redacted Personal Data
http://statistics.data.gov.uk/id/local-authority/38,Oxfordshire County Council,Homes for Ukraine - Guests,30/01/2024,5896,Adult Social Care - Other Transfer Pay,3500102880,550.00,Redacted Personal Data
http://statistics.data.gov.uk/id/local-authority/38,Oxfordshire County Council,Homes for Ukraine - Guests,19/01/2024,5896,Adult Social Care - Other Transfer Pay,3500102719,550.00,Redacted Personal Data
http://statistics.data.gov.uk/id/local-authority/38,Oxfordshire County Council,Homes for Ukraine - Guests,17/01/2024,5896,Adult Social Care - Other Transfer Pay,3500102665,550.00,Redacted Personal Data
http://statistics.data.gov.uk/id/local-authority/38,Oxfordshire County Council,Homes for Ukraine - Guests,31/01/2024,5896,Adult Social Care - Other Transfer Pay,3500102928,550.00,Redacted Personal Data
http://statistics.data.gov.uk/id/local-authority/38,Oxfordshire County Council,Homes for Ukraine - Guests,26/01/2024,5896,Adult Social Care - Other Transfer Pay,3500102831,550.00,Redacted Personal Data
http://statistics.data.gov.uk/id/local-authority/38,Oxfordshire County Council,Homes for Ukraine - Guests,28/01/2024,5896,Adult Social Care - Other Transfer Pay,3500102843,550.00,Redacted Personal Data
http://statistics.data.gov.uk/id/local-authority/38,Oxfordshire County Council,Homes for Ukraine - Guests,24/01/2024,5896,Adult Social Care - Other Transfer Pay,3500102776,550.00,Redacted Personal Data
http://statistics.data.gov.uk/id/local-authority/38,Oxfordshire County Council,Homes for Ukraine - Guests,10/01/2024,5896,Adult Social Care - Other Transfer Pay,3500102594,550.00,Redacted Personal Data
http://statistics.data.gov.uk/id/local-authority/38,Oxfordshire County Council,Homes for Ukraine - Guests,18/01/2024,5896,Adult Social Care - Other Transfer Pay,3500102702,550.00,Redacted Personal Data
http://statistics.data.gov.uk/id/local-authority/38,Oxfordshire County Council,Homes for Ukraine - Guests,30/01/2024,5896,Adult Social Care - Other Transfer Pay,3500102882,550.00,Redacted Personal Data
http://statistics.data.gov.uk/id/local-authority/38,Oxfordshire County Council,Homes for Ukraine - Guests,12/01/2024,5896,Adult Social Care - Other Transfer Pay,3500102621,550.00,Redacted Personal Data
http://statistics.data.gov.uk/id/local-authority/38,Oxfordshire County Council,Homes for Ukraine - Guests,05/01/2024,5896,Adult Social Care - Other Transfer Pay,3500102438,550.00,Redacted Personal Data
http://statistics.data.gov.uk/id/local-authority/38,Oxfordshire County Council,Homes for Ukraine - Guests,17/01/2024,5896,Adult Social Care - Other Transfer Pay,3500102667,550.00,Redacted Personal Data
http://statistics.data.gov.uk/id/local-authority/38,Oxfordshire County Council,Homes for Ukraine - Guests,12/01/2024,5896,Adult Social Care - Other Transfer Pay,3500102614,550.00,Redacted Personal Data
http://statistics.data.gov.uk/id/local-authority/38,Oxfordshire County Council,Homes for Ukraine - Guests,25/01/2024,5896,Adult Social Care - Other Transfer Pay,3500102817,550.00,Redacted Personal Data
http://statistics.data.gov.uk/id/local-authority/38,Oxfordshire County Council,Homes for Ukraine - Guests,12/01/2024,5896,Adult Social Care - Other Transfer Pay,3500102634,550.00,Redacted Personal Data
http://statistics.data.gov.uk/id/local-authority/38,Oxfordshire County Council,Homes for Ukraine - Guests,28/01/2024,5896,Adult Social Care - Other Transfer Pay,3500102842,550.00,Redacted Personal Data
http://statistics.data.gov.uk/id/local-authority/38,Oxfordshire County Council,Homes for Ukraine - Guests,15/01/2024,5896,Adult Social Care - Other Transfer Pay,3500102637,550.00,Redacted Personal Data
http://statistics.data.gov.uk/id/local-authority/38,Oxfordshire County Council,Homes for Ukraine - Guests,17/01/2024,5896,Adult Social Care - Other Transfer Pay,3500102675,550.00,Redacted Personal Data
http://statistics.data.gov.uk/id/local-authority/38,Oxfordshire County Council,Homes for Ukraine - Guests,26/01/2024,5896,Adult Social Care - Other Transfer Pay,3500102835,550.00,Redacted Personal Data
http://statistics.data.gov.uk/id/local-authority/38,Oxfordshire County Council,Homes for Ukraine - Guests,25/01/2024,5896,Adult Social Care - Other Transfer Pay,3500102822,550.00,Redacted Personal Data
http://statistics.data.gov.uk/id/local-authority/38,Oxfordshire County Council,Homes for Ukraine - Guests,11/01/2024,5896,Adult Social Care - Other Transfer Pay,3500102608,550.00,Redacted Personal Data
http://statistics.data.gov.uk/id/local-authority/38,Oxfordshire County Council,Homes for Ukraine - Guests,17/01/2024,5896,Adult Social Care - Other Transfer Pay,3500102691,550.00,Redacted Personal Data
http://statistics.data.gov.uk/id/local-authority/38,Oxfordshire County Council,Homes for Ukraine - Education,15/01/2024,5537,Payments to Other Establishments,3111590177,550.00,Blewbury Endowed C of E Primary Sch
http://statistics.data.gov.uk/id/local-authority/38,Oxfordshire County Council,Homes for Ukraine - Guests,16/01/2024,5896,Adult Social Care - Other Transfer Pay,3500102653,550.00,Redacted Personal Data
http://statistics.data.gov.uk/id/local-authority/38,Oxfordshire County Council,Homes for Ukraine - Guests,03/01/2024,5896,Adult Social Care - Other Transfer Pay,3500102393,550.00,Redacted Personal Data
http://statistics.data.gov.uk/id/local-authority/38,Oxfordshire County Council,Homes for Ukraine - Guests,24/01/2024,5896,Adult Social Care - Other Transfer Pay,3500102785,550.00,Redacted Personal Data
http://statistics.data.gov.uk/id/local-authority/38,Oxfordshire County Council,Homes for Ukraine - Guests,18/01/2024,5896,Adult Social Care - Other Transfer Pay,3500102711,550.00,Redacted Personal Data
http://statistics.data.gov.uk/id/local-authority/38,Oxfordshire County Council,Homes for Ukraine - Guests,30/01/2024,5896,Adult Social Care - Other Transfer Pay,3500102874,550.00,Redacted Personal Data
http://statistics.data.gov.uk/id/local-authority/38,Oxfordshire County Council,Homes for Ukraine - Guests,24/01/2024,5896,Adult Social Care - Other Transfer Pay,3500102773,550.00,Redacted Personal Data
http://statistics.data.gov.uk/id/local-authority/38,Oxfordshire County Council,Homes for Ukraine - Guests,26/01/2024,5896,Adult Social Care - Other Transfer Pay,3500102826,550.00,Redacted Personal Data
http://statistics.data.gov.uk/id/local-authority/38,Oxfordshire County Council,Homes for Ukraine - Guests,31/01/2024,5896,Adult Social Care - Other Transfer Pay,3500102952,550.00,Redacted Personal Data
http://statistics.data.gov.uk/id/local-authority/38,Oxfordshire County Council,Homes for Ukraine - Guests,03/01/2024,5896,Adult Social Care - Other Transfer Pay,3500102391,550.00,Redacted Personal Data
http://statistics.data.gov.uk/id/local-authority/38,Oxfordshire County Council,Homes for Ukraine - Guests,12/01/2024,5896,Adult Social Care - Other Transfer Pay,3500102628,550.00,Redacted Personal Data
http://statistics.data.gov.uk/id/local-authority/38,Oxfordshire County Council,Homes for Ukraine - Guests,22/01/2024,5896,Adult Social Care - Other Transfer Pay,3500102734,550.00,Redacted Personal Data
http://statistics.data.gov.uk/id/local-authority/38,Oxfordshire County Council,Homes for Ukraine - Guests,16/01/2024,5896,Adult Social Care - Other Transfer Pay,3500102655,550.00,Redacted Personal Data
http://statistics.data.gov.uk/id/local-authority/38,Oxfordshire County Council,Homes for Ukraine - Guests,24/01/2024,5896,Adult Social Care - Other Transfer Pay,3500102789,550.00,Redacted Personal Data
http://statistics.data.gov.uk/id/local-authority/38,Oxfordshire County Council,Homes for Ukraine - Guests,05/01/2024,5896,Adult Social Care - Other Transfer Pay,3500102444,550.00,Redacted Personal Data
http://statistics.data.gov.uk/id/local-authority/38,Oxfordshire County Council,Homes for Ukraine - Guests,01/01/2024,5896,Adult Social Care - Other Transfer Pay,3500102358,550.00,Redacted Personal Data
http://statistics.data.gov.uk/id/local-authority/38,Oxfordshire County Council,Homes for Ukraine - Guests,09/01/2024,5896,Adult Social Care - Other Transfer Pay,3500102485,550.00,Redacted Personal Data
http://statistics.data.gov.uk/id/local-authority/38,Oxfordshire County Council,Homes for Ukraine - Guests,05/01/2024,5896,Adult Social Care - Other Transfer Pay,3500102449,550.00,Redacted Personal Data
http://statistics.data.gov.uk/id/local-authority/38,Oxfordshire County Council,Homes for Ukraine - Guests,01/01/2024,5896,Adult Social Care - Other Transfer Pay,3500102353,550.00,Redacted Personal Data
http://statistics.data.gov.uk/id/local-authority/38,Oxfordshire County Council,Homes for Ukraine - Guests,03/01/2024,5896,Adult Social Care - Other Transfer Pay,3500102395,550.00,Redacted Personal Data
http://statistics.data.gov.uk/id/local-authority/38,Oxfordshire County Council,Homes for Ukraine - Guests,17/01/2024,5896,Adult Social Care - Other Transfer Pay,3500102677,550.00,Redacted Personal Data
http://statistics.data.gov.uk/id/local-authority/38,Oxfordshire County Council,Homes for Ukraine - Guests,04/01/2024,5896,Adult Social Care - Other Transfer Pay,3500102422,550.00,Redacted Personal Data
http://statistics.data.gov.uk/id/local-authority/38,Oxfordshire County Council,Homes for Ukraine - Guests,24/01/2024,5896,Adult Social Care - Other Transfer Pay,3500102767,550.00,Redacted Personal Data
http://statistics.data.gov.uk/id/local-authority/38,Oxfordshire County Council,Homes for Ukraine - Guests,31/01/2024,5896,Adult Social Care - Other Transfer Pay,3500102927,550.00,Redacted Personal Data
http://statistics.data.gov.uk/id/local-authority/38,Oxfordshire County Council,Homes for Ukraine - Guests,24/01/2024,5896,Adult Social Care - Other Transfer Pay,3500102765,550.00,Redacted Personal Data
http://statistics.data.gov.uk/id/local-authority/38,Oxfordshire County Council,Homes for Ukraine - Guests,05/01/2024,5896,Adult Social Care - Other Transfer Pay,3500102447,550.00,Redacted Personal Data
http://statistics.data.gov.uk/id/local-authority/38,Oxfordshire County Council,Homes for Ukraine - Guests,17/01/2024,5896,Adult Social Care - Other Transfer Pay,3500102680,550.00,Redacted Personal Data
http://statistics.data.gov.uk/id/local-authority/38,Oxfordshire County Council,Homes for Ukraine - Guests,10/01/2024,5896,Adult Social Care - Other Transfer Pay,3500102559,550.00,Redacted Personal Data
http://statistics.data.gov.uk/id/local-authority/38,Oxfordshire County Council,Homes for Ukraine - Guests,18/01/2024,5896,Adult Social Care - Other Transfer Pay,3500102704,550.00,Redacted Personal Data
http://statistics.data.gov.uk/id/local-authority/38,Oxfordshire County Council,Homes for Ukraine - Guests,12/01/2024,5896,Adult Social Care - Other Transfer Pay,3500102630,550.00,Redacted Personal Data
http://statistics.data.gov.uk/id/local-authority/38,Oxfordshire County Council,TREE MAINT OPS,08/01/2024,5526,Payments to Private Contractors,2201185247,550.00,Climbers Way Tree Care Ltd.
http://statistics.data.gov.uk/id/local-authority/38,Oxfordshire County Council,Homes for Ukraine - Guests,04/01/2024,5896,Adult Social Care - Other Transfer Pay,3500102421,550.00,Redacted Personal Data
http://statistics.data.gov.uk/id/local-authority/38,Oxfordshire County Council,Homes for Ukraine - Guests,19/01/2024,5896,Adult Social Care - Other Transfer Pay,3500102721,550.00,Redacted Personal Data
http://statistics.data.gov.uk/id/local-authority/38,Oxfordshire County Council,Homes for Ukraine - Guests,23/01/2024,5896,Adult Social Care - Other Transfer Pay,3500102750,550.00,Redacted Personal Data
http://statistics.data.gov.uk/id/local-authority/38,Oxfordshire County Council,Homes for Ukraine - Guests,10/01/2024,5896,Adult Social Care - Other Transfer Pay,3500102557,550.00,Redacted Personal Data
http://statistics.data.gov.uk/id/local-authority/38,Oxfordshire County Council,Homes for Ukraine - Guests,02/01/2024,5896,Adult Social Care - Other Transfer Pay,3500102378,550.00,Redacted Personal Data
http://statistics.data.gov.uk/id/local-authority/38,Oxfordshire County Council,Homes for Ukraine - Guests,17/01/2024,5896,Adult Social Care - Other Transfer Pay,3500102685,550.00,Redacted Personal Data
http://statistics.data.gov.uk/id/local-authority/38,Oxfordshire County Council,Homes for Ukraine - Guests,09/01/2024,5896,Adult Social Care - Other Transfer Pay,3500102489,550.00,Redacted Personal Data
http://statistics.data.gov.uk/id/local-authority/38,Oxfordshire County Council,Homes for Ukraine - Guests,01/01/2024,5896,Adult Social Care - Other Transfer Pay,3500102357,550.00,Redacted Personal Data
http://statistics.data.gov.uk/id/local-authority/38,Oxfordshire County Council,Homes for Ukraine - Guests,31/01/2024,5896,Adult Social Care - Other Transfer Pay,3500102935,550.00,Redacted Personal Data
http://statistics.data.gov.uk/id/local-authority/38,Oxfordshire County Council,Homes for Ukraine - Guests,24/01/2024,5896,Adult Social Care - Other Transfer Pay,3500102812,550.00,Redacted Personal Data
http://statistics.data.gov.uk/id/local-authority/38,Oxfordshire County Council,Homes for Ukraine - Guests,24/01/2024,5896,Adult Social Care - Other Transfer Pay,3500102781,550.00,Redacted Personal Data
http://statistics.data.gov.uk/id/local-authority/38,Oxfordshire County Council,Homes for Ukraine - Guests,01/01/2024,5896,Adult Social Care - Other Transfer Pay,3500102354,550.00,Redacted Personal Data
http://statistics.data.gov.uk/id/local-authority/38,Oxfordshire County Council,Homes for Ukraine - Guests,31/01/2024,5896,Adult Social Care - Other Transfer Pay,3500102931,550.00,Redacted Personal Data
http://statistics.data.gov.uk/id/local-authority/38,Oxfordshire County Council,Homes for Ukraine - Guests,18/01/2024,5896,Adult Social Care - Other Transfer Pay,3500102705,550.00,Redacted Personal Data
http://statistics.data.gov.uk/id/local-authority/38,Oxfordshire County Council,Homes for Ukraine - Guests,16/01/2024,5896,Adult Social Care - Other Transfer Pay,3500102643,550.00,Redacted Personal Data
http://statistics.data.gov.uk/id/local-authority/38,Oxfordshire County Council,Homes for Ukraine - Guests,01/01/2024,5896,Adult Social Care - Other Transfer Pay,3500102363,550.00,Redacted Personal Data
http://statistics.data.gov.uk/id/local-authority/38,Oxfordshire County Council,Homes for Ukraine - Guests,31/01/2024,5896,Adult Social Care - Other Transfer Pay,3500102950,550.00,Redacted Personal Data
http://statistics.data.gov.uk/id/local-authority/38,Oxfordshire County Council,Homes for Ukraine - Guests,02/01/2024,5896,Adult Social Care - Other Transfer Pay,3500102373,550.00,Redacted Personal Data
http://statistics.data.gov.uk/id/local-authority/38,Oxfordshire County Council,Homes for Ukraine - Guests,31/01/2024,5896,Adult Social Care - Other Transfer Pay,3500102924,550.00,Redacted Personal Data
http://statistics.data.gov.uk/id/local-authority/38,Oxfordshire County Council,Homes for Ukraine - Guests,24/01/2024,5896,Adult Social Care - Other Transfer Pay,3500102783,550.00,Redacted Personal Data
http://statistics.data.gov.uk/id/local-authority/38,Oxfordshire County Council,Homes for Ukraine - Guests,10/01/2024,5896,Adult Social Care - Other Transfer Pay,3500102554,550.00,Redacted Personal Data
http://statistics.data.gov.uk/id/local-authority/38,Oxfordshire County Council,Homes for Ukraine - Guests,10/01/2024,5896,Adult Social Care - Other Transfer Pay,3500102585,550.00,Redacted Personal Data
http://statistics.data.gov.uk/id/local-authority/38,Oxfordshire County Council,Homes for Ukraine - Guests,10/01/2024,5896,Adult Social Care - Other Transfer Pay,3500102571,550.00,Redacted Personal Data
http://statistics.data.gov.uk/id/local-authority/38,Oxfordshire County Council,Homes for Ukraine - Guests,09/01/2024,5896,Adult Social Care - Other Transfer Pay,3500102473,550.00,Redacted Personal Data
http://statistics.data.gov.uk/id/local-authority/38,Oxfordshire County Council,Homes for Ukraine - Guests,24/01/2024,5896,Adult Social Care - Other Transfer Pay,3500102795,550.00,Redacted Personal Data
http://statistics.data.gov.uk/id/local-authority/38,Oxfordshire County Council,Homes for Ukraine - Guests,24/01/2024,5896,Adult Social Care - Other Transfer Pay,3500102763,550.00,Redacted Personal Data
http://statistics.data.gov.uk/id/local-authority/38,Oxfordshire County Council,Homes for Ukraine - Guests,24/01/2024,5896,Adult Social Care - Other Transfer Pay,3500102784,550.00,Redacted Personal Data
http://statistics.data.gov.uk/id/local-authority/38,Oxfordshire County Council,Homes for Ukraine - Guests,08/01/2024,5896,Adult Social Care - Other Transfer Pay,3500102465,550.00,Redacted Personal Data
http://statistics.data.gov.uk/id/local-authority/38,Oxfordshire County Council,Homes for Ukraine - Guests,30/01/2024,5896,Adult Social Care - Other Transfer Pay,3500102879,550.00,Redacted Personal Data
http://statistics.data.gov.uk/id/local-authority/38,Oxfordshire County Council,Homes for Ukraine - Guests,24/01/2024,5896,Adult Social Care - Other Transfer Pay,3500102766,550.00,Redacted Personal Data
http://statistics.data.gov.uk/id/local-authority/38,Oxfordshire County Council,Homes for Ukraine - Guests,12/01/2024,5896,Adult Social Care - Other Transfer Pay,3500102625,550.00,Redacted Personal Data
http://statistics.data.gov.uk/id/local-authority/38,Oxfordshire County Council,Homes for Ukraine - Guests,04/01/2024,5896,Adult Social Care - Other Transfer Pay,3500102434,550.00,Redacted Personal Data
http://statistics.data.gov.uk/id/local-authority/38,Oxfordshire County Council,Homes for Ukraine - Guests,18/01/2024,5896,Adult Social Care - Other Transfer Pay,3500102699,550.00,Redacted Personal Data
http://statistics.data.gov.uk/id/local-authority/38,Oxfordshire County Council,Homes for Ukraine - Guests,03/01/2024,5896,Adult Social Care - Other Transfer Pay,3500102406,550.00,Redacted Personal Data
http://statistics.data.gov.uk/id/local-authority/38,Oxfordshire County Council,Homes for Ukraine - Guests,29/01/2024,5896,Adult Social Care - Other Transfer Pay,3500102853,550.00,Redacted Personal Data
http://statistics.data.gov.uk/id/local-authority/38,Oxfordshire County Council,Homes for Ukraine - Guests,16/01/2024,5896,Adult Social Care - Other Transfer Pay,3500102649,550.00,Redacted Personal Data
http://statistics.data.gov.uk/id/local-authority/38,Oxfordshire County Council,Homes for Ukraine - Guests,19/01/2024,5896,Adult Social Care - Other Transfer Pay,3500102722,550.00,Redacted Personal Data
http://statistics.data.gov.uk/id/local-authority/38,Oxfordshire County Council,Homes for Ukraine - Guests,17/01/2024,5896,Adult Social Care - Other Transfer Pay,3500102660,550.00,Redacted Personal Data
http://statistics.data.gov.uk/id/local-authority/38,Oxfordshire County Council,Homes for Ukraine - Guests,19/01/2024,5896,Adult Social Care - Other Transfer Pay,3500102714,550.00,Redacted Personal Data
http://statistics.data.gov.uk/id/local-authority/38,Oxfordshire County Council,Homes for Ukraine - Guests,11/01/2024,5896,Adult Social Care - Other Transfer Pay,3500102600,550.00,Redacted Personal Data
http://statistics.data.gov.uk/id/local-authority/38,Oxfordshire County Council,Homes for Ukraine - Guests,10/01/2024,5896,Adult Social Care - Other Transfer Pay,3500102592,550.00,Redacted Personal Data
http://statistics.data.gov.uk/id/local-authority/38,Oxfordshire County Council,Homes for Ukraine - Guests,02/01/2024,5896,Adult Social Care - Other Transfer Pay,3500102372,550.00,Redacted Personal Data
http://statistics.data.gov.uk/id/local-authority/38,Oxfordshire County Council,Homes for Ukraine - Guests,31/01/2024,5896,Adult Social Care - Other Transfer Pay,3500102921,550.00,Redacted Personal Data
http://statistics.data.gov.uk/id/local-authority/38,Oxfordshire County Council,Homes for Ukraine - Guests,15/01/2024,5896,Adult Social Care - Other Transfer Pay,3500102638,550.00,Redacted Personal Data
http://statistics.data.gov.uk/id/local-authority/38,Oxfordshire County Council,Homes for Ukraine - Guests,02/01/2024,5896,Adult Social Care - Other Transfer Pay,3500102371,550.00,Redacted Personal Data
http://statistics.data.gov.uk/id/local-authority/38,Oxfordshire County Council,Homes for Ukraine - Guests,31/01/2024,5896,Adult Social Care - Other Transfer Pay,3500102919,550.00,Redacted Personal Data
http://statistics.data.gov.uk/id/local-authority/38,Oxfordshire County Council,Homes for Ukraine - Guests,22/01/2024,5896,Adult Social Care - Other Transfer Pay,3500102733,550.00,Redacted Personal Data
http://statistics.data.gov.uk/id/local-authority/38,Oxfordshire County Council,Homes for Ukraine - Guests,23/01/2024,5896,Adult Social Care - Other Transfer Pay,3500102753,550.00,Redacted Personal Data
http://statistics.data.gov.uk/id/local-authority/38,Oxfordshire County Council,Homes for Ukraine - Guests,01/01/2024,5896,Adult Social Care - Other Transfer Pay,3500102350,550.00,Redacted Personal Data
http://statistics.data.gov.uk/id/local-authority/38,Oxfordshire County Council,Homes for Ukraine - Guests,31/01/2024,5896,Adult Social Care - Other Transfer Pay,3500102925,550.00,Redacted Personal Data
http://statistics.data.gov.uk/id/local-authority/38,Oxfordshire County Council,Homes for Ukraine - Guests,22/01/2024,5896,Adult Social Care - Other Transfer Pay,3500102735,550.00,Redacted Personal Data
http://statistics.data.gov.uk/id/local-authority/38,Oxfordshire County Council,Homes for Ukraine - Guests,16/01/2024,5896,Adult Social Care - Other Transfer Pay,3500102644,550.00,Redacted Personal Data
http://statistics.data.gov.uk/id/local-authority/38,Oxfordshire County Council,Homes for Ukraine - Guests,04/01/2024,5896,Adult Social Care - Other Transfer Pay,3500102420,550.00,Redacted Personal Data
http://statistics.data.gov.uk/id/local-authority/38,Oxfordshire County Council,Homes for Ukraine - Guests,11/01/2024,5896,Adult Social Care - Other Transfer Pay,3500102606,550.00,Redacted Personal Data
http://statistics.data.gov.uk/id/local-authority/38,Oxfordshire County Council,Homes for Ukraine - Guests,10/01/2024,5896,Adult Social Care - Other Transfer Pay,3500102595,550.00,Redacted Personal Data
http://statistics.data.gov.uk/id/local-authority/38,Oxfordshire County Council,Homes for Ukraine - Guests,24/01/2024,5896,Adult Social Care - Other Transfer Pay,3500102786,550.00,Redacted Personal Data
http://statistics.data.gov.uk/id/local-authority/38,Oxfordshire County Council,Homes for Ukraine - Guests,10/01/2024,5896,Adult Social Care - Other Transfer Pay,3500102578,550.00,Redacted Personal Data
http://statistics.data.gov.uk/id/local-authority/38,Oxfordshire County Council,Homes for Ukraine - Guests,24/01/2024,5896,Adult Social Care - Other Transfer Pay,3500102803,550.00,Redacted Personal Data
http://statistics.data.gov.uk/id/local-authority/38,Oxfordshire County Council,Homes for Ukraine - Guests,01/01/2024,5896,Adult Social Care - Other Transfer Pay,3500102346,550.00,Redacted Personal Data
http://statistics.data.gov.uk/id/local-authority/38,Oxfordshire County Council,Homes for Ukraine - Guests,31/01/2024,5896,Adult Social Care - Other Transfer Pay,3500102917,550.00,Redacted Personal Data
http://statistics.data.gov.uk/id/local-authority/38,Oxfordshire County Council,Homes for Ukraine - Guests,05/01/2024,5896,Adult Social Care - Other Transfer Pay,3500102436,550.00,Redacted Personal Data
http://statistics.data.gov.uk/id/local-authority/38,Oxfordshire County Council,Homes for Ukraine - Guests,01/01/2024,5896,Adult Social Care - Other Transfer Pay,3500102347,550.00,Redacted Personal Data
http://statistics.data.gov.uk/id/local-authority/38,Oxfordshire County Council,Homes for Ukraine - Guests,16/01/2024,5896,Adult Social Care - Other Transfer Pay,3500102647,550.00,Redacted Personal Data
http://statistics.data.gov.uk/id/local-authority/38,Oxfordshire County Council,Homes for Ukraine - Guests,02/01/2024,5896,Adult Social Care - Other Transfer Pay,3500102375,550.00,Redacted Personal Data
http://statistics.data.gov.uk/id/local-authority/38,Oxfordshire County Council,Homes for Ukraine - Guests,11/01/2024,5896,Adult Social Care - Other Transfer Pay,3500102601,550.00,Redacted Personal Data
http://statistics.data.gov.uk/id/local-authority/38,Oxfordshire County Council,Homes for Ukraine - Guests,24/01/2024,5896,Adult Social Care - Other Transfer Pay,3500102806,550.00,Redacted Personal Data
http://statistics.data.gov.uk/id/local-authority/38,Oxfordshire County Council,Homes for Ukraine - Guests,05/01/2024,5896,Adult Social Care - Other Transfer Pay,3500102451,550.00,Redacted Personal Data
http://statistics.data.gov.uk/id/local-authority/38,Oxfordshire County Council,Homes for Ukraine - Guests,03/01/2024,5896,Adult Social Care - Other Transfer Pay,3500102415,550.00,Redacted Personal Data
http://statistics.data.gov.uk/id/local-authority/38,Oxfordshire County Council,LANDLORD & TENANT,18/01/2024,8102,Payments to main contractor,2201189442,550.00,George Henry Relay Ltd
http://statistics.data.gov.uk/id/local-authority/38,Oxfordshire County Council,Homes for Ukraine - Guests,17/01/2024,5896,Adult Social Care - Other Transfer Pay,3500102666,550.00,Redacted Personal Data
http://statistics.data.gov.uk/id/local-authority/38,Oxfordshire County Council,Homes for Ukraine - Guests,11/01/2024,5896,Adult Social Care - Other Transfer Pay,3500102605,550.00,Redacted Personal Data
http://statistics.data.gov.uk/id/local-authority/38,Oxfordshire County Council,Homes for Ukraine - Guests,27/01/2024,5896,Adult Social Care - Other Transfer Pay,3500102841,550.00,Redacted Personal Data
http://statistics.data.gov.uk/id/local-authority/38,Oxfordshire County Council,SEN TRANSPORT,25/01/2024,4330,Transport to School Activities,3111595267,550.00,Go Green Taxis
http://statistics.data.gov.uk/id/local-authority/38,Oxfordshire County Council,Homes for Ukraine - Guests,17/01/2024,5896,Adult Social Care - Other Transfer Pay,3500102676,550.00,Redacted Personal Data
http://statistics.data.gov.uk/id/local-authority/38,Oxfordshire County Council,Homes for Ukraine - Guests,24/01/2024,5896,Adult Social Care - Other Transfer Pay,3500102772,550.00,Redacted Personal Data
http://statistics.data.gov.uk/id/local-authority/38,Oxfordshire County Council,Homes for Ukraine - Guests,19/01/2024,5896,Adult Social Care - Other Transfer Pay,3500102720,550.00,Redacted Personal Data
http://statistics.data.gov.uk/id/local-authority/38,Oxfordshire County Council,Homes for Ukraine - Guests,11/01/2024,5896,Adult Social Care - Other Transfer Pay,3500102599,550.00,Redacted Personal Data
http://statistics.data.gov.uk/id/local-authority/38,Oxfordshire County Council,Homes for Ukraine - Guests,17/01/2024,5896,Adult Social Care - Other Transfer Pay,3500102696,550.00,Redacted Personal Data
http://statistics.data.gov.uk/id/local-authority/38,Oxfordshire County Council,Homes for Ukraine - Guests,30/01/2024,5896,Adult Social Care - Other Transfer Pay,3500102887,550.00,Redacted Personal Data
http://statistics.data.gov.uk/id/local-authority/38,Oxfordshire County Council,Homes for Ukraine - Guests,11/01/2024,5896,Adult Social Care - Other Transfer Pay,3500102602,550.00,Redacted Personal Data
http://statistics.data.gov.uk/id/local-authority/38,Oxfordshire County Council,Homes for Ukraine - Guests,31/01/2024,5896,Adult Social Care - Other Transfer Pay,3500102943,550.00,Redacted Personal Data
http://statistics.data.gov.uk/id/local-authority/38,Oxfordshire County Council,Homes for Ukraine - Guests,22/01/2024,5896,Adult Social Care - Other Transfer Pay,3500102732,550.00,Redacted Personal Data
http://statistics.data.gov.uk/id/local-authority/38,Oxfordshire County Council,Homes for Ukraine - Guests,01/01/2024,5896,Adult Social Care - Other Transfer Pay,3500102356,550.00,Redacted Personal Data
http://statistics.data.gov.uk/id/local-authority/38,Oxfordshire County Council,Homes for Ukraine - Guests,31/01/2024,5896,Adult Social Care - Other Transfer Pay,3500102933,550.00,Redacted Personal Data
http://statistics.data.gov.uk/id/local-authority/38,Oxfordshire County Council,Homes for Ukraine - Guests,08/01/2024,5896,Adult Social Care - Other Transfer Pay,3500102464,550.00,Redacted Personal Data
http://statistics.data.gov.uk/id/local-authority/38,Oxfordshire County Council,Homes for Ukraine - Guests,01/01/2024,5896,Adult Social Care - Other Transfer Pay,3500102339,550.00,Redacted Personal Data
http://statistics.data.gov.uk/id/local-authority/38,Oxfordshire County Council,Homes for Ukraine - Guests,24/01/2024,5896,Adult Social Care - Other Transfer Pay,3500102764,550.00,Redacted Personal Data
http://statistics.data.gov.uk/id/local-authority/38,Oxfordshire County Council,Homes for Ukraine - Guests,30/01/2024,5896,Adult Social Care - Other Transfer Pay,3500102884,550.00,Redacted Personal Data
http://statistics.data.gov.uk/id/local-authority/38,Oxfordshire County Council,Homes for Ukraine - Guests,10/01/2024,5896,Adult Social Care - Other Transfer Pay,3500102558,550.00,Redacted Personal Data
http://statistics.data.gov.uk/id/local-authority/38,Oxfordshire County Council,Solo Home 1 Chinnor,29/01/2024,4940,Other Services,2201192437,550.00,Headington Carriers Limited
http://statistics.data.gov.uk/id/local-authority/38,Oxfordshire County Council,Homes for Ukraine - Guests,24/01/2024,5896,Adult Social Care - Other Transfer Pay,3500102771,550.00,Redacted Personal Data
http://statistics.data.gov.uk/id/local-authority/38,Oxfordshire County Council,Homes for Ukraine - Guests,25/01/2024,5896,Adult Social Care - Other Transfer Pay,3500102821,550.00,Redacted Personal Data
http://statistics.data.gov.uk/id/local-authority/38,Oxfordshire County Council,Homes for Ukraine - Guests,24/01/2024,5896,Adult Social Care - Other Transfer Pay,3500102770,550.00,Redacted Personal Data
http://statistics.data.gov.uk/id/local-authority/38,Oxfordshire County Council,Homes for Ukraine - Guests,22/01/2024,5896,Adult Social Care - Other Transfer Pay,3500102743,550.00,Redacted Personal Data
http://statistics.data.gov.uk/id/local-authority/38,Oxfordshire County Council,Homes for Ukraine - Guests,04/01/2024,5896,Adult Social Care - Other Transfer Pay,3500102426,550.00,Redacted Personal Data
http://statistics.data.gov.uk/id/local-authority/38,Oxfordshire County Council,Homes for Ukraine - Guests,01/01/2024,5896,Adult Social Care - Other Transfer Pay,3500102351,550.00,Redacted Personal Data
http://statistics.data.gov.uk/id/local-authority/38,Oxfordshire County Council,Homes for Ukraine - Guests,31/01/2024,5896,Adult Social Care - Other Transfer Pay,3500102926,550.00,Redacted Personal Data
http://statistics.data.gov.uk/id/local-authority/38,Oxfordshire County Council,Homes for Ukraine - Guests,04/01/2024,5896,Adult Social Care - Other Transfer Pay,3500102425,550.00,Redacted Personal Data
http://statistics.data.gov.uk/id/local-authority/38,Oxfordshire County Council,Homes for Ukraine - Guests,17/01/2024,5896,Adult Social Care - Other Transfer Pay,3500102663,550.00,Redacted Personal Data
http://statistics.data.gov.uk/id/local-authority/38,Oxfordshire County Council,Homes for Ukraine - Guests,02/01/2024,5896,Adult Social Care - Other Transfer Pay,3500102380,550.00,Redacted Personal Data
http://statistics.data.gov.uk/id/local-authority/38,Oxfordshire County Council,Homes for Ukraine - Guests,31/01/2024,5896,Adult Social Care - Other Transfer Pay,3500102940,550.00,Redacted Personal Data
http://statistics.data.gov.uk/id/local-authority/38,Oxfordshire County Council,Homes for Ukraine - Guests,10/01/2024,5896,Adult Social Care - Other Transfer Pay,3500102584,550.00,Redacted Personal Data
http://statistics.data.gov.uk/id/local-authority/38,Oxfordshire County Council,Homes for Ukraine - Guests,24/01/2024,5896,Adult Social Care - Other Transfer Pay,3500102759,550.00,Redacted Personal Data
http://statistics.data.gov.uk/id/local-authority/38,Oxfordshire County Council,Homes for Ukraine - Guests,10/01/2024,5896,Adult Social Care - Other Transfer Pay,3500102588,550.00,Redacted Personal Data
http://statistics.data.gov.uk/id/local-authority/38,Oxfordshire County Council,Homes for Ukraine - Guests,05/01/2024,5896,Adult Social Care - Other Transfer Pay,3500102435,550.00,Redacted Personal Data
http://statistics.data.gov.uk/id/local-authority/38,Oxfordshire County Council,Homes for Ukraine - Guests,10/01/2024,5896,Adult Social Care - Other Transfer Pay,3500102556,550.00,Redacted Personal Data
http://statistics.data.gov.uk/id/local-authority/38,Oxfordshire County Council,Homes for Ukraine - Guests,01/01/2024,5896,Adult Social Care - Other Transfer Pay,3500102344,550.00,Redacted Personal Data
http://statistics.data.gov.uk/id/local-authority/38,Oxfordshire County Council,Homes for Ukraine - Guests,10/01/2024,5896,Adult Social Care - Other Transfer Pay,3500102561,550.00,Redacted Personal Data
http://statistics.data.gov.uk/id/local-authority/38,Oxfordshire County Council,Homes for Ukraine - Guests,17/01/2024,5896,Adult Social Care - Other Transfer Pay,3500102692,550.00,Redacted Personal Data
http://statistics.data.gov.uk/id/local-authority/38,Oxfordshire County Council,Homes for Ukraine - Guests,24/01/2024,5896,Adult Social Care - Other Transfer Pay,3500102808,550.00,Redacted Personal Data
http://statistics.data.gov.uk/id/local-authority/38,Oxfordshire County Council,Homes for Ukraine - Guests,18/01/2024,5896,Adult Social Care - Other Transfer Pay,3500102713,550.00,Redacted Personal Data
http://statistics.data.gov.uk/id/local-authority/38,Oxfordshire County Council,Homes for Ukraine - Guests,29/01/2024,5896,Adult Social Care - Other Transfer Pay,3500102863,550.00,Redacted Personal Data
http://statistics.data.gov.uk/id/local-authority/38,Oxfordshire County Council,Homes for Ukraine - Guests,24/01/2024,5896,Adult Social Care - Other Transfer Pay,3500102797,550.00,Redacted Personal Data
http://statistics.data.gov.uk/id/local-authority/38,Oxfordshire County Council,Homes for Ukraine - Guests,05/01/2024,5896,Adult Social Care - Other Transfer Pay,3500102454,550.00,Redacted Personal Data
http://statistics.data.gov.uk/id/local-authority/38,Oxfordshire County Council,Homes for Ukraine - Guests,24/01/2024,5896,Adult Social Care - Other Transfer Pay,3500102798,550.00,Redacted Personal Data
http://statistics.data.gov.uk/id/local-authority/38,Oxfordshire County Council,Homes for Ukraine - Guests,08/01/2024,5896,Adult Social Care - Other Transfer Pay,3500102461,550.00,Redacted Personal Data
http://statistics.data.gov.uk/id/local-authority/38,Oxfordshire County Council,Homes for Ukraine - Guests,12/01/2024,5896,Adult Social Care - Other Transfer Pay,3500102623,550.00,Redacted Personal Data
http://statistics.data.gov.uk/id/local-authority/38,Oxfordshire County Council,Homes for Ukraine - Guests,08/01/2024,5896,Adult Social Care - Other Transfer Pay,3500102469,550.00,Redacted Personal Data
http://statistics.data.gov.uk/id/local-authority/38,Oxfordshire County Council,Homes for Ukraine - Guests,10/01/2024,5896,Adult Social Care - Other Transfer Pay,3500102566,550.00,Redacted Personal Data
http://statistics.data.gov.uk/id/local-authority/38,Oxfordshire County Council,Homes for Ukraine - Guests,25/01/2024,5896,Adult Social Care - Other Transfer Pay,3500102820,550.00,Redacted Personal Data
http://statistics.data.gov.uk/id/local-authority/38,Oxfordshire County Council,Homes for Ukraine - Guests,01/01/2024,5896,Adult Social Care - Other Transfer Pay,3500102340,550.00,Redacted Personal Data
http://statistics.data.gov.uk/id/local-authority/38,Oxfordshire County Council,Homes for Ukraine - Guests,29/01/2024,5896,Adult Social Care - Other Transfer Pay,3500102850,550.00,Redacted Personal Data
http://statistics.data.gov.uk/id/local-authority/38,Oxfordshire County Council,Homes for Ukraine - Guests,06/01/2024,5896,Adult Social Care - Other Transfer Pay,3500102457,550.00,Redacted Personal Data
http://statistics.data.gov.uk/id/local-authority/38,Oxfordshire County Council,Homes for Ukraine - Guests,24/01/2024,5896,Adult Social Care - Other Transfer Pay,3500102779,550.00,Redacted Personal Data
http://statistics.data.gov.uk/id/local-authority/38,Oxfordshire County Council,Homes for Ukraine - Guests,24/01/2024,5896,Adult Social Care - Other Transfer Pay,3500102802,550.00,Redacted Personal Data
http://statistics.data.gov.uk/id/local-authority/38,Oxfordshire County Council,Homes for Ukraine - Guests,26/01/2024,5896,Adult Social Care - Other Transfer Pay,3500102829,550.00,Redacted Personal Data
http://statistics.data.gov.uk/id/local-authority/38,Oxfordshire County Council,Homes for Ukraine - Guests,24/01/2024,5896,Adult Social Care - Other Transfer Pay,3500102775,550.00,Redacted Personal Data
http://statistics.data.gov.uk/id/local-authority/38,Oxfordshire County Council,Homes for Ukraine - Guests,04/01/2024,5896,Adult Social Care - Other Transfer Pay,3500102428,550.00,Redacted Personal Data
http://statistics.data.gov.uk/id/local-authority/38,Oxfordshire County Council,Homes for Ukraine - Guests,12/01/2024,5896,Adult Social Care - Other Transfer Pay,3500102632,550.00,Redacted Personal Data
http://statistics.data.gov.uk/id/local-authority/38,Oxfordshire County Council,Homes for Ukraine - Guests,08/01/2024,5896,Adult Social Care - Other Transfer Pay,3500102471,550.00,Redacted Personal Data
http://statistics.data.gov.uk/id/local-authority/38,Oxfordshire County Council,Homes for Ukraine - Guests,08/01/2024,5896,Adult Social Care - Other Transfer Pay,3500102463,550.00,Redacted Personal Data
http://statistics.data.gov.uk/id/local-authority/38,Oxfordshire County Council,Homes for Ukraine - Guests,16/01/2024,5896,Adult Social Care - Other Transfer Pay,3500102650,550.00,Redacted Personal Data
http://statistics.data.gov.uk/id/local-authority/38,Oxfordshire County Council,Homes for Ukraine - Guests,24/01/2024,5896,Adult Social Care - Other Transfer Pay,3500102813,550.00,Redacted Personal Data
http://statistics.data.gov.uk/id/local-authority/38,Oxfordshire County Council,Homes for Ukraine - Guests,20/01/2024,5896,Adult Social Care - Other Transfer Pay,3500102729,550.00,Redacted Personal Data
http://statistics.data.gov.uk/id/local-authority/38,Oxfordshire County Council,Homes for Ukraine - Guests,10/01/2024,5896,Adult Social Care - Other Transfer Pay,3500102567,550.00,Redacted Personal Data
http://statistics.data.gov.uk/id/local-authority/38,Oxfordshire County Council,Homes for Ukraine - Guests,03/01/2024,5896,Adult Social Care - Other Transfer Pay,3500102414,550.00,Redacted Personal Data
http://statistics.data.gov.uk/id/local-authority/38,Oxfordshire County Council,Homes for Ukraine - Guests,02/01/2024,5896,Adult Social Care - Other Transfer Pay,3500102379,550.00,Redacted Personal Data
http://statistics.data.gov.uk/id/local-authority/38,Oxfordshire County Council,Homes for Ukraine - Guests,12/01/2024,5896,Adult Social Care - Other Transfer Pay,3500102626,550.00,Redacted Personal Data
http://statistics.data.gov.uk/id/local-authority/38,Oxfordshire County Council,Homes for Ukraine - Guests,24/01/2024,5896,Adult Social Care - Other Transfer Pay,3500102807,550.00,Redacted Personal Data
http://statistics.data.gov.uk/id/local-authority/38,Oxfordshire County Council,Homes for Ukraine - Guests,24/01/2024,5896,Adult Social Care - Other Transfer Pay,3500102796,550.00,Redacted Personal Data
http://statistics.data.gov.uk/id/local-authority/38,Oxfordshire County Council,Homes for Ukraine - Guests,01/01/2024,5896,Adult Social Care - Other Transfer Pay,3500102352,550.00,Redacted Personal Data
http://statistics.data.gov.uk/id/local-authority/38,Oxfordshire County Council,Homes for Ukraine - Guests,31/01/2024,5896,Adult Social Care - Other Transfer Pay,3500102930,550.00,Redacted Personal Data
http://statistics.data.gov.uk/id/local-authority/38,Oxfordshire County Council,Homes for Ukraine - Guests,03/01/2024,5896,Adult Social Care - Other Transfer Pay,3500102418,550.00,Redacted Personal Data
http://statistics.data.gov.uk/id/local-authority/38,Oxfordshire County Council,Homes for Ukraine - Guests,26/01/2024,5896,Adult Social Care - Other Transfer Pay,3500102827,550.00,Redacted Personal Data
http://statistics.data.gov.uk/id/local-authority/38,Oxfordshire County Council,Homes for Ukraine - Guests,16/01/2024,5896,Adult Social Care - Other Transfer Pay,3500102648,550.00,Redacted Personal Data
http://statistics.data.gov.uk/id/local-authority/38,Oxfordshire County Council,Homes for Ukraine - Guests,05/01/2024,5896,Adult Social Care - Other Transfer Pay,3500102441,550.00,Redacted Personal Data
http://statistics.data.gov.uk/id/local-authority/38,Oxfordshire County Council,Homes for Ukraine - Guests,17/01/2024,5896,Adult Social Care - Other Transfer Pay,3500102684,550.00,Redacted Personal Data
http://statistics.data.gov.uk/id/local-authority/38,Oxfordshire County Council,Homes for Ukraine - Guests,19/01/2024,5896,Adult Social Care - Other Transfer Pay,3500102716,550.00,Redacted Personal Data
http://statistics.data.gov.uk/id/local-authority/38,Oxfordshire County Council,Homes for Ukraine - Guests,17/01/2024,5896,Adult Social Care - Other Transfer Pay,3500102662,550.00,Redacted Personal Data
http://statistics.data.gov.uk/id/local-authority/38,Oxfordshire County Council,Homes for Ukraine - Guests,10/01/2024,5896,Adult Social Care - Other Transfer Pay,3500102583,550.00,Redacted Personal Data
http://statistics.data.gov.uk/id/local-authority/38,Oxfordshire County Council,Homes for Ukraine - Guests,12/01/2024,5896,Adult Social Care - Other Transfer Pay,3500102613,550.00,Redacted Personal Data
http://statistics.data.gov.uk/id/local-authority/38,Oxfordshire County Council,Homes for Ukraine - Guests,30/01/2024,5896,Adult Social Care - Other Transfer Pay,3500102886,550.00,Redacted Personal Data
http://statistics.data.gov.uk/id/local-authority/38,Oxfordshire County Council,Homes for Ukraine - Guests,24/01/2024,5896,Adult Social Care - Other Transfer Pay,3500102793,550.00,Redacted Personal Data
http://statistics.data.gov.uk/id/local-authority/38,Oxfordshire County Council,Homes for Ukraine - Guests,18/01/2024,5896,Adult Social Care - Other Transfer Pay,3500102707,550.00,Redacted Personal Data
http://statistics.data.gov.uk/id/local-authority/38,Oxfordshire County Council,Homes for Ukraine - Guests,24/01/2024,5896,Adult Social Care - Other Transfer Pay,3500102782,550.00,Redacted Personal Data
http://statistics.data.gov.uk/id/local-authority/38,Oxfordshire County Council,Homes for Ukraine - Guests,05/01/2024,5896,Adult Social Care - Other Transfer Pay,3500102446,550.00,Redacted Personal Data
http://statistics.data.gov.uk/id/local-authority/38,Oxfordshire County Council,Homes for Ukraine - Guests,09/01/2024,5896,Adult Social Care - Other Transfer Pay,3500102479,550.00,Redacted Personal Data
http://statistics.data.gov.uk/id/local-authority/38,Oxfordshire County Council,Homes for Ukraine - Guests,01/01/2024,5896,Adult Social Care - Other Transfer Pay,3500102338,550.00,Redacted Personal Data
http://statistics.data.gov.uk/id/local-authority/38,Oxfordshire County Council,Homes for Ukraine - Guests,30/01/2024,5896,Adult Social Care - Other Transfer Pay,3500102877,550.00,Redacted Personal Data
http://statistics.data.gov.uk/id/local-authority/38,Oxfordshire County Council,Homes for Ukraine - Guests,19/01/2024,5896,Adult Social Care - Other Transfer Pay,3500102715,550.00,Redacted Personal Data
http://statistics.data.gov.uk/id/local-authority/38,Oxfordshire County Council,Homes for Ukraine - Guests,24/01/2024,5896,Adult Social Care - Other Transfer Pay,3500102804,550.00,Redacted Personal Data
http://statistics.data.gov.uk/id/local-authority/38,Oxfordshire County Council,Homes for Ukraine - Guests,28/01/2024,5896,Adult Social Care - Other Transfer Pay,3500102845,550.00,Redacted Personal Data
http://statistics.data.gov.uk/id/local-authority/38,Oxfordshire County Council,Homes for Ukraine - Guests,30/01/2024,5896,Adult Social Care - Other Transfer Pay,3500102876,550.00,Redacted Personal Data
http://statistics.data.gov.uk/id/local-authority/38,Oxfordshire County Council,Homes for Ukraine - Guests,29/01/2024,5896,Adult Social Care - Other Transfer Pay,3500102861,550.00,Redacted Personal Data
http://statistics.data.gov.uk/id/local-authority/38,Oxfordshire County Council,Homes for Ukraine - Guests,24/01/2024,5896,Adult Social Care - Other Transfer Pay,3500102777,550.00,Redacted Personal Data
http://statistics.data.gov.uk/id/local-authority/38,Oxfordshire County Council,Homes for Ukraine - Guests,31/01/2024,5896,Adult Social Care - Other Transfer Pay,3500102949,550.00,Redacted Personal Data
http://statistics.data.gov.uk/id/local-authority/38,Oxfordshire County Council,Homes for Ukraine - Guests,25/01/2024,5896,Adult Social Care - Other Transfer Pay,3500102818,550.00,Redacted Personal Data
http://statistics.data.gov.uk/id/local-authority/38,Oxfordshire County Council,Homes for Ukraine - Guests,02/01/2024,5896,Adult Social Care - Other Transfer Pay,3500102369,550.00,Redacted Personal Data
http://statistics.data.gov.uk/id/local-authority/38,Oxfordshire County Council,Homes for Ukraine - Guests,31/01/2024,5896,Adult Social Care - Other Transfer Pay,3500102916,550.00,Redacted Personal Data
http://statistics.data.gov.uk/id/local-authority/38,Oxfordshire County Council,Homes for Ukraine - Guests,04/01/2024,5896,Adult Social Care - Other Transfer Pay,3500102424,550.00,Redacted Personal Data
http://statistics.data.gov.uk/id/local-authority/38,Oxfordshire County Council,Homes for Ukraine - Guests,05/01/2024,5896,Adult Social Care - Other Transfer Pay,3500102448,550.00,Redacted Personal Data
http://statistics.data.gov.uk/id/local-authority/38,Oxfordshire County Council,Homes for Ukraine - Guests,22/01/2024,5896,Adult Social Care - Other Transfer Pay,3500102741,550.00,Redacted Personal Data
http://statistics.data.gov.uk/id/local-authority/38,Oxfordshire County Council,Homes for Ukraine - Guests,10/01/2024,5896,Adult Social Care - Other Transfer Pay,3500102580,550.00,Redacted Personal Data
http://statistics.data.gov.uk/id/local-authority/38,Oxfordshire County Council,Homes for Ukraine - Guests,17/01/2024,5896,Adult Social Care - Other Transfer Pay,3500102683,550.00,Redacted Personal Data
http://statistics.data.gov.uk/id/local-authority/38,Oxfordshire County Council,Homes for Ukraine - Guests,05/01/2024,5896,Adult Social Care - Other Transfer Pay,3500102455,550.00,Redacted Personal Data
http://statistics.data.gov.uk/id/local-authority/38,Oxfordshire County Council,Homes for Ukraine - Guests,01/01/2024,5896,Adult Social Care - Other Transfer Pay,3500102349,550.00,Redacted Personal Data
http://statistics.data.gov.uk/id/local-authority/38,Oxfordshire County Council,Homes for Ukraine - Guests,24/01/2024,5896,Adult Social Care - Other Transfer Pay,3500102794,550.00,Redacted Personal Data
http://statistics.data.gov.uk/id/local-authority/38,Oxfordshire County Council,Homes for Ukraine - Guests,29/01/2024,5896,Adult Social Care - Other Transfer Pay,3500102849,550.00,Redacted Personal Data
http://statistics.data.gov.uk/id/local-authority/38,Oxfordshire County Council,Homes for Ukraine - Guests,09/01/2024,5896,Adult Social Care - Other Transfer Pay,3500102488,550.00,Redacted Personal Data
http://statistics.data.gov.uk/id/local-authority/38,Oxfordshire County Council,Homes for Ukraine - Guests,03/01/2024,5896,Adult Social Care - Other Transfer Pay,3500102396,550.00,Redacted Personal Data
http://statistics.data.gov.uk/id/local-authority/38,Oxfordshire County Council,Homes for Ukraine - Guests,05/01/2024,5896,Adult Social Care - Other Transfer Pay,3500102443,550.00,Redacted Personal Data
http://statistics.data.gov.uk/id/local-authority/38,Oxfordshire County Council,Homes for Ukraine - Guests,29/01/2024,5896,Adult Social Care - Other Transfer Pay,3500102862,550.00,Redacted Personal Data
http://statistics.data.gov.uk/id/local-authority/38,Oxfordshire County Council,Homes for Ukraine - Guests,28/01/2024,5896,Adult Social Care - Other Transfer Pay,3500102844,550.00,Redacted Personal Data
http://statistics.data.gov.uk/id/local-authority/38,Oxfordshire County Council,Homes for Ukraine - Guests,05/01/2024,5896,Adult Social Care - Other Transfer Pay,3500102439,550.00,Redacted Personal Data
http://statistics.data.gov.uk/id/local-authority/38,Oxfordshire County Council,Homes for Ukraine - Guests,24/01/2024,5896,Adult Social Care - Other Transfer Pay,3500102810,550.00,Redacted Personal Data
http://statistics.data.gov.uk/id/local-authority/38,Oxfordshire County Council,Homes for Ukraine - Guests,10/01/2024,5896,Adult Social Care - Other Transfer Pay,3500102590,550.00,Redacted Personal Data
http://statistics.data.gov.uk/id/local-authority/38,Oxfordshire County Council,Homes for Ukraine - Guests,01/01/2024,5896,Adult Social Care - Other Transfer Pay,3500102361,550.00,Redacted Personal Data
http://statistics.data.gov.uk/id/local-authority/38,Oxfordshire County Council,Homes for Ukraine - Guests,31/01/2024,5896,Adult Social Care - Other Transfer Pay,3500102947,550.00,Redacted Personal Data
http://statistics.data.gov.uk/id/local-authority/38,Oxfordshire County Council,Homes for Ukraine - Guests,18/01/2024,5896,Adult Social Care - Other Transfer Pay,3500102698,550.00,Redacted Personal Data
http://statistics.data.gov.uk/id/local-authority/38,Oxfordshire County Council,Homes for Ukraine - Guests,02/01/2024,5896,Adult Social Care - Other Transfer Pay,3500102382,550.00,Redacted Personal Data
http://statistics.data.gov.uk/id/local-authority/38,Oxfordshire County Council,Homes for Ukraine - Guests,31/01/2024,5896,Adult Social Care - Other Transfer Pay,3500102942,550.00,Redacted Personal Data
http://statistics.data.gov.uk/id/local-authority/38,Oxfordshire County Council,Homes for Ukraine - Guests,08/01/2024,5896,Adult Social Care - Other Transfer Pay,3500102470,550.00,Redacted Personal Data
http://statistics.data.gov.uk/id/local-authority/38,Oxfordshire County Council,Homes for Ukraine - Guests,24/01/2024,5896,Adult Social Care - Other Transfer Pay,3500102800,550.00,Redacted Personal Data
http://statistics.data.gov.uk/id/local-authority/38,Oxfordshire County Council,Homes for Ukraine - Guests,04/01/2024,5896,Adult Social Care - Other Transfer Pay,3500102433,550.00,Redacted Personal Data
http://statistics.data.gov.uk/id/local-authority/38,Oxfordshire County Council,Homes for Ukraine - Guests,03/01/2024,5896,Adult Social Care - Other Transfer Pay,3500102398,550.00,Redacted Personal Data
http://statistics.data.gov.uk/id/local-authority/38,Oxfordshire County Council,Homes for Ukraine - Guests,02/01/2024,5896,Adult Social Care - Other Transfer Pay,3500102377,550.00,Redacted Personal Data
http://statistics.data.gov.uk/id/local-authority/38,Oxfordshire County Council,Homes for Ukraine - Guests,02/01/2024,5896,Adult Social Care - Other Transfer Pay,3500102383,550.00,Redacted Personal Data
http://statistics.data.gov.uk/id/local-authority/38,Oxfordshire County Council,Homes for Ukraine - Guests,31/01/2024,5896,Adult Social Care - Other Transfer Pay,3500102944,550.00,Redacted Personal Data
http://statistics.data.gov.uk/id/local-authority/38,Oxfordshire County Council,Homes for Ukraine - Guests,10/01/2024,5896,Adult Social Care - Other Transfer Pay,3500102553,550.00,Redacted Personal Data
http://statistics.data.gov.uk/id/local-authority/38,Oxfordshire County Council,Homes for Ukraine - Guests,10/01/2024,5896,Adult Social Care - Other Transfer Pay,3500102579,550.00,Redacted Personal Data
http://statistics.data.gov.uk/id/local-authority/38,Oxfordshire County Council,Homes for Ukraine - Guests,23/01/2024,5896,Adult Social Care - Other Transfer Pay,3500102749,550.00,Redacted Personal Data
http://statistics.data.gov.uk/id/local-authority/38,Oxfordshire County Council,Homes for Ukraine - Guests,04/01/2024,5896,Adult Social Care - Other Transfer Pay,3500102427,550.00,Redacted Personal Data
http://statistics.data.gov.uk/id/local-authority/38,Oxfordshire County Council,Homes for Ukraine - Guests,02/01/2024,5896,Adult Social Care - Other Transfer Pay,3500102384,550.00,Redacted Personal Data
http://statistics.data.gov.uk/id/local-authority/38,Oxfordshire County Council,Homes for Ukraine - Guests,31/01/2024,5896,Adult Social Care - Other Transfer Pay,3500102945,550.00,Redacted Personal Data
http://statistics.data.gov.uk/id/local-authority/38,Oxfordshire County Council,Homes for Ukraine - Guests,12/01/2024,5896,Adult Social Care - Other Transfer Pay,3500102629,550.00,Redacted Personal Data
http://statistics.data.gov.uk/id/local-authority/38,Oxfordshire County Council,Homes for Ukraine - Guests,18/01/2024,5896,Adult Social Care - Other Transfer Pay,3500102712,550.00,Redacted Personal Data
http://statistics.data.gov.uk/id/local-authority/38,Oxfordshire County Council,Homes for Ukraine - Guests,11/01/2024,5896,Adult Social Care - Other Transfer Pay,3500102611,550.00,Redacted Personal Data
http://statistics.data.gov.uk/id/local-authority/38,Oxfordshire County Council,Homes for Ukraine - Guests,22/01/2024,5896,Adult Social Care - Other Transfer Pay,3500102744,550.00,Redacted Personal Data
http://statistics.data.gov.uk/id/local-authority/38,Oxfordshire County Council,Homes for Ukraine - Guests,04/01/2024,5896,Adult Social Care - Other Transfer Pay,3500102431,550.00,Redacted Personal Data
http://statistics.data.gov.uk/id/local-authority/38,Oxfordshire County Council,Homes for Ukraine - Guests,31/01/2024,5896,Adult Social Care - Other Transfer Pay,3500102922,550.00,Redacted Personal Data
http://statistics.data.gov.uk/id/local-authority/38,Oxfordshire County Council,Homes for Ukraine - Guests,01/01/2024,5896,Adult Social Care - Other Transfer Pay,3500102348,550.00,Redacted Personal Data
http://statistics.data.gov.uk/id/local-authority/38,Oxfordshire County Council,Homes for Ukraine - Guests,17/01/2024,5896,Adult Social Care - Other Transfer Pay,3500102679,550.00,Redacted Personal Data
http://statistics.data.gov.uk/id/local-authority/38,Oxfordshire County Council,Homes for Ukraine - Guests,18/01/2024,5896,Adult Social Care - Other Transfer Pay,3500102703,550.00,Redacted Personal Data
http://statistics.data.gov.uk/id/local-authority/38,Oxfordshire County Council,Homes for Ukraine - Guests,23/01/2024,5896,Adult Social Care - Other Transfer Pay,3500102756,550.00,Redacted Personal Data
http://statistics.data.gov.uk/id/local-authority/38,Oxfordshire County Council,Homes for Ukraine - Guests,31/01/2024,5896,Adult Social Care - Other Transfer Pay,3500102948,550.00,Redacted Personal Data
http://statistics.data.gov.uk/id/local-authority/38,Oxfordshire County Council,Homes for Ukraine - Guests,29/01/2024,5896,Adult Social Care - Other Transfer Pay,3500102854,550.00,Redacted Personal Data
http://statistics.data.gov.uk/id/local-authority/38,Oxfordshire County Council,Homes for Ukraine - Guests,24/01/2024,5896,Adult Social Care - Other Transfer Pay,3500102801,550.00,Redacted Personal Data
http://statistics.data.gov.uk/id/local-authority/38,Oxfordshire County Council,Homes for Ukraine - Guests,01/01/2024,5896,Adult Social Care - Other Transfer Pay,3500102359,550.00,Redacted Personal Data
http://statistics.data.gov.uk/id/local-authority/38,Oxfordshire County Council,Homes for Ukraine - Guests,05/01/2024,5896,Adult Social Care - Other Transfer Pay,3500102437,550.00,Redacted Personal Data
http://statistics.data.gov.uk/id/local-authority/38,Oxfordshire County Council,Homes for Ukraine - Guests,03/01/2024,5896,Adult Social Care - Other Transfer Pay,3500102405,550.00,Redacted Personal Data
http://statistics.data.gov.uk/id/local-authority/38,Oxfordshire County Council,Homes for Ukraine - Guests,18/01/2024,5896,Adult Social Care - Other Transfer Pay,3500102706,550.00,Redacted Personal Data
http://statistics.data.gov.uk/id/local-authority/38,Oxfordshire County Council,Homes for Ukraine - Guests,03/01/2024,5896,Adult Social Care - Other Transfer Pay,3500102392,550.00,Redacted Personal Data
http://statistics.data.gov.uk/id/local-authority/38,Oxfordshire County Council,Homes for Ukraine - Guests,17/01/2024,5896,Adult Social Care - Other Transfer Pay,3500102688,550.00,Redacted Personal Data
http://statistics.data.gov.uk/id/local-authority/38,Oxfordshire County Council,Homes for Ukraine - Guests,30/01/2024,5896,Adult Social Care - Other Transfer Pay,3500102873,550.00,Redacted Personal Data
http://statistics.data.gov.uk/id/local-authority/38,Oxfordshire County Council,Homes for Ukraine - Guests,24/01/2024,5896,Adult Social Care - Other Transfer Pay,3500102809,550.00,Redacted Personal Data
http://statistics.data.gov.uk/id/local-authority/38,Oxfordshire County Council,Homes for Ukraine - Guests,12/01/2024,5896,Adult Social Care - Other Transfer Pay,3500102619,550.00,Redacted Personal Data
http://statistics.data.gov.uk/id/local-authority/38,Oxfordshire County Council,Homes for Ukraine - Guests,23/01/2024,5896,Adult Social Care - Other Transfer Pay,3500102757,550.00,Redacted Personal Data
http://statistics.data.gov.uk/id/local-authority/38,Oxfordshire County Council,Homes for Ukraine - Guests,19/01/2024,5896,Adult Social Care - Other Transfer Pay,3500102724,550.00,Redacted Personal Data
http://statistics.data.gov.uk/id/local-authority/38,Oxfordshire County Council,Homes for Ukraine - Guests,30/01/2024,5896,Adult Social Care - Other Transfer Pay,3500102885,550.00,Redacted Personal Data
http://statistics.data.gov.uk/id/local-authority/38,Oxfordshire County Council,Homes for Ukraine - Guests,24/01/2024,5896,Adult Social Care - Other Transfer Pay,3500102799,550.00,Redacted Personal Data
http://statistics.data.gov.uk/id/local-authority/38,Oxfordshire County Council,Homes for Ukraine - Guests,17/01/2024,5896,Adult Social Care - Other Transfer Pay,3500102694,550.00,Redacted Personal Data
http://statistics.data.gov.uk/id/local-authority/38,Oxfordshire County Council,Homes for Ukraine - Guests,10/01/2024,5896,Adult Social Care - Other Transfer Pay,3500102573,550.00,Redacted Personal Data
http://statistics.data.gov.uk/id/local-authority/38,Oxfordshire County Council,Homes for Ukraine - Guests,09/01/2024,5896,Adult Social Care - Other Transfer Pay,3500102481,550.00,Redacted Personal Data
http://statistics.data.gov.uk/id/local-authority/38,Oxfordshire County Council,Homes for Ukraine - Guests,16/01/2024,5896,Adult Social Care - Other Transfer Pay,3500102654,550.00,Redacted Personal Data
http://statistics.data.gov.uk/id/local-authority/38,Oxfordshire County Council,Homes for Ukraine - Guests,24/01/2024,5896,Adult Social Care - Other Transfer Pay,3500102805,550.00,Redacted Personal Data
http://statistics.data.gov.uk/id/local-authority/38,Oxfordshire County Council,Homes for Ukraine - Guests,09/01/2024,5896,Adult Social Care - Other Transfer Pay,3500102483,550.00,Redacted Personal Data
http://statistics.data.gov.uk/id/local-authority/38,Oxfordshire County Council,Homes for Ukraine - Guests,30/01/2024,5896,Adult Social Care - Other Transfer Pay,3500102878,550.00,Redacted Personal Data
http://statistics.data.gov.uk/id/local-authority/38,Oxfordshire County Council,Homes for Ukraine - Guests,30/01/2024,5896,Adult Social Care - Other Transfer Pay,3500102883,550.00,Redacted Personal Data
http://statistics.data.gov.uk/id/local-authority/38,Oxfordshire County Council,Homes for Ukraine - Guests,10/01/2024,5896,Adult Social Care - Other Transfer Pay,3500102589,550.00,Redacted Personal Data
http://statistics.data.gov.uk/id/local-authority/38,Oxfordshire County Council,Homes for Ukraine - Guests,15/01/2024,5896,Adult Social Care - Other Transfer Pay,3500102642,550.00,Redacted Personal Data
http://statistics.data.gov.uk/id/local-authority/38,Oxfordshire County Council,Homes for Ukraine - Guests,23/01/2024,5896,Adult Social Care - Other Transfer Pay,3500102754,550.00,Redacted Personal Data
http://statistics.data.gov.uk/id/local-authority/38,Oxfordshire County Council,Homes for Ukraine - Guests,16/01/2024,5896,Adult Social Care - Other Transfer Pay,3500102652,550.00,Redacted Personal Data
http://statistics.data.gov.uk/id/local-authority/38,Oxfordshire County Council,Homes for Ukraine - Guests,05/01/2024,5896,Adult Social Care - Other Transfer Pay,3500102450,550.00,Redacted Personal Data
http://statistics.data.gov.uk/id/local-authority/38,Oxfordshire County Council,CORONER,19/01/2024,5202,Use of Mortuary Services,2201190009,550.00,ORAMIS DIGITAL AUTOPSY LTD
http://statistics.data.gov.uk/id/local-authority/38,Oxfordshire County Council,Homes for Ukraine - Guests,15/01/2024,5896,Adult Social Care - Other Transfer Pay,3500102640,550.00,Redacted Personal Data
http://statistics.data.gov.uk/id/local-authority/38,Oxfordshire County Council,Homes for Ukraine - Guests,18/01/2024,5896,Adult Social Care - Other Transfer Pay,3500102697,550.00,Redacted Personal Data
http://statistics.data.gov.uk/id/local-authority/38,Oxfordshire County Council,Homes for Ukraine - Guests,01/01/2024,5896,Adult Social Care - Other Transfer Pay,3500102342,550.00,Redacted Personal Data
http://statistics.data.gov.uk/id/local-authority/38,Oxfordshire County Council,Homes for Ukraine - Guests,31/01/2024,5896,Adult Social Care - Other Transfer Pay,3500102915,550.00,Redacted Personal Data
http://statistics.data.gov.uk/id/local-authority/38,Oxfordshire County Council,Homes for Ukraine - Guests,17/01/2024,5896,Adult Social Care - Other Transfer Pay,3500102673,550.00,Redacted Personal Data
http://statistics.data.gov.uk/id/local-authority/38,Oxfordshire County Council,Homes for Ukraine - Guests,08/01/2024,5896,Adult Social Care - Other Transfer Pay,3500102472,550.00,Redacted Personal Data
http://statistics.data.gov.uk/id/local-authority/38,Oxfordshire County Council,Homes for Ukraine - Guests,29/01/2024,5896,Adult Social Care - Other Transfer Pay,3500102851,550.00,Redacted Personal Data
http://statistics.data.gov.uk/id/local-authority/38,Oxfordshire County Council,Homes for Ukraine - Guests,11/01/2024,5896,Adult Social Care - Other Transfer Pay,3500102603,550.00,Redacted Personal Data
http://statistics.data.gov.uk/id/local-authority/38,Oxfordshire County Council,Homes for Ukraine - Guests,03/01/2024,5896,Adult Social Care - Other Transfer Pay,3500102413,550.00,Redacted Personal Data
http://statistics.data.gov.uk/id/local-authority/38,Oxfordshire County Council,Homes for Ukraine - Guests,12/01/2024,5896,Adult Social Care - Other Transfer Pay,3500102622,550.00,Redacted Personal Data
http://statistics.data.gov.uk/id/local-authority/38,Oxfordshire County Council,Homes for Ukraine - Guests,12/01/2024,5896,Adult Social Care - Other Transfer Pay,3500102620,550.00,Redacted Personal Data
http://statistics.data.gov.uk/id/local-authority/38,Oxfordshire County Council,Homes for Ukraine - Guests,01/01/2024,5896,Adult Social Care - Other Transfer Pay,3500102360,550.00,Redacted Personal Data
http://statistics.data.gov.uk/id/local-authority/38,Oxfordshire County Council,Homes for Ukraine - Guests,31/01/2024,5896,Adult Social Care - Other Transfer Pay,3500102937,550.00,Redacted Personal Data
http://statistics.data.gov.uk/id/local-authority/38,Oxfordshire County Council,Homes for Ukraine - Guests,19/01/2024,5896,Adult Social Care - Other Transfer Pay,3500102717,550.00,Redacted Personal Data
http://statistics.data.gov.uk/id/local-authority/38,Oxfordshire County Council,Homes for Ukraine - Guests,10/01/2024,5896,Adult Social Care - Other Transfer Pay,3500102564,550.00,Redacted Personal Data
http://statistics.data.gov.uk/id/local-authority/38,Oxfordshire County Council,Homes for Ukraine - Guests,09/01/2024,5896,Adult Social Care - Other Transfer Pay,3500102487,550.00,Redacted Personal Data
http://statistics.data.gov.uk/id/local-authority/38,Oxfordshire County Council,Homes for Ukraine - Guests,17/01/2024,5896,Adult Social Care - Other Transfer Pay,3500102671,550.00,Redacted Personal Data
http://statistics.data.gov.uk/id/local-authority/38,Oxfordshire County Council,Homes for Ukraine - Guests,16/01/2024,5896,Adult Social Care - Other Transfer Pay,3500102659,550.00,Redacted Personal Data
http://statistics.data.gov.uk/id/local-authority/38,Oxfordshire County Council,Homes for Ukraine - Guests,30/01/2024,5896,Adult Social Care - Other Transfer Pay,3500102875,550.00,Redacted Personal Data
http://statistics.data.gov.uk/id/local-authority/38,Oxfordshire County Council,Homes for Ukraine - Guests,26/01/2024,5896,Adult Social Care - Other Transfer Pay,3500102828,550.00,Redacted Personal Data
http://statistics.data.gov.uk/id/local-authority/38,Oxfordshire County Council,Homes for Ukraine - Guests,03/01/2024,5896,Adult Social Care - Other Transfer Pay,3500102408,550.00,Redacted Personal Data
http://statistics.data.gov.uk/id/local-authority/38,Oxfordshire County Council,RESIDENTIAL STRATEGY,08/01/2024,3100,Educational and Vocational Training,2201185124,550.00,PRICE Training
http://statistics.data.gov.uk/id/local-authority/38,Oxfordshire County Council,Homes for Ukraine - Guests,24/01/2024,5896,Adult Social Care - Other Transfer Pay,3500102790,550.00,Redacted Personal Data
http://statistics.data.gov.uk/id/local-authority/38,Oxfordshire County Council,Homes for Ukraine - Guests,19/01/2024,5896,Adult Social Care - Other Transfer Pay,3500102723,550.00,Redacted Personal Data
http://statistics.data.gov.uk/id/local-authority/38,Oxfordshire County Council,Homes for Ukraine - Guests,04/01/2024,5896,Adult Social Care - Other Transfer Pay,3500102429,550.00,Redacted Personal Data
http://statistics.data.gov.uk/id/local-authority/38,Oxfordshire County Council,Homes for Ukraine - Guests,08/01/2024,5896,Adult Social Care - Other Transfer Pay,3500102468,550.00,Redacted Personal Data
http://statistics.data.gov.uk/id/local-authority/38,Oxfordshire County Council,Homes for Ukraine - Guests,29/01/2024,5896,Adult Social Care - Other Transfer Pay,3500102860,550.00,Redacted Personal Data
http://statistics.data.gov.uk/id/local-authority/38,Oxfordshire County Council,Homes for Ukraine - Guests,23/01/2024,5896,Adult Social Care - Other Transfer Pay,3500102752,550.00,Redacted Personal Data
http://statistics.data.gov.uk/id/local-authority/38,Oxfordshire County Council,Homes for Ukraine - Guests,03/01/2024,5896,Adult Social Care - Other Transfer Pay,3500102419,550.00,Redacted Personal Data
http://statistics.data.gov.uk/id/local-authority/38,Oxfordshire County Council,Homes for Ukraine - Guests,26/01/2024,5896,Adult Social Care - Other Transfer Pay,3500102824,550.00,Redacted Personal Data
http://statistics.data.gov.uk/id/local-authority/38,Oxfordshire County Council,Homes for Ukraine - Guests,24/01/2024,5896,Adult Social Care - Other Transfer Pay,3500102814,550.00,Redacted Personal Data
http://statistics.data.gov.uk/id/local-authority/38,Oxfordshire County Council,Homes for Ukraine - Guests,08/01/2024,5896,Adult Social Care - Other Transfer Pay,3500102466,550.00,Redacted Personal Data
http://statistics.data.gov.uk/id/local-authority/38,Oxfordshire County Council,Homes for Ukraine - Guests,17/01/2024,5896,Adult Social Care - Other Transfer Pay,3500102661,550.00,Redacted Personal Data
http://statistics.data.gov.uk/id/local-authority/38,Oxfordshire County Council,Homes for Ukraine - Guests,17/01/2024,5896,Adult Social Care - Other Transfer Pay,3500102678,550.00,Redacted Personal Data
http://statistics.data.gov.uk/id/local-authority/38,Oxfordshire County Council,Homes for Ukraine - Guests,17/01/2024,5896,Adult Social Care - Other Transfer Pay,3500102664,550.00,Redacted Personal Data
http://statistics.data.gov.uk/id/local-authority/38,Oxfordshire County Council,Homes for Ukraine - Guests,17/01/2024,5896,Adult Social Care - Other Transfer Pay,3500102672,550.00,Redacted Personal Data
http://statistics.data.gov.uk/id/local-authority/38,Oxfordshire County Council,Homes for Ukraine - Guests,03/01/2024,5896,Adult Social Care - Other Transfer Pay,3500102400,550.00,Redacted Personal Data
http://statistics.data.gov.uk/id/local-authority/38,Oxfordshire County Council,Homes for Ukraine - Guests,04/01/2024,5896,Adult Social Care - Other Transfer Pay,3500102432,550.00,Redacted Personal Data
http://statistics.data.gov.uk/id/local-authority/38,Oxfordshire County Council,Homes for Ukraine - Guests,17/01/2024,5896,Adult Social Care - Other Transfer Pay,3500102674,550.00,Redacted Personal Data
http://statistics.data.gov.uk/id/local-authority/38,Oxfordshire County Council,Homes for Ukraine - Guests,17/01/2024,5896,Adult Social Care - Other Transfer Pay,3500102687,550.00,Redacted Personal Data
http://statistics.data.gov.uk/id/local-authority/38,Oxfordshire County Council,Homes for Ukraine - Guests,24/01/2024,5896,Adult Social Care - Other Transfer Pay,3500102760,550.00,Redacted Personal Data
http://statistics.data.gov.uk/id/local-authority/38,Oxfordshire County Council,Homes for Ukraine - Guests,02/01/2024,5896,Adult Social Care - Other Transfer Pay,3500102381,550.00,Redacted Personal Data
http://statistics.data.gov.uk/id/local-authority/38,Oxfordshire County Council,Homes for Ukraine - Guests,31/01/2024,5896,Adult Social Care - Other Transfer Pay,3500102941,550.00,Redacted Personal Data
http://statistics.data.gov.uk/id/local-authority/38,Oxfordshire County Council,Homes for Ukraine - Guests,11/01/2024,5896,Adult Social Care - Other Transfer Pay,3500102596,550.00,Redacted Personal Data
http://statistics.data.gov.uk/id/local-authority/38,Oxfordshire County Council,Homes for Ukraine - Guests,02/01/2024,5896,Adult Social Care - Other Transfer Pay,3500102367,550.00,Redacted Personal Data
http://statistics.data.gov.uk/id/local-authority/38,Oxfordshire County Council,Homes for Ukraine - Guests,31/01/2024,5896,Adult Social Care - Other Transfer Pay,3500102914,550.00,Redacted Personal Data
http://statistics.data.gov.uk/id/local-authority/38,Oxfordshire County Council,Homes for Ukraine - Guests,15/01/2024,5896,Adult Social Care - Other Transfer Pay,3500102641,550.00,Redacted Personal Data
http://statistics.data.gov.uk/id/local-authority/38,Oxfordshire County Council,Homes for Ukraine - Guests,10/01/2024,5896,Adult Social Care - Other Transfer Pay,3500102582,550.00,Redacted Personal Data
http://statistics.data.gov.uk/id/local-authority/38,Oxfordshire County Council,Homes for Ukraine - Guests,24/01/2024,5896,Adult Social Care - Other Transfer Pay,3500102774,550.00,Redacted Personal Data
http://statistics.data.gov.uk/id/local-authority/38,Oxfordshire County Council,Homes for Ukraine - Guests,29/01/2024,5896,Adult Social Care - Other Transfer Pay,3500102857,550.00,Redacted Personal Data
http://statistics.data.gov.uk/id/local-authority/38,Oxfordshire County Council,Homes for Ukraine - Guests,03/01/2024,5896,Adult Social Care - Other Transfer Pay,3500102417,550.00,Redacted Personal Data
http://statistics.data.gov.uk/id/local-authority/38,Oxfordshire County Council,Homes for Ukraine - Guests,23/01/2024,5896,Adult Social Care - Other Transfer Pay,3500102746,550.00,Redacted Personal Data
http://statistics.data.gov.uk/id/local-authority/38,Oxfordshire County Council,Homes for Ukraine - Guests,29/01/2024,5896,Adult Social Care - Other Transfer Pay,3500102859,550.00,Redacted Personal Data
http://statistics.data.gov.uk/id/local-authority/38,Oxfordshire County Council,Homes for Ukraine - Guests,18/01/2024,5896,Adult Social Care - Other Transfer Pay,3500102700,550.00,Redacted Personal Data
http://statistics.data.gov.uk/id/local-authority/38,Oxfordshire County Council,Homes for Ukraine - Guests,29/01/2024,5896,Adult Social Care - Other Transfer Pay,3500102858,550.00,Redacted Personal Data
http://statistics.data.gov.uk/id/local-authority/38,Oxfordshire County Council,Homes for Ukraine - Guests,17/01/2024,5896,Adult Social Care - Other Transfer Pay,3500102682,550.00,Redacted Personal Data
http://statistics.data.gov.uk/id/local-authority/38,Oxfordshire County Council,Homes for Ukraine - Guests,11/01/2024,5896,Adult Social Care - Other Transfer Pay,3500102610,550.00,Redacted Personal Data
http://statistics.data.gov.uk/id/local-authority/38,Oxfordshire County Council,Homes for Ukraine - Guests,17/01/2024,5896,Adult Social Care - Other Transfer Pay,3500102693,550.00,Redacted Personal Data
http://statistics.data.gov.uk/id/local-authority/38,Oxfordshire County Council,Homes for Ukraine - Guests,22/01/2024,5896,Adult Social Care - Other Transfer Pay,3500102740,550.00,Redacted Personal Data
http://statistics.data.gov.uk/id/local-authority/38,Oxfordshire County Council,Homes for Ukraine - Guests,17/01/2024,5896,Adult Social Care - Other Transfer Pay,3500102695,550.00,Redacted Personal Data
http://statistics.data.gov.uk/id/local-authority/38,Oxfordshire County Council,Homes for Ukraine - Guests,23/01/2024,5896,Adult Social Care - Other Transfer Pay,3500102747,550.00,Redacted Personal Data
http://statistics.data.gov.uk/id/local-authority/38,Oxfordshire County Council,Homes for Ukraine - Education,15/01/2024,5537,Payments to Other Establishments,3111590193,550.00,Sandhills Primary School
http://statistics.data.gov.uk/id/local-authority/38,Oxfordshire County Council,Homes for Ukraine - Guests,10/01/2024,5896,Adult Social Care - Other Transfer Pay,3500102575,550.00,Redacted Personal Data
http://statistics.data.gov.uk/id/local-authority/38,Oxfordshire County Council,Homes for Ukraine - Guests,12/01/2024,5896,Adult Social Care - Other Transfer Pay,3500102633,550.00,Redacted Personal Data
http://statistics.data.gov.uk/id/local-authority/38,Oxfordshire County Council,Homes for Ukraine - Guests,31/01/2024,5896,Adult Social Care - Other Transfer Pay,3500102936,550.00,Redacted Personal Data
http://statistics.data.gov.uk/id/local-authority/38,Oxfordshire County Council,Homes for Ukraine - Guests,18/01/2024,5896,Adult Social Care - Other Transfer Pay,3500102708,550.00,Redacted Personal Data
http://statistics.data.gov.uk/id/local-authority/38,Oxfordshire County Council,Homes for Ukraine - Guests,12/01/2024,5896,Adult Social Care - Other Transfer Pay,3500102615,550.00,Redacted Personal Data
http://statistics.data.gov.uk/id/local-authority/38,Oxfordshire County Council,Homes for Ukraine - Guests,10/01/2024,5896,Adult Social Care - Other Transfer Pay,3500102576,550.00,Redacted Personal Data
http://statistics.data.gov.uk/id/local-authority/38,Oxfordshire County Council,Homes for Ukraine - Guests,22/01/2024,5896,Adult Social Care - Other Transfer Pay,3500102738,550.00,Redacted Personal Data
http://statistics.data.gov.uk/id/local-authority/38,Oxfordshire County Council,Homes for Ukraine - Guests,23/01/2024,5896,Adult Social Care - Other Transfer Pay,3500102755,550.00,Redacted Personal Data
http://statistics.data.gov.uk/id/local-authority/38,Oxfordshire County Council,Homes for Ukraine - Guests,16/01/2024,5896,Adult Social Care - Other Transfer Pay,3500102656,550.00,Redacted Personal Data
http://statistics.data.gov.uk/id/local-authority/38,Oxfordshire County Council,Homes for Ukraine - Guests,03/01/2024,5896,Adult Social Care - Other Transfer Pay,3500102390,550.00,Redacted Personal Data
http://statistics.data.gov.uk/id/local-authority/38,Oxfordshire County Council,Homes for Ukraine - Guests,18/01/2024,5896,Adult Social Care - Other Transfer Pay,3500102709,550.00,Redacted Personal Data
http://statistics.data.gov.uk/id/local-authority/38,Oxfordshire County Council,Homes for Ukraine - Guests,18/01/2024,5896,Adult Social Care - Other Transfer Pay,3500102701,550.00,Redacted Personal Data
http://statistics.data.gov.uk/id/local-authority/38,Oxfordshire County Council,Homes for Ukraine - Guests,19/01/2024,5896,Adult Social Care - Other Transfer Pay,3500102718,550.00,Redacted Personal Data
http://statistics.data.gov.uk/id/local-authority/38,Oxfordshire County Council,Homes for Ukraine - Guests,17/01/2024,5896,Adult Social Care - Other Transfer Pay,3500102670,550.00,Redacted Personal Data
http://statistics.data.gov.uk/id/local-authority/38,Oxfordshire County Council,Homes for Ukraine - Guests,17/01/2024,5896,Adult Social Care - Other Transfer Pay,3500102690,550.00,Redacted Personal Data
http://statistics.data.gov.uk/id/local-authority/38,Oxfordshire County Council,Homes for Ukraine - Guests,24/01/2024,5896,Adult Social Care - Other Transfer Pay,3500102788,550.00,Redacted Personal Data
http://statistics.data.gov.uk/id/local-authority/38,Oxfordshire County Council,Homes for Ukraine - Guests,12/01/2024,5896,Adult Social Care - Other Transfer Pay,3500102631,550.00,Redacted Personal Data
http://statistics.data.gov.uk/id/local-authority/38,Oxfordshire County Council,Homes for Ukraine - Guests,09/01/2024,5896,Adult Social Care - Other Transfer Pay,3500102484,550.00,Redacted Personal Data
http://statistics.data.gov.uk/id/local-authority/38,Oxfordshire County Council,Homes for Ukraine - Guests,02/01/2024,5896,Adult Social Care - Other Transfer Pay,3500102368,550.00,Redacted Personal Data
http://statistics.data.gov.uk/id/local-authority/38,Oxfordshire County Council,Homes for Ukraine - Guests,16/01/2024,5896,Adult Social Care - Other Transfer Pay,3500102651,550.00,Redacted Personal Data
http://statistics.data.gov.uk/id/local-authority/38,Oxfordshire County Council,Homes for Ukraine - Guests,10/01/2024,5896,Adult Social Care - Other Transfer Pay,3500102574,550.00,Redacted Personal Data
http://statistics.data.gov.uk/id/local-authority/38,Oxfordshire County Council,Homes for Ukraine - Guests,24/01/2024,5896,Adult Social Care - Other Transfer Pay,3500102778,550.00,Redacted Personal Data
http://statistics.data.gov.uk/id/local-authority/38,Oxfordshire County Council,Homes for Ukraine - Guests,10/01/2024,5896,Adult Social Care - Other Transfer Pay,3500102568,550.00,Redacted Personal Data
http://statistics.data.gov.uk/id/local-authority/38,Oxfordshire County Council,Homes for Ukraine - Guests,03/01/2024,5896,Adult Social Care - Other Transfer Pay,3500102407,550.00,Redacted Personal Data
http://statistics.data.gov.uk/id/local-authority/38,Oxfordshire County Council,Homes for Ukraine - Guests,10/01/2024,5896,Adult Social Care - Other Transfer Pay,3500102560,550.00,Redacted Personal Data
http://statistics.data.gov.uk/id/local-authority/38,Oxfordshire County Council,Homes for Ukraine - Guests,12/01/2024,5896,Adult Social Care - Other Transfer Pay,3500102617,550.00,Redacted Personal Data
http://statistics.data.gov.uk/id/local-authority/38,Oxfordshire County Council,Homes for Ukraine - Guests,09/01/2024,5896,Adult Social Care - Other Transfer Pay,3500102480,550.00,Redacted Personal Data
http://statistics.data.gov.uk/id/local-authority/38,Oxfordshire County Council,Homes for Ukraine - Guests,16/01/2024,5896,Adult Social Care - Other Transfer Pay,3500102657,550.00,Redacted Personal Data
http://statistics.data.gov.uk/id/local-authority/38,Oxfordshire County Council,Homes for Ukraine - Guests,26/01/2024,5896,Adult Social Care - Other Transfer Pay,3500102823,550.00,Redacted Personal Data
http://statistics.data.gov.uk/id/local-authority/38,Oxfordshire County Council,Homes for Ukraine - Guests,17/01/2024,5896,Adult Social Care - Other Transfer Pay,3500102669,550.00,Redacted Personal Data
http://statistics.data.gov.uk/id/local-authority/38,Oxfordshire County Council,Homes for Ukraine - Guests,24/01/2024,5896,Adult Social Care - Other Transfer Pay,3500102780,550.00,Redacted Personal Data
http://statistics.data.gov.uk/id/local-authority/38,Oxfordshire County Council,Homes for Ukraine - Guests,03/01/2024,5896,Adult Social Care - Other Transfer Pay,3500102399,550.00,Redacted Personal Data
http://statistics.data.gov.uk/id/local-authority/38,Oxfordshire County Council,Homes for Ukraine - Guests,30/01/2024,5896,Adult Social Care - Other Transfer Pay,3500102881,550.00,Redacted Personal Data
http://statistics.data.gov.uk/id/local-authority/38,Oxfordshire County Council,Homes for Ukraine - Guests,26/01/2024,5896,Adult Social Care - Other Transfer Pay,3500102825,550.00,Redacted Personal Data
http://statistics.data.gov.uk/id/local-authority/38,Oxfordshire County Council,Homes for Ukraine - Guests,25/01/2024,5896,Adult Social Care - Other Transfer Pay,3500102819,550.00,Redacted Personal Data
http://statistics.data.gov.uk/id/local-authority/38,Oxfordshire County Council,Homes for Ukraine - Guests,05/01/2024,5896,Adult Social Care - Other Transfer Pay,3500102442,550.00,Redacted Personal Data
http://statistics.data.gov.uk/id/local-authority/38,Oxfordshire County Council,Homes for Ukraine - Guests,11/01/2024,5896,Adult Social Care - Other Transfer Pay,3500102604,550.00,Redacted Personal Data
http://statistics.data.gov.uk/id/local-authority/38,Oxfordshire County Council,Homes for Ukraine - Guests,09/01/2024,5896,Adult Social Care - Other Transfer Pay,3500102477,550.00,Redacted Personal Data
http://statistics.data.gov.uk/id/local-authority/38,Oxfordshire County Council,Homes for Ukraine - Guests,23/01/2024,5896,Adult Social Care - Other Transfer Pay,3500102751,550.00,Redacted Personal Data
http://statistics.data.gov.uk/id/local-authority/38,Oxfordshire County Council,Homes for Ukraine - Guests,12/01/2024,5896,Adult Social Care - Other Transfer Pay,3500102624,550.00,Redacted Personal Data
http://statistics.data.gov.uk/id/local-authority/38,Oxfordshire County Council,Homes for Ukraine - Guests,03/01/2024,5896,Adult Social Care - Other Transfer Pay,3500102397,550.00,Redacted Personal Data
http://statistics.data.gov.uk/id/local-authority/38,Oxfordshire County Council,Homes for Ukraine - Guests,03/01/2024,5896,Adult Social Care - Other Transfer Pay,3500102401,550.00,Redacted Personal Data
http://statistics.data.gov.uk/id/local-authority/38,Oxfordshire County Council,Homes for Ukraine - Guests,05/01/2024,5896,Adult Social Care - Other Transfer Pay,3500102445,550.00,Redacted Personal Data
http://statistics.data.gov.uk/id/local-authority/38,Oxfordshire County Council,Homes for Ukraine - Guests,24/01/2024,5896,Adult Social Care - Other Transfer Pay,3500102792,550.00,Redacted Personal Data
http://statistics.data.gov.uk/id/local-authority/38,Oxfordshire County Council,Homes for Ukraine - Guests,24/01/2024,5896,Adult Social Care - Other Transfer Pay,3500102762,550.00,Redacted Personal Data
http://statistics.data.gov.uk/id/local-authority/38,Oxfordshire County Council,Homes for Ukraine - Guests,15/01/2024,5896,Adult Social Care - Other Transfer Pay,3500102639,550.00,Redacted Personal Data
http://statistics.data.gov.uk/id/local-authority/38,Oxfordshire County Council,Homes for Ukraine - Guests,01/01/2024,5896,Adult Social Care - Other Transfer Pay,3500102355,550.00,Redacted Personal Data
http://statistics.data.gov.uk/id/local-authority/38,Oxfordshire County Council,Homes for Ukraine - Guests,31/01/2024,5896,Adult Social Care - Other Transfer Pay,3500102932,550.00,Redacted Personal Data
